{"text_format":"1","workbook":"xlsx","n_sheets":8,"sheets":["Prospetto","Anagrafica","Quadro","Consuntivazione","FatturazionePagamenti","HELP","Cartelle","APPO"],"not_rendered":{"charts":0,"images":0,"macros":1,"external_links":0,"defined_names":14,"comments":6,"pivot_tables":0},"unopened":[],"bounds":{"document_bytes":16777216,"sheet_cells":100000,"rows_first":2000,"rows_last":500,"rows_between":2000,"halvings":0,"cell_chars":16384,"cell_head_chars":4096},"cells_cut":0,"cells_raw":0,"read":"whole","date_system":"1900"}

{"sheet":"Prospetto","index":0,"n_rows":219,"n_cols":10,"rows_kept":219,"cut":false,"hidden":false,"merged":[[7,10,8,11],[6,4,6,11],[0,0,0,1],[1,0,1,1],[7,4,7,8],[8,4,8,8],[7,9,8,9],[1,3,2,3]]}
["Comune di comune"]
["Dati Generali Opera"]
["Nome Opera:"]
["Descrizione Opera:"]
["Cup Opera:",1,null,"Subtotali:","SI"]
["Rup Opera:"]
["Soggetto Finanziatore:",null,null,"Note:"]
["Criticità Opera:",null,null,"Intervento  Num.:",null,null,null,null,null,"Anno:"]
["Settore Opera:",null,null,"Cod. Intervento:"]
[]
[]
["Cartella Archiviazione Opere","C:\\Users\\Asus\\Desktop\\Prova"]
["Cartella Comune","C:/cartelle condivise/com"]
["Cartella Condivisa Tec.","C:/cartelle condivise/tec"]
[]
[]
[]
[]
[]
[]
[]
[]
[]
[]
[]
[]
[]
[]
[]
[]
[]
[]
[]
[]
[]
[]
[]
[]
[]
[]
[]
[]
[]
[]
[]
[]
[]
[]
[]
[]
[]
[]
[]
[]
[]
[]
[]
[]
[]
[]
[]
[]
[]
[]
[]
[]
[]
[]
[]
[]
[]
[]
[]
[]
[]
[]
[]
[]
[]
[]
[]
[]
[]
[]
[]
[]
[]
[]
[]
[]
[]
[]
[]
[]
[]
[]
[]
[]
[]
[]
[]
[]
[]
[]
[]
[]
[]
[]
[]
[]
[]
[]
[]
[]
[]
[]
[]
[]
[]
[]
[]
[]
[]
[]
[]
[]
[]
[]
[]
[]
[]
[]
[]
[]
[]
[]
[]
[]
[]
[]
[]
[]
[]
[]
[]
[]
[]
[]
[]
[]
[]
[]
[]
[]
[]
[]
[]
[]
[]
[]
[]
[]
[]
[]
[]
[]
[]
[]
[]
[]
[]
[]
[]
[]
[]
[]
[]
[]
[]
[]
[]
[]
[]
[]
[]
[]
[]
[]
[]
[]
[]
[]
[]
[]
[]
[]
[]
[]
[]
[]
[]
[]
[]
[]
[]
[]
[]
[]
[1]
[]
[]
[]
[]
[]
[]
[]
[]
[]
["IMPE"]

{"sheet":"Anagrafica","index":1,"n_rows":199,"n_cols":23,"rows_kept":199,"cut":false,"hidden":false,"merged":[[0,0,0,6],[1,0,1,6],[2,0,2,6],[1,9,1,10]]}
[{"$f":"Prospetto!A1","v":"Comune di comune"}]
[{"$f":"\"Anagrafica attività di progetto - Opera N. \" &Prospetto!B5","v":"Anagrafica attività di progetto - Opera N. 1"},null,null,null,null,null,null,null,null,"Somma",null,null,null,null,null,null,null,null,null,"Ricerca padri e seleziona"]
[]
["  Sel.","Codice Attività","Cod 1","Cod 2 ","Cod 3","Cod.4","Attività",false,"% \ndi Calcolo","DA","A","errore/ formula","Riga","rd","ra","IVA / CASSA/\nATTIVITA","Struttra Quadro Economico Generato ->","NO","riga in Quadro","codice 1","codice 2","riga codice 1","riga codice 2"]
[{"$f":"ROW()","v":5},"A.01.01",{"$f":"MID($B5,1,1)","v":"A"},{"$f":"IF(MID($B5,3,2)=\"\",\"99\",MID($B5,3,2))","v":"01"},{"$f":"IF(MID($B5,6,2)=\"\",\"98\",MID($B5,6,2))","v":"01"},{"$f":"IF(MID($B5,9,2)=\"\",\"97\",MID($B5,9,2))","v":"97"},"Lavori a  corpo",false,null,null,null,null,{"$f":"ROW()","v":5},{"$f":"IFERROR(VLOOKUP(J5,$B$5:$M$198,12,FALSE),\"\")","v":""},{"$f":"IFERROR(VLOOKUP(K5,$B$5:$M$198,12,FALSE),\"\")","v":""},null,null,null,null,{"$f":"LEFT(B5,7)","v":"A.01.01"},{"$f":"LEFT(B5,4)","v":"A.01"},{"$f":"IFERROR(VLOOKUP(T5,$B$5:$M$198,12,FALSE),0)","v":5},{"$f":"IFERROR(VLOOKUP(U5,$B$5:$M$198,12,FALSE),0)","v":8}]
[{"$f":"ROW()","v":6},"A.01.02","A","01","02","97","A misura",false,null,null,null,null,{"$f":"ROW()","v":6},"","",null,null,null,null,"A.01.02","A.01",6,8]
[{"$f":"ROW()","v":7},"A.01.03","A","01","03","97","Costo del lavoro",false,null,null,null,null,{"$f":"ROW()","v":7},"","",null,null,null,null,"A.01.03","A.01",7,8]
[{"$f":"ROW()","v":8},"A.01","A","01","98","97","Dettaglio Lavori",false,null,null,null,null,{"$f":"ROW()","v":8},"","",null,null,null,null,"A.01","A.01",8,8]
[{"$f":"ROW()","v":9},"A.02","A","02","98","97","Ribasso",false,-0.12,"A.01","A.01","F",{"$f":"ROW()","v":9},8,8,"A",null,null,null,"A.02","A.02",9,9]
[{"$f":"ROW()","v":10},"A.03","A","03","98","97","Costi della sicurezza non soggetti a ribasso d’asta ",false,null,null,null,null,{"$f":"ROW()","v":10},"","",null,null,null,null,"A.03","A.03",10,10]
[{"$f":"ROW()","v":11},"A.04","A","04","98","97","Importo relativo all’aliquota per l’attuazione di misure volte alla prevenzione e repressione della criminalità e tentativi di infiltrazione mafiosa, di cui all’articolo 204, comma 6, lettera e) del codice, non soggetto a ribasso ",false,null,null,null,null,{"$f":"ROW()","v":11},"","",null,null,null,null,"A.04","A.04",11,11]
[{"$f":"ROW()","v":12},"A.05","A","05","98","97","Opere di mitigazione e di compensazione dell’impatto ambientale e sociale, nel limite di importo del 2% del costo complessivo dell’opera  costi per il monitoraggio ambientale ",false,null,null,null,null,{"$f":"ROW()","v":12},"","",null,null,null,null,"A.05","A.05",12,12]
[{"$f":"ROW()","v":13},"A","A","99","98","97","TOTALE LAVORI",false,null,null,null,null,{"$f":"ROW()","v":13},"","",null,null,null,null,"A","A",13,13]
[{"$f":"ROW()","v":14},"B.01.01","B","01","01","97","Lavori a corpo",false,null,null,null,null,{"$f":"ROW()","v":14},"","",null,null,null,null,"B.01.01","B.01",14,17]
[{"$f":"ROW()","v":15},"B.01.02","B","01","02","97","Lavori a misura",false,null,null,null,null,{"$f":"ROW()","v":15},"","",null,null,null,null,"B.01.02","B.01",15,17]
[{"$f":"ROW()","v":16},"B.01.03","B","01","03","97","Costo del lavoro",false,null,null,null,null,{"$f":"ROW()","v":16},"","",null,null,null,null,"B.01.03","B.01",16,17]
[{"$f":"ROW()","v":17},"B.01","B","01","98","97","Lavori in amministrazione diretta previsti in progetto ed esclusi dall’appalto",false,null,null,null,null,{"$f":"ROW()","v":17},"","",null,null,null,null,"B.01","B.01",17,17]
[{"$f":"ROW()","v":18},"B.02.01.01","B","02","01","01","Rilievi e accatastamenti ",false,null,null,null,null,{"$f":"ROW()","v":18},"","",null,null,null,null,"B.02.01","B.02",21,38]
[{"$f":"ROW()","v":19},"B.02.01.02","B","02","01","02","Cassa su rilievi e accatastamenti",false,0.04,"B.02.01.01","B.02.01.01","F",{"$f":"ROW()","v":19},18,18,"C",null,null,null,"B.02.01","B.02",21,38]
[{"$f":"ROW()","v":20},"B.02.01.03","B","02","01","03","IVA  su rilievi e accatastamenti",false,0.22,"B.02.01.01","B.02.01.02","F",{"$f":"ROW()","v":20},18,19,"I",null,null,null,"B.02.01","B.02",21,38]
[{"$f":"ROW()","v":21},"B.02.01","B","02","01","97","Totale Rilievi ed accatastamenti",false,null,null,null,null,{"$f":"ROW()","v":21},"","",null,null,null,null,"B.02.01","B.02",21,38]
[{"$f":"ROW()","v":22},"B.02.02.01","B","02","02","01","Indagini geologiche, geognostiche e geofisiche ",false,null,null,null,null,{"$f":"ROW()","v":22},"","",null,null,null,null,"B.02.02","B.02",25,38]
[{"$f":"ROW()","v":23},"B.02.02.02","B","02","02","02","Cassa su Indagini geologiche, geognostiche e geofisiche ",false,0.04,"B.02.02.01","B.02.02.01","F",{"$f":"ROW()","v":23},22,22,"C",null,null,null,"B.02.02","B.02",25,38]
[{"$f":"ROW()","v":24},"B.02.02.03","B","02","02","03","IVA  su indagini geologiche, geognostiche e geofisiche",false,0.22,"B.02.02.01","B.02.02.02","F",{"$f":"ROW()","v":24},22,23,"I",null,null,null,"B.02.02","B.02",25,38]
[{"$f":"ROW()","v":25},"B.02.02","B","02","02","97","Totale Indagini geologiche, geognostiche e geofisiche ",false,null,null,null,null,{"$f":"ROW()","v":25},"","",null,null,null,null,"B.02.02","B.02",25,38]
[{"$f":"ROW()","v":26},"B.02.03.01","B","02","03","01","Indagini archeologiche",false,null,null,null,null,{"$f":"ROW()","v":26},"","",null,null,null,null,"B.02.03","B.02",29,38]
[{"$f":"ROW()","v":27},"B.02.03.02","B","02","03","02","cassa su indagini archeologiche",false,0.04,"B.02.03.01","B.02.03.01","F",{"$f":"ROW()","v":27},26,26,"C",null,null,null,"B.02.03","B.02",29,38]
[{"$f":"ROW()","v":28},"B.02.03.03","B","02","03","03","IVA su indagini archeologiche",false,0.22,"B.02.03.01","B.02.03.02","F",{"$f":"ROW()","v":28},26,27,"I",null,null,null,"B.02.03","B.02",29,38]
[{"$f":"ROW()","v":29},"B.02.03","B","02","03","97","Totale Indagini archeologiche",false,null,null,null,null,{"$f":"ROW()","v":29},"","",null,null,null,null,"B.02.03","B.02",29,38]
[{"$f":"ROW()","v":30},"B.02.04.01","B","02","04","01","Analisi strutturali ",false,null,null,null,null,{"$f":"ROW()","v":30},"","",null,null,null,null,"B.02.04","B.02",33,38]
[{"$f":"ROW()","v":31},"B.02.04.02","B","02","04","02","Cassa  su analisi strutturali ",false,0.04,"B.02.04.01","B.02.04.01","F",{"$f":"ROW()","v":31},30,30,"C",null,null,null,"B.02.04","B.02",33,38]
[{"$f":"ROW()","v":32},"B.02.04.03","B","02","04","03","IVA  su analisi strutturali",false,0.22,"B.02.04.01","B.02.04.02","F",{"$f":"ROW()","v":32},30,31,"I",null,null,null,"B.02.04","B.02",33,38]
[{"$f":"ROW()","v":33},"B.02.04","B","02","04","97","Totale Analisi strutturali ",false,null,null,null,null,{"$f":"ROW()","v":33},"","",null,null,null,null,"B.02.04","B.02",33,38]
[{"$f":"ROW()","v":34},"B.02.05.01","B","02","05","01","Geologo ",false,null,null,null,null,{"$f":"ROW()","v":34},"","",null,null,null,null,"B.02.05","B.02",37,38]
[{"$f":"ROW()","v":35},"B.02.05.02","B","02","05","02","Cassa su compensi geologo",false,0.04,"B.02.05.01","B.02.05.01","F",{"$f":"ROW()","v":35},34,34,"C",null,null,null,"B.02.05","B.02",37,38]
[{"$f":"ROW()","v":36},"B.02.05.03","B","02","05","03","IVA  su compensi geologo",false,0.22,"B.02.05.01","B.02.05.02","F",{"$f":"ROW()","v":36},34,35,"I",null,null,null,"B.02.05","B.02",37,38]
[{"$f":"ROW()","v":37},"B.02.05",{"$f":"MID($B37,1,1)","v":"B"},{"$f":"IF(MID($B37,3,2)=\"\",\"99\",MID($B37,3,2))","v":"02"},{"$f":"IF(MID($B37,6,2)=\"\",\"98\",MID($B37,6,2))","v":"05"},{"$f":"IF(MID($B37,9,2)=\"\",\"97\",MID($B37,9,2))","v":"97"},"Totale Geologo ",false,null,null,null,null,{"$f":"ROW()","v":37},{"$f":"IFERROR(VLOOKUP(J37,$B$5:$M$198,12,FALSE),\"\")","v":""},{"$f":"IFERROR(VLOOKUP(K37,$B$5:$M$198,12,FALSE),\"\")","v":""},null,null,null,null,{"$f":"LEFT(B37,7)","v":"B.02.05"},{"$f":"LEFT(B37,4)","v":"B.02"},{"$f":"IFERROR(VLOOKUP(T37,$B$5:$M$198,12,FALSE),0)","v":37},{"$f":"IFERROR(VLOOKUP(U37,$B$5:$M$198,12,FALSE),0)","v":38}]
[{"$f":"ROW()","v":38},"B.02","B","02","98","97","Rilievi, accertamenti e indagini da eseguire ai diversi livelli di progettazione a cura della stazione appaltante ",false,null,null,null,null,{"$f":"ROW()","v":38},"","",null,null,null,null,"B.02","B.02",38,38]
[{"$f":"ROW()","v":39},"B.03.01.01","B","03","01","01","Rilievi e accatastamenti ",false,null,null,null,null,{"$f":"ROW()","v":39},"","",null,null,null,null,"B.03.01","B.03",42,59]
[{"$f":"ROW()","v":40},"B.03.01.02","B","03","01","02","Cassa su rilievi e accatastamenti",false,0.04,"B.03.01.01","B.03.01.01","F",{"$f":"ROW()","v":40},39,39,"C",null,null,null,"B.03.01","B.03",42,59]
[{"$f":"ROW()","v":41},"B.03.01.03","B","03","01","03","IVA  su rilievi e accatastamenti",false,0.22,"B.03.01.01","B.03.01.02","F",{"$f":"ROW()","v":41},39,40,"I",null,null,null,"B.03.01","B.03",42,59]
[{"$f":"ROW()","v":42},"B.03.01","B","03","01","97","Totale Rilievi ed accatastamenti",false,null,null,null,null,{"$f":"ROW()","v":42},"","",null,null,null,null,"B.03.01","B.03",42,59]
[{"$f":"ROW()","v":43},"B.03.02.01","B","03","02","01","Indagini geologiche, geognostiche e geofisiche ",false,null,null,null,null,{"$f":"ROW()","v":43},"","",null,null,null,null,"B.03.02","B.03",46,59]
[{"$f":"ROW()","v":44},"B.03.02.02","B","03","02","02","Cassa su Indagini geologiche, geognostiche e geofisiche ",false,0.04,"B.03.02.01","B.03.02.01","F",{"$f":"ROW()","v":44},43,43,"C",null,null,null,"B.03.02","B.03",46,59]
[{"$f":"ROW()","v":45},"B.03.02.03","B","03","02","03","IVA  su indagini geologiche, geognostiche e geofisiche",false,0.22,"B.03.02.01","B.03.02.02","F",{"$f":"ROW()","v":45},43,44,"I",null,null,null,"B.03.02","B.03",46,59]
[{"$f":"ROW()","v":46},"B.03.02","B","03","02","97","Totale Indagini geologiche, geognostiche e geofisiche ",false,null,null,null,null,{"$f":"ROW()","v":46},"","",null,null,null,null,"B.03.02","B.03",46,59]
[{"$f":"ROW()","v":47},"B.03.03.01","B","03","03","01","Indagini archeologiche",false,null,null,null,null,{"$f":"ROW()","v":47},"","",null,null,null,null,"B.03.03","B.03",50,59]
[{"$f":"ROW()","v":48},"B.03.03.02","B","03","03","02","cassa su indagini archeologiche",false,0.04,"B.03.03.01","B.03.03.01","F",{"$f":"ROW()","v":48},47,47,"C",null,null,null,"B.03.03","B.03",50,59]
[{"$f":"ROW()","v":49},"B.03.03.03","B","03","03","03","IVA su indagini archeologiche",false,0.22,"B.03.03.01","B.03.03.02","F",{"$f":"ROW()","v":49},47,48,"I",null,null,null,"B.03.03","B.03",50,59]
[{"$f":"ROW()","v":50},"B.03.03","B","03","03","97","Totale Indagini archeologiche",false,null,null,null,null,{"$f":"ROW()","v":50},"","",null,null,null,null,"B.03.03","B.03",50,59]
[{"$f":"ROW()","v":51},"B.03.04.01","B","03","04","01","Analisi strutturali ",false,null,null,null,null,{"$f":"ROW()","v":51},"","",null,null,null,null,"B.03.04","B.03",54,59]
[{"$f":"ROW()","v":52},"B.03.04.02","B","03","04","02","Cassa  su analisi strutturali ",false,0.04,"B.03.04.01","B.03.04.01","F",{"$f":"ROW()","v":52},51,51,"C",null,null,null,"B.03.04","B.03",54,59]
[{"$f":"ROW()","v":53},"B.03.04.03","B","03","04","03","IVA  su analisi strutturali",false,0.22,"B.03.04.01","B.03.04.02","F",{"$f":"ROW()","v":53},51,52,"I",null,null,null,"B.03.04","B.03",54,59]
[{"$f":"ROW()","v":54},"B.03.04","B","03","04","97","Totale Analisi strutturali ",false,null,null,null,null,{"$f":"ROW()","v":54},"","",null,null,null,null,"B.03.04","B.03",54,59]
[{"$f":"ROW()","v":55},"B.03.05.01","B","03","05","01","Geologo ",false,null,null,null,null,{"$f":"ROW()","v":55},"","",null,null,null,null,"B.03.05","B.03",58,59]
[{"$f":"ROW()","v":56},"B.03.05.02","B","03","05","02","Cassa su compensi geologo",false,0.04,"B.03.05.01","B.03.05.01","F",{"$f":"ROW()","v":56},55,55,"C",null,null,null,"B.03.05","B.03",58,59]
[{"$f":"ROW()","v":57},"B.03.05.03","B","03","05","03","IVA  su compensi geologo",false,0.22,"B.03.05.01","B.03.05.02","F",{"$f":"ROW()","v":57},55,56,"I",null,null,null,"B.03.05","B.03",58,59]
[{"$f":"ROW()","v":58},"B.03.05","B","03","05","97","Totale Geologo ",false,null,null,null,null,{"$f":"ROW()","v":58},"","",null,null,null,null,"B.03.05","B.03",58,59]
[{"$f":"ROW()","v":59},"B.03","B","03","98","97","Rilievi, accertamenti e indagini da eseguire ai diversi livelli di progettazione a cura del progettista ",false,null,null,null,null,{"$f":"ROW()","v":59},"","",null,null,null,null,"B.03","B.03",59,59]
[{"$f":"ROW()","v":60},"B.04.01.01","B","04","01","01","Allacciamenti ai pubblici servizi",false,null,null,null,null,{"$f":"ROW()","v":60},"","",null,null,null,null,"B.04.01","B.04",63,67]
[{"$f":"ROW()","v":61},"B.04.01.02","B","04","01","02","Oneri vari su allacciamenti (autorizzazioni, bolli, ecc.)",false,null,null,null,null,{"$f":"ROW()","v":61},"","",null,null,null,null,"B.04.01","B.04",63,67]
[{"$f":"ROW()","v":62},"B.04.01.03","B","04","01","03","IVA su allacciamenti ai pubblici servizi",false,0.22,"B.04.01.01","B.04.01.01","F",{"$f":"ROW()","v":62},60,60,"I",null,null,null,"B.04.01","B.04",63,67]
[{"$f":"ROW()","v":63},"B.04.01","B","04","01","97","Totale Allacciamenti ai pubblici servizi",false,null,null,null,null,{"$f":"ROW()","v":63},"","",null,null,null,null,"B.04.01","B.04",63,67]
[{"$f":"ROW()","v":64},"B.04.02.01","B","04","02","01","Spostamento servizi interferenti",false,null,null,null,null,{"$f":"ROW()","v":64},"","",null,null,null,null,"B.04.02","B.04",66,67]
[{"$f":"ROW()","v":65},"B.04.02.02","B","04","02","02","IVA su spostamento servizi interferenti",false,0.22,"B.04.02.01","B.04.02.01","F",{"$f":"ROW()","v":65},64,64,"I",null,null,null,"B.04.02","B.04",66,67]
[{"$f":"ROW()","v":66},"B.04.02","B","04","02","97","Totale Spostamento servizi interferenti",false,null,null,null,null,{"$f":"ROW()","v":66},"","",null,null,null,null,"B.04.02","B.04",66,67]
[{"$f":"ROW()","v":67},"B.04","B","04","98","97","Totale allacciamenti ai pubblici servizi e superamento eventuali interferenze ",false,null,null,null,null,{"$f":"ROW()","v":67},"","",null,null,null,null,"B.04","B.04",67,67]
[{"$f":"ROW()","v":68},"B.05","B","05","98","97","Imprevisti, entro una soglia compresa tra il 5 e il 10 per cento dell’importo dei lavori a base di gara, comprensivo dei costi della sicurezza, secondo quanto precisato al comma 2, articolo 5 allegato I.7 ",false,0.05,"A","A","F",{"$f":"ROW()","v":68},13,13,"A",null,null,null,"B.05","B.05",68,68]
[{"$f":"ROW()","v":69},"B.06.01",{"$f":"MID($B69,1,1)","v":"B"},{"$f":"IF(MID($B69,3,2)=\"\",\"99\",MID($B69,3,2))","v":"06"},{"$f":"IF(MID($B69,6,2)=\"\",\"98\",MID($B69,6,2))","v":"01"},{"$f":"IF(MID($B69,9,2)=\"\",\"97\",MID($B69,9,2))","v":"97"},"Imprevisti/adeguamento prezzi - max 10%  (art. 60, comma 5 d.lgs. 362023 e art. 5, All. I.7 al d.lgs. 36/2023)",false,0.05,"A","A","F",{"$f":"ROW()","v":69},{"$f":"IFERROR(VLOOKUP(J69,$B$5:$M$198,12,FALSE),\"\")","v":13},{"$f":"IFERROR(VLOOKUP(K69,$B$5:$M$198,12,FALSE),\"\")","v":13},"A",null,null,null,{"$f":"LEFT(B69,7)","v":"B.06.01"},{"$f":"LEFT(B69,4)","v":"B.06"},{"$f":"IFERROR(VLOOKUP(T69,$B$5:$M$198,12,FALSE),0)","v":69},{"$f":"IFERROR(VLOOKUP(U69,$B$5:$M$198,12,FALSE),0)","v":71}]
[{"$f":"ROW()","v":70},"B.06.02","B","06","02","97","Accantonamenti per le modifiche (art. 120, comma 1, lettera a) del d.lgs. 36/2050)",false,null,null,null,null,{"$f":"ROW()","v":70},"","",null,null,null,null,"B.06.02","B.06",70,71]
[{"$f":"ROW()","v":71},"B.06","B","06","98","97","Totale accantonamenti in relazione alle modifiche di cui agli articoli 60 e 120, comma 1, lettera a), del codice ",false,null,null,null,null,{"$f":"ROW()","v":71},"","",null,null,null,null,"B.06","B.06",71,71]
[{"$f":"ROW()","v":72},"B.07.01","B","07","01","97","Spese per acquisizione aree",false,null,null,null,null,{"$f":"ROW()","v":72},"","",null,null,null,null,"B.07.01","B.07",72,77]
[{"$f":"ROW()","v":73},"B.07.02","B","07","02","97","Spese per acquisizione immobili",false,null,null,null,null,{"$f":"ROW()","v":73},"","",null,null,null,null,"B.07.02","B.07",73,77]
[{"$f":"ROW()","v":74},"B.07.03","B","07","03","97","Spese per occupazioni temporanee",false,null,null,null,null,{"$f":"ROW()","v":74},"","",null,null,null,null,"B.07.03","B.07",74,77]
[{"$f":"ROW()","v":75},"B.07.04","B","07","04","97","Indennizzi",false,null,null,null,null,{"$f":"ROW()","v":75},"","",null,null,null,null,"B.07.04","B.07",75,77]
[{"$f":"ROW()","v":76},"B.07.05","B","07","05","97","Diritti e Bolli su Aree o Immobili Acquistati",false,null,null,null,null,{"$f":"ROW()","v":76},"","",null,null,null,null,"B.07.05","B.07",76,77]
[{"$f":"ROW()","v":77},"B.07","B","07","98","97","Totale Acquisizione aree o immobili",false,null,null,null,null,{"$f":"ROW()","v":77},"","",null,null,null,null,"B.07","B.07",77,77]
[{"$f":"ROW()","v":78},"B.08.01.01","B","08","01","01","Progettazione preliminare ",false,null,null,null,null,{"$f":"ROW()","v":78},"","",null,null,null,null,"B.08.01","B.08",81,107]
[{"$f":"ROW()","v":79},"B.08.01.02","B","08","01","02","Cassa su progettazione preliminare cassa",false,0.04,"B.08.01.01","B.08.01.01","F",{"$f":"ROW()","v":79},78,78,"C",null,null,null,"B.08.01","B.08",81,107]
[{"$f":"ROW()","v":80},"B.08.01.03","B","08","01","03","Iva su progettazione preliminare",false,0.22,"B.08.01.01","B.08.01.02","F",{"$f":"ROW()","v":80},78,79,"I",null,null,null,"B.08.01","B.08",81,107]
[{"$f":"ROW()","v":81},"B.08.01","B","08","01","97","Totale Progettazione preliminare ",false,null,null,null,null,{"$f":"ROW()","v":81},"","",null,null,null,null,"B.08.01","B.08",81,107]
[{"$f":"ROW()","v":82},"B.08.02.01","B","08","02","01","Progettazione esecutiva ",false,null,null,null,null,{"$f":"ROW()","v":82},"","",null,null,null,null,"B.08.02","B.08",85,107]
[{"$f":"ROW()","v":83},"B.08.02.02","B","08","02","02","Cassa  su progettazione esecutiva",false,0.04,"B.08.02.01","B.08.02.01","F",{"$f":"ROW()","v":83},82,82,"C",null,null,null,"B.08.02","B.08",85,107]
[{"$f":"ROW()","v":84},"B.08.02.03","B","08","02","03","Iva su progettazione esecutiva",false,0.22,"B.08.02.01","B.08.02.02","F",{"$f":"ROW()","v":84},82,83,"I",null,null,null,"B.08.02","B.08",85,107]
[{"$f":"ROW()","v":85},"B.08.02","B","08","02","97","Totale Progettazione esecutiva ",false,null,null,null,null,{"$f":"ROW()","v":85},"","",null,null,null,null,"B.08.02","B.08",85,107]
[{"$f":"ROW()","v":86},"B.08.03.01","B","08","03","01","Direzione lavori ",false,null,null,null,null,{"$f":"ROW()","v":86},"","",null,null,null,null,"B.08.03","B.08",89,107]
[{"$f":"ROW()","v":87},"B.08.03.02","B","08","03","02","Cassa su direzione lavori",false,0.04,"B.08.03.01","B.08.03.01","F",{"$f":"ROW()","v":87},86,86,"C",null,null,null,"B.08.03","B.08",89,107]
[{"$f":"ROW()","v":88},"B.08.03.03","B","08","03","03","Iva  su direzione lavori",false,0.22,"B.08.03.01","B.08.03.02","F",{"$f":"ROW()","v":88},86,87,"I",null,null,null,"B.08.03","B.08",89,107]
[{"$f":"ROW()","v":89},"B.08.03","B","08","03","97","Totale Direzione lavori ",false,null,null,null,null,{"$f":"ROW()","v":89},"","",null,null,null,null,"B.08.03","B.08",89,107]
[{"$f":"ROW()","v":90},"B.08.04.01","B","08","04","01","Coordinamento sicurezza fase di progettazione",false,null,null,null,null,{"$f":"ROW()","v":90},"","",null,null,null,null,"B.08.04","B.08",93,107]
[{"$f":"ROW()","v":91},"B.08.04.02","B","08","04","02","Cassa su coordinamento sicurezza fase di progettazione",false,0.04,"B.08.04.01","B.08.04.01","F",{"$f":"ROW()","v":91},90,90,"C",null,null,null,"B.08.04","B.08",93,107]
[{"$f":"ROW()","v":92},"B.08.04.03","B","08","04","03","Iva  su coordinamento sicurezza fase di progettazione",false,0.22,"B.08.04.01","B.08.04.02","F",{"$f":"ROW()","v":92},90,91,"I",null,null,null,"B.08.04","B.08",93,107]
[{"$f":"ROW()","v":93},"B.08.04","B","08","04","97","Totale Coordinamento sicurezza fase di progettazione",false,null,null,null,null,{"$f":"ROW()","v":93},"","",null,null,null,null,"B.08.04","B.08",93,107]
[{"$f":"ROW()","v":94},"B.08.05.01","B","08","05","01","Coordinamento sicurezza fase di esecuzione",false,null,null,null,null,{"$f":"ROW()","v":94},"","",null,null,null,null,"B.08.05","B.08",97,107]
[{"$f":"ROW()","v":95},"B.08.05.02","B","08","05","02","Cassa su coordinamento sicurezza fase di esecuzione",false,0.04,"B.08.05.01","B.08.05.01","F",{"$f":"ROW()","v":95},94,94,"C",null,null,null,"B.08.05","B.08",97,107]
[{"$f":"ROW()","v":96},"B.08.05.03","B","08","05","03","Iva  su coordinamento sicurezza fase di esecuzione",false,0.22,"B.08.05.01","B.08.05.02","F",{"$f":"ROW()","v":96},94,95,"I",null,null,null,"B.08.05","B.08",97,107]
[{"$f":"ROW()","v":97},"B.08.05","B","08","05","97","Totale Coordinamento sicurezza fase di esecuzione",false,null,null,null,null,{"$f":"ROW()","v":97},"","",null,null,null,null,"B.08.05","B.08",97,107]
[{"$f":"ROW()","v":98},"B.08.06.01","B","08","06","01","Altri servizi tecnici",false,null,null,null,null,{"$f":"ROW()","v":98},"","",null,null,null,null,"B.08.06","B.08",101,107]
[{"$f":"ROW()","v":99},"B.08.06.02","B","08","06","02","Cassa su altri servizi tecnici",false,0.04,"B.08.06.01","B.08.06.01","F",{"$f":"ROW()","v":99},98,98,"C",null,null,null,"B.08.06","B.08",101,107]
[{"$f":"ROW()","v":100},"B.08.06.03","B","08","06","03","Iva su altri servizi tecnici",false,0.22,"B.08.06.01","B.08.06.02","F",{"$f":"ROW()","v":100},98,99,"I",null,null,null,"B.08.06","B.08",101,107]
[{"$f":"ROW()","v":101},"B.08.06",{"$f":"MID($B101,1,1)","v":"B"},{"$f":"IF(MID($B101,3,2)=\"\",\"99\",MID($B101,3,2))","v":"08"},{"$f":"IF(MID($B101,6,2)=\"\",\"98\",MID($B101,6,2))","v":"06"},{"$f":"IF(MID($B101,9,2)=\"\",\"97\",MID($B101,9,2))","v":"97"},"Totale Altri servizi tecnici",false,null,null,null,null,{"$f":"ROW()","v":101},{"$f":"IFERROR(VLOOKUP(J101,$B$5:$M$198,12,FALSE),\"\")","v":""},{"$f":"IFERROR(VLOOKUP(K101,$B$5:$M$198,12,FALSE),\"\")","v":""},null,null,null,null,{"$f":"LEFT(B101,7)","v":"B.08.06"},{"$f":"LEFT(B101,4)","v":"B.08"},{"$f":"IFERROR(VLOOKUP(T101,$B$5:$M$198,12,FALSE),0)","v":101},{"$f":"IFERROR(VLOOKUP(U101,$B$5:$M$198,12,FALSE),0)","v":107}]
[{"$f":"ROW()","v":102},"B.08.07.01","B","08","07","01","Oneri/prestazioni per conferenze di servizi",false,null,null,null,null,{"$f":"ROW()","v":102},"","",null,null,null,null,"B.08.07","B.08",105,107]
[{"$f":"ROW()","v":103},"B.08.07.02","B","08","07","02","Cassa su prestazioni per conferenza di servizi",false,0.04,"B.08.07.01","B.08.07.01","F",{"$f":"ROW()","v":103},102,102,"C",null,null,null,"B.08.07","B.08",105,107]
[null,"B.08.07.03","B","08","07","03","Iva su prestazioni su conferenze di servizi",false,0.22,"B.08.07.01","B.08.07.02","F",{"$f":"ROW()","v":104},102,103,"I",null,null,null,"B.08.07","B.08",105,107]
[null,"B.08.07","B","08","07","97","Totale Oneri/prestazioni per conferenze di servizi",false,null,null,null,null,{"$f":"ROW()","v":105},"","",null,null,null,null,"B.08.07","B.08",105,107]
[null,"B.08.08","B","08","08","97","Art.45, d.lgs. 36/2023  (incentivo 2% lavori per funzioni tecniche interne esclusa quota del 20%) ",false,null,null,null,null,{"$f":"ROW()","v":106},"","",null,null,null,null,"B.08.08","B.08",106,107]
[null,"B.08","B","08","98","97","Spese tecniche relative alla progettazione, alle attività preliminari, ivi compreso l’eventuale monitoraggio di parametri necessari ai fini della progettazione ove pertinente, al coordinamento della sicurezza in fase di progettazione, alle conferenze dei servizi, alla direzione lavori e al coordinamento della sicurezza in fase di esecuzione, all’assistenza giornaliera e contabilità, all’incentivo di cui all’articolo 45 del codice, nella misura corrispondente alle prestazioni che dovranno essere svolte dal personale dipendente ",false,null,null,null,null,{"$f":"ROW()","v":107},"","",null,null,null,null,"B.08","B.08",107,107]
[null,"B.09.01.01","B","09","01","01","Attività tecnico amministrative a supporto progettazione ",false,null,null,null,null,{"$f":"ROW()","v":108},"","",null,null,null,null,"B.09.01","B.09",111,125]
[null,"B.09.01.02","B","09","01","02","Cassa attività tecnico amministrative a supporto progettazione",false,0.04,"B.09.01.01","B.09.01.01","F",{"$f":"ROW()","v":109},108,108,"C",null,null,null,"B.09.01","B.09",111,125]
[null,"B.09.01.03","B","09","01","03","IVA  attività tecnico amministrative a supporto progettazione",false,0.22,"B.09.01.01","B.09.01.02","F",{"$f":"ROW()","v":110},108,109,"I",null,null,null,"B.09.01","B.09",111,125]
[null,"B.09.01","B","09","01","97","Totale Attività tecnico amministrative a supporto progettazione ",false,null,null,null,null,{"$f":"ROW()","v":111},"","",null,null,null,null,"B.09.01","B.09",111,125]
[null,"B.09.02.01","B","09","02","01"," Oneri di verifica della progettazione (art. 34 e succ., Allegato I.7 al d.lgs. 36/2023)",false,null,null,null,null,{"$f":"ROW()","v":112},"","",null,null,null,null,"B.09.02","B.09",115,125]
[null,"B.09.02.02","B","09","02","02","Cassa  su verifica della progettazione",false,0.04,"B.09.02.01","B.09.02.01","F",{"$f":"ROW()","v":113},112,112,"C",null,null,null,"B.09.02","B.09",115,125]
[null,"B.09.02.03","B","09","02","03","IVA su verifica della progettazione",false,0.22,"B.09.02.01","B.09.02.02","F",{"$f":"ROW()","v":114},112,113,"I",null,null,null,"B.09.02","B.09",115,125]
[null,"B.09.02","B","09","02","97"," Totale Oneri di verifica della progettazione (art. 34 e succ., Allegato I.7 al d.lgs. 36/2023)",false,null,null,null,null,{"$f":"ROW()","v":115},"","",null,null,null,null,"B.09.02","B.09",115,125]
[null,"B.09.03.01","B","09","03","01","Ufficio di supporto al Rup - 1% dell'importo a base d'asta (art.15, comma 6 del d.lgs. 36/2023)",false,0.01,"A","A","F",{"$f":"ROW()","v":116},13,13,"A",null,null,null,"B.09.03","B.09",119,125]
[null,"B.09.03.02","B","09","03","02","Cassa  su prestazioni di supporto al RUP",false,0.04,"B.09.03.01","B.09.03.01","F",{"$f":"ROW()","v":117},116,116,"C",null,null,null,"B.09.03","B.09",119,125]
[null,"B.09.03.03","B","09","03","03","IVA su prestazioni di supporto al RUP",false,0.22,"B.09.03.01","B.09.03.02","F",{"$f":"ROW()","v":118},116,117,"I",null,null,null,"B.09.03","B.09",119,125]
[null,"B.09.03","B","09","03","97","Totale Ufficio di supporto al Rup - 1% dell'importo a base d'asta (art.15, comma 6 del d.lgs. 36/2023)",false,null,null,null,null,{"$f":"ROW()","v":119},"","",null,null,null,null,"B.09.03","B.09",119,125]
[null,"B.09.04.01","B","09","04","01","Attività di verifica della progettazione",false,null,null,null,null,{"$f":"ROW()","v":120},"","",null,null,null,null,"B.09.04","B.09",123,125]
[null,"B.09.04.02","B","09","04","02","Cassa su attività di verifica della progettazione",false,0.04,"B.09.04.01","B.09.04.01","F",{"$f":"ROW()","v":121},120,120,"C",null,null,null,"B.09.04","B.09",123,125]
[null,"B.09.04.03","B","09","04","03","IVA su attività di verifica della progettazione",false,0.22,"B.09.04.01","B.09.04.02","F",{"$f":"ROW()","v":122},120,121,"I",null,null,null,"B.09.04","B.09",123,125]
[null,"B.09.04","B","09","04","97","Totale Attività di verifica della progettazione",false,null,null,null,null,{"$f":"ROW()","v":123},"","",null,null,null,null,"B.09.04","B.09",123,125]
[null,"B.09.05","B","09","05","97","Polizza rischi professionali personale interno",false,null,null,null,null,{"$f":"ROW()","v":124},"","",null,null,null,null,"B.09.05","B.09",124,125]
[null,"B.09","B","09","98","97","Spese per attività tecnico-amministrative e strumentali connesse alla progettazione, di supporto al RUP qualora si tratti di personale dipendente, di assicurazione dei progettisti qualora dipendenti dell’amministrazione, ai sensi dell’articolo 2, comma 4, del codice nonché per la verifica preventiva della progettazione ai sensi dell’articolo 42 del codice ",false,null,null,null,null,{"$f":"ROW()","v":125},"","",null,null,null,null,"B.09","B.09",125,125]
[null,"B.10","B","10","98","97","Spese di cui all’articolo 45, commi 6 e 7, del codice (20% incentivi per funzioni tecniche interne)",false,null,null,null,null,{"$f":"ROW()","v":126},"","",null,null,null,null,"B.10","B.10",126,126]
[null,"B.11.01.01","B","11","01","01","Compensi per commissioni giudicatrici ",false,null,null,null,null,{"$f":"ROW()","v":127},"","",null,null,null,null,"B.11.01","B.11",130,132]
[null,"B.11.01.02","B","11","01","02","Cassa  commissioni giudicatrici",false,0.04,"B.11.01.01","B.11.01.01","F",{"$f":"ROW()","v":128},127,127,"C",null,null,null,"B.11.01","B.11",130,132]
[null,"B.11.01.03","B","11","01","03","IVA ommissioni giudicatrici",false,0.22,"B.11.01.01","B.11.01.02","F",{"$f":"ROW()","v":129},127,128,"I",null,null,null,"B.11.01","B.11",130,132]
[null,"B.11.01","B","11","01","97","Totale Compensi per commissioni giudicatrici ",false,null,null,null,null,{"$f":"ROW()","v":130},"","",null,null,null,null,"B.11.01","B.11",130,132]
[null,"B.11.02","B","11","02","97","Altre Spese per commissioni giudicatrici",false,null,null,null,null,{"$f":"ROW()","v":131},"","",null,null,null,null,"B.11.02","B.11",131,132]
[null,"B.11","B","11","98","97","Eventuali spese per commissioni giudicatrici ",false,null,null,null,null,{"$f":"ROW()","v":132},"","",null,null,null,null,"B.11","B.11",132,132]
[null,"B.12.01.01",{"$f":"MID($B133,1,1)","v":"B"},{"$f":"IF(MID($B133,3,2)=\"\",\"99\",MID($B133,3,2))","v":"12"},{"$f":"IF(MID($B133,6,2)=\"\",\"98\",MID($B133,6,2))","v":"01"},{"$f":"IF(MID($B133,9,2)=\"\",\"97\",MID($B133,9,2))","v":"01"},"Spese pubblicità e comunicazione",false,null,null,null,null,{"$f":"ROW()","v":133},{"$f":"IFERROR(VLOOKUP(J133,$B$5:$M$198,12,FALSE),\"\")","v":""},{"$f":"IFERROR(VLOOKUP(K133,$B$5:$M$198,12,FALSE),\"\")","v":""},null,null,null,null,{"$f":"LEFT(B133,7)","v":"B.12.01"},{"$f":"LEFT(B133,4)","v":"B.12"},{"$f":"IFERROR(VLOOKUP(T133,$B$5:$M$198,12,FALSE),0)","v":135},{"$f":"IFERROR(VLOOKUP(U133,$B$5:$M$198,12,FALSE),0)","v":137}]
[null,"B.12.01.02","B","12","01","02","IVA su spese pubblicità e comunicazione",false,0.22,"B.12.01.01","B.12.01.01","F",{"$f":"ROW()","v":134},133,133,"I",null,null,null,"B.12.01","B.12",135,137]
[null,"B.12.01","B","12","01","97","Totale spese pubblivcità e comunicazione",false,null,null,null,null,{"$f":"ROW()","v":135},"","",null,null,null,null,"B.12.01","B.12",135,137]
[null,"B.12.02","B","12","02","97","Contributo ANAC",false,null,null,null,null,{"$f":"ROW()","v":136},"","",null,null,null,null,"B.12.02","B.12",136,137]
[null,"B.12","B","12","98","97","Spese per pubblicità",false,null,null,null,null,{"$f":"ROW()","v":137},"","",null,null,null,null,"B.12","B.12",137,137]
[null,"B.13.01.01","B","13","01","01","Analisi di laboratorio ",false,null,null,null,null,{"$f":"ROW()","v":138},"","",null,null,null,null,"B.13.01","B.13",141,150]
[null,"B.13.01.02","B","13","01","02","Cassa su analisi di laboratorio",false,0.04,"B.13.01.01","B.13.01.01","F",{"$f":"ROW()","v":139},138,138,"C",null,null,null,"B.13.01","B.13",141,150]
[null,"B.13.01.03","B","13","01","03","IVA su analisi di laboratorio",false,0.22,"B.13.01.01","B.13.01.02","F",{"$f":"ROW()","v":140},138,139,"I",null,null,null,"B.13.01","B.13",141,150]
[null,"B.13.01","B","13","01","97","Totale Analisi di laboratorio ",false,null,null,null,null,{"$f":"ROW()","v":141},"","",null,null,null,null,"B.13.01","B.13",141,150]
[null,"B.13.02.01","B","13","02","01","Altre verifiche tecniche e accertamenti obbligatori",false,null,null,null,null,{"$f":"ROW()","v":142},"","",null,null,null,null,"B.13.02","B.13",145,150]
[null,"B.13.02.02","B","13","02","02","Cassa su altre verifiche tecniche e accertamenti obbligatori",false,0.04,"B.13.02.01","B.13.02.01","F",{"$f":"ROW()","v":143},142,142,"C",null,null,null,"B.13.02","B.13",145,150]
[null,"B.13.02.03","B","13","02","03","Iva su altre verifiche tecniche e accertamenti obbligatori",false,0.22,"B.13.02.01","B.13.02.02","F",{"$f":"ROW()","v":144},142,143,"I",null,null,null,"B.13.02","B.13",145,150]
[null,"B.13.02","B","13","02","97","Totale Altre verifiche tecniche e accertamenti obbligatori",false,null,null,null,null,{"$f":"ROW()","v":145},"","",null,null,null,null,"B.13.02","B.13",145,150]
[null,"B.13.03.01","B","13","03","01","Spese per monitoraggio successivo dell'opera",false,null,null,null,null,{"$f":"ROW()","v":146},"","",null,null,null,null,"B.13.03","B.13",149,150]
[null,"B.13.03.02","B","13","03","02","Cassa su monitoraggio successivo dell'opera",false,0.04,"B.13.03.01","B.13.03.01","F",{"$f":"ROW()","v":147},146,146,"C",null,null,null,"B.13.03","B.13",149,150]
[null,"B.13.03.03","B","13","03","03","Iva su monitoraggio successivo dell'opera",false,0.22,"B.13.03.01","B.13.03.02","F",{"$f":"ROW()","v":148},146,147,"I",null,null,null,"B.13.03","B.13",149,150]
[null,"B.13.03","B","13","03","97","Totale Spese per monitoraggio successivo dell'opera",false,null,null,null,null,{"$f":"ROW()","v":149},"","",null,null,null,null,"B.13.03","B.13",149,150]
[null,"B.13","B","13","98","97","Spese per prove di laboratorio, accertamenti e verifiche tecniche obbligatorie o specificamente previste dal capitolato speciale d’appalto, di cui all’articolo 116 comma 11, del codice, nonché per l’eventuale monitoraggio successivo alla realizzazione dell’opera, ove prescritto ",false,null,null,null,null,{"$f":"ROW()","v":150},"","",null,null,null,null,"B.13","B.13",150,150]
[null,"B.14.01.01","B","14","01","01","Collaudo statico ",false,null,null,null,null,{"$f":"ROW()","v":151},"","",null,null,null,null,"B.14.01","B.14",154,163]
[null,"B.14.01.02","B","14","01","02","Cassa  su collaudo statico",false,0.04,"B.14.01.01","B.14.01.01","F",{"$f":"ROW()","v":152},151,151,"C",null,null,null,"B.14.01","B.14",154,163]
[null,"B.14.01.03","B","14","01","03","IVA su collaudo statico",false,0.22,"B.14.01.01","B.14.01.02","F",{"$f":"ROW()","v":153},151,152,"I",null,null,null,"B.14.01","B.14",154,163]
[null,"B.14.01","B","14","01","97","Totale Collaudo statico ",false,null,null,null,null,{"$f":"ROW()","v":154},"","",null,null,null,null,"B.14.01","B.14",154,163]
[null,"B.14.02.01","B","14","02","01","Collaudo tecnico amministrativo ",false,null,null,null,null,{"$f":"ROW()","v":155},"","",null,null,null,null,"B.14.02","B.14",158,163]
[null,"B.14.02.02","B","14","02","02","Cassa  su collaudo tecnico amministrativo",false,0.04,"B.14.02.01","B.14.02.01","F",{"$f":"ROW()","v":156},155,155,"C",null,null,null,"B.14.02","B.14",158,163]
[null,"B.14.02.03","B","14","02","03","IVA su collaudo tecnico amministrativo",false,0.22,"B.14.02.01","B.14.02.02","F",{"$f":"ROW()","v":157},155,156,"I",null,null,null,"B.14.02","B.14",158,163]
[null,"B.14.02","B","14","02","97","Totale Collaudo tecnico amministrativo ",false,null,null,null,null,{"$f":"ROW()","v":158},"","",null,null,null,null,"B.14.02","B.14",158,163]
[null,"B.14.03.01","B","14","03","01","Altri collaudi specialistici",false,null,null,null,null,{"$f":"ROW()","v":159},"","",null,null,null,null,"B.14.03","B.14",162,163]
[null,"B.14.03.02","B","14","03","02","Cassa su altri collaudi specialistici",false,0.04,"B.14.03.01","B.14.03.01","F",{"$f":"ROW()","v":160},159,159,"C",null,null,null,"B.14.03","B.14",162,163]
[null,"B.14.03.03","B","14","03","03","IVA su altri collaudi specialistici",false,0.22,"B.14.03.01","B.14.03.02","F",{"$f":"ROW()","v":161},159,160,"I",null,null,null,"B.14.03","B.14",162,163]
[null,"B.14.03","B","14","03","97","Totale Altri collaudi specialistici",false,null,null,null,null,{"$f":"ROW()","v":162},"","",null,null,null,null,"B.14.03","B.14",162,163]
[null,"B.14","B","14","98","97","Spese per collaudo tecnico-amministrativo, collaudo statico e altri eventuali collaudi specialistici ",false,null,null,null,null,{"$f":"ROW()","v":163},"","",null,null,null,null,"B.14","B.14",163,163]
[null,"B.15.01.01","B","15","01","01","Oneri per la verifica preventiva archeologica (art. 41, comma 4 del d.lgs. 36/2023)",false,null,null,null,null,{"$f":"ROW()","v":164},"","",null,null,null,null,"B.15.01","B.15",167,169]
[null,"B.15.01.02",{"$f":"MID($B165,1,1)","v":"B"},{"$f":"IF(MID($B165,3,2)=\"\",\"99\",MID($B165,3,2))","v":"15"},{"$f":"IF(MID($B165,6,2)=\"\",\"98\",MID($B165,6,2))","v":"01"},{"$f":"IF(MID($B165,9,2)=\"\",\"97\",MID($B165,9,2))","v":"02"},"Cassa su oneri per la verifica preventiva archeologica",false,0.04,"B.15.01.01","B.15.01.01","F",{"$f":"ROW()","v":165},{"$f":"IFERROR(VLOOKUP(J165,$B$5:$M$198,12,FALSE),\"\")","v":164},{"$f":"IFERROR(VLOOKUP(K165,$B$5:$M$198,12,FALSE),\"\")","v":164},"C",null,null,null,{"$f":"LEFT(B165,7)","v":"B.15.01"},{"$f":"LEFT(B165,4)","v":"B.15"},{"$f":"IFERROR(VLOOKUP(T165,$B$5:$M$198,12,FALSE),0)","v":167},{"$f":"IFERROR(VLOOKUP(U165,$B$5:$M$198,12,FALSE),0)","v":169}]
[null,"B.15.01.03","B","15","01","03","Iva su oneri per la verifica preventiva archeologica",false,0.22,"B.15.01.01","B.15.01.02","F",{"$f":"ROW()","v":166},164,165,"I",null,null,null,"B.15.01","B.15",167,169]
[null,"B.15.01","B","15","01","97","Totale Oneri per la verifica preventiva archeologica (art. 41, comma 4 del d.lgs. 36/2023)",false,null,null,null,null,{"$f":"ROW()","v":167},"","",null,null,null,null,"B.15.01","B.15",167,169]
[null,"B.15.02","B","15","02","97","Altri oneri su verifica preventiva archeologica",false,null,null,null,null,{"$f":"ROW()","v":168},"","",null,null,null,null,"B.15.02","B.15",168,169]
[null,"B.15","B","15","98","97","Spese per la verifica preventiva dell’interesse archeologico, di cui all’articolo 41, comma 4, del codice ",false,null,null,null,null,{"$f":"ROW()","v":169},"","",null,null,null,null,"B.15","B.15",169,169]
[null,"B.16.01.01","B","16","01","01","Spese per i rimedi alternativi alla tutela giurisdizionale",false,null,null,null,null,{"$f":"ROW()","v":170},"","",null,null,null,null,"B.16.01","B.16",172,177]
[null,"B.16.01.02","B","16","01","02","Altri oneri su rimedi alternativi alla tutela giusrisdizionale",false,null,null,null,null,{"$f":"ROW()","v":171},"","",null,null,null,null,"B.16.01","B.16",172,177]
[null,"B.16.01","B","16","01","97","Totale Spese per i rimedi alternativi alla tutela giurisdizionale",false,null,null,null,null,{"$f":"ROW()","v":172},"","",null,null,null,null,"B.16.01","B.16",172,177]
[null,"B.16.02.01","B","16","02","01","Spese legali",false,null,null,null,null,{"$f":"ROW()","v":173},"","",null,null,null,null,"B.16.02","B.16",176,177]
[null,"B.16.02.02","B","16","02","02","Cassa su spese legali",false,0.04,"B.16.02.01","B.16.02.01","F",{"$f":"ROW()","v":174},173,173,"C",null,null,null,"B.16.02","B.16",176,177]
[null,"B.16.02.03","B","16","02","03","Iva su spese legali",false,0.22,"B.16.02.01","B.16.02.02","F",{"$f":"ROW()","v":175},173,174,"I",null,null,null,"B.16.02","B.16",176,177]
[null,"B.16.02","B","16","02","97","Totale Spese legali",false,null,null,null,null,{"$f":"ROW()","v":176},"","",null,null,null,null,"B.16.02","B.16",176,177]
[null,"B.16","B","16","98","97","Spese per i rimedi alternativi alla tutela giurisdizionale ",false,null,null,null,null,{"$f":"ROW()","v":177},"","",null,null,null,null,"B.16","B.16",177,177]
[null,"B.17.01","B","17","01","97","Spese per le opere artistiche di cui alla legge 20 luglio 1949, n. 717 ",false,null,null,null,null,{"$f":"ROW()","v":178},"","",null,null,null,null,"B.17.01","B.17",178,180]
[null,"B.17.02","B","17","02","97","Iva su Spese per le opere artistiche di cui alla legge 20 luglio 1949, n. 717",false,0.22,"B.17.01","B.17.01","F",{"$f":"ROW()","v":179},178,178,"I",null,null,null,"B.17.02","B.17",179,180]
[null,"B.17","B","17","98","97","Totale Spese per le opere artistiche di cui alla legge 20 luglio 1949, n. 717 ",false,null,null,null,null,{"$f":"ROW()","v":180},"","",null,null,null,null,"B.17","B.17",180,180]
[null,"B.18.01.01","B","18","01","01","IVA su lavori",false,0.1,"A","A","F",{"$f":"ROW()","v":181},13,13,"I",null,null,null,"B.18.01","B.18",183,188]
[null,"B.18.01.02","B","18","01","02","IVA su Lavori in amministrazione diretta previsti in progetto ed esclusi dall’appalto",false,0.22,"B.01","B.01","F",{"$f":"ROW()","v":182},17,17,"I",null,null,null,"B.18.01","B.18",183,188]
[null,"B.18.01","B","18","01","97","TOTALE IVA SU LAVORI",false,null,null,null,null,{"$f":"ROW()","v":183},"","",null,null,null,null,"B.18.01","B.18",183,188]
[null,"B.18.02.01","B","18","02","01","Diritti Anac",false,null,null,null,null,{"$f":"ROW()","v":184},"","",null,null,null,null,"B.18.02","B.18",187,188]
[null,"B.18.02.02","B","18","02","02","Diritti di istruttoria e bolli",false,null,null,null,null,{"$f":"ROW()","v":185},"","",null,null,null,null,"B.18.02","B.18",187,188]
[null,"B.18.02.03","B","18","02","03","Diritti Sopralluogo VV FF",false,null,null,null,null,{"$f":"ROW()","v":186},"","",null,null,null,null,"B.18.02","B.18",187,188]
[null,"B.18.02","B","18","02","97","Totale diritti e bolli",false,null,null,null,null,{"$f":"ROW()","v":187},"","",null,null,null,null,"B.18.02","B.18",187,188]
[null,"B.18","B","18","98","97","IVA Lavori ed eventuali altre imposte.",false,null,null,null,null,{"$f":"ROW()","v":188},"","",null,null,null,null,"B.18","B.18",188,188]
[null,"B","B","99","98","97","TOTALE SOMME A DISPOSIZIONE DELLA STAZIONE APPALTANTE",false,null,null,null,null,{"$f":"ROW()","v":189},"","",null,null,null,null,"B","B",189,189]
[null,null,"","99","98","97",null,false,null,null,null,null,{"$f":"ROW()","v":190},"","",null,null,null,null,"","",0,0]
[null,null,"","99","98","97",null,false,null,null,null,null,{"$f":"ROW()","v":191},"","",null,null,null,null,"","",0,0]
[null,null,"","99","98","97",null,false,null,null,null,null,{"$f":"ROW()","v":192},"","",null,null,null,null,"","",0,0]
[null,null,"","99","98","97",null,false,null,null,null,null,{"$f":"ROW()","v":193},"","",null,null,null,null,"","",0,0]
[null,null,"","99","98","97",null,false,null,null,null,null,{"$f":"ROW()","v":194},"","",null,null,null,null,"","",0,0]
[null,null,"","99","98","97",null,false,null,null,null,null,{"$f":"ROW()","v":195},"","",null,null,null,null,"","",0,0]
[null,null,"","99","98","97",null,false,null,null,null,null,{"$f":"ROW()","v":196},"","",null,null,null,null,"","",0,0]
[null,null,"","99","98","97",null,false,null,null,null,null,{"$f":"ROW()","v":197},"","",null,null,null,null,"","",0,0]
[null,null,null,null,null,null,null,false,null,null,null,null,{"$f":"ROW()","v":198},"","",null,null,null,null,"","",0,0]
[1,{"$f":"A199+1","v":2},{"$f":"B199+1","v":3},4,5,6,7,8,9,10,11,12,13,14,15,{"$f":"O199+1","v":16},17,18,19,20,21,22,23]

{"sheet":"Quadro","index":2,"n_rows":244,"n_cols":129,"rows_kept":244,"cut":false,"hidden":false,"merged":[[2,126,2,128],[0,15,2,15],[0,16,2,16],[0,7,2,7]]}
["Opera:",{"$f":"Prospetto!B2","v":0},null,null,null,{"$f":"Prospetto!B3","v":0},"CUP:","Appo",null,null,null,null,null,null,null,"Controllo Dettaglio","Controllo Tipo formula",null,null,null,{"$f":"Prospetto!B5","v":1},null,null,"RUP:",{"$f":"Prospetto!B6","v":0}]
["Committente:",null,null,null,null,{"$f":"Prospetto!B7","v":0},"Criticità:",null,null,null,null,null,null,null,null,null,null,null,null,null,{"$f":"Prospetto!B8","v":0},null,null,"Settore:",{"$f":"Prospetto!B9","v":0}]
[null,null,null,null,null,"                                                                                         Versione Conto Econmico e data --->",null,"Colonna Appo",null,null,null,null,null,null,null,null,null,null,null,null,null,null,null,null,null,null,null,null,null,null,null,null,null,null,null,null,null,null,null,null,null,null,null,null,null,null,null,null,null,null,null,null,null,null,null,null,null,null,null,null,null,null,null,null,null,null,null,null,null,null,null,null,null,null,null,null,null,null,null,null,null,null,null,null,null,null,null,null,null,null,null,null,null,null,null,null,null,null,null,null,null,null,null,null,null,null,null,null,null,null,null,null,null,null,null,null,null,null,null,null,null,null,null,null,null,null,"Input"]
["Codice Attività","Cod.1","Cod.2","Cod.3","Cod.4","Descrizione","Importi\nGenerazione \nQE",null,null,null,null,null,null,"Totale controllo",null,null,"Tipo di Totale o formula",null,null,null,null,null,null,null,null,null,null,null,null,null,null,null,null,null,null,null,null,null,null,null,null,null,null,null,null,null,null,null,null,null,null,null,null,null,null,null,null,null,null,null,null,null,null,null,null,null,null,null,null,null,null,null,null,null,null,null,null,null,null,null,null,null,null,null,null,null,null,null,null,null,null,null,null,null,null,null,null,null,null,null,null,null,null,null,null,null,null,null,null,null,null,null,null,null,null,null,null,null,"riga","%","cod da","cod a","IVA \ncontributi\nATTIVIT","da","a","riga aggiunta =A",null,"Somma cassa","Somma Iva"]
[null,null,null,null,null,null,null,null,null,null,null,null,null,{"$f":"K5+L5","v":0},{"$f":"IF(N5<>R5,1,0)","v":0},null,null,null,null,null,null,null,null,null,null,null,null,null,null,null,null,null,null,null,null,null,null,null,null,null,null,null,null,null,null,null,null,null,null,null,null,null,null,null,null,null,null,null,null,null,null,null,null,null,null,null,null,null,null,null,null,null,null,null,null,null,null,null,null,null,null,null,null,null,null,null,null,null,null,null,null,null,null,null,null,null,null,null,null,null,null,null,null,null,null,null,null,null,null,null,null,null,null,null,null,null,null,null,{"$f":"ROW()","v":5},null,null,null,null,{"$f":"IFERROR(VLOOKUP(DQ5,$A$5:$DO$203,119,FALSE),\"\")","v":""},{"$f":"IFERROR(VLOOKUP(DR5,$A$5:$DO$203,119,FALSE),\"\")","v":""},null,null,{"$f":"IF($DS5=\"C\",$G5,0)","v":0},{"$f":"IF($DS5=\"I\",$G5,0)","v":0}]
[null,null,null,null,null,null,null,null,null,null,null,null,null,0,0,null,null,null,null,null,null,null,null,null,null,null,null,null,null,null,null,null,null,null,null,null,null,null,null,null,null,null,null,null,null,null,null,null,null,null,null,null,null,null,null,null,null,null,null,null,null,null,null,null,null,null,null,null,null,null,null,null,null,null,null,null,null,null,null,null,null,null,null,null,null,null,null,null,null,null,null,null,null,null,null,null,null,null,null,null,null,null,null,null,null,null,null,null,null,null,null,null,null,null,null,null,null,null,{"$f":"ROW()","v":6},null,null,null,null,"","",null,null,{"$f":"IF($DS6=\"C\",$G6,0)","v":0},{"$f":"IF($DS6=\"I\",$G6,0)","v":0}]
[null,null,null,null,null,null,null,null,null,null,null,null,null,0,0,null,null,null,null,null,null,null,null,null,null,null,null,null,null,null,null,null,null,null,null,null,null,null,null,null,null,null,null,null,null,null,null,null,null,null,null,null,null,null,null,null,null,null,null,null,null,null,null,null,null,null,null,null,null,null,null,null,null,null,null,null,null,null,null,null,null,null,null,null,null,null,null,null,null,null,null,null,null,null,null,null,null,null,null,null,null,null,null,null,null,null,null,null,null,null,null,null,null,null,null,null,null,null,{"$f":"ROW()","v":7},null,null,null,null,"","",null,null,0,0]
[null,null,null,null,null,null,null,null,null,null,null,null,null,0,0,null,null,null,null,null,null,null,null,null,null,null,null,null,null,null,null,null,null,null,null,null,null,null,null,null,null,null,null,null,null,null,null,null,null,null,null,null,null,null,null,null,null,null,null,null,null,null,null,null,null,null,null,null,null,null,null,null,null,null,null,null,null,null,null,null,null,null,null,null,null,null,null,null,null,null,null,null,null,null,null,null,null,null,null,null,null,null,null,null,null,null,null,null,null,null,null,null,null,null,null,null,null,null,{"$f":"ROW()","v":8},null,null,null,null,"","",null,null,0,0]
[null,null,null,null,null,null,null,null,null,null,null,null,null,0,0,null,null,null,null,null,null,null,null,null,null,null,null,null,null,null,null,null,null,null,null,null,null,null,null,null,null,null,null,null,null,null,null,null,null,null,null,null,null,null,null,null,null,null,null,null,null,null,null,null,null,null,null,null,null,null,null,null,null,null,null,null,null,null,null,null,null,null,null,null,null,null,null,null,null,null,null,null,null,null,null,null,null,null,null,null,null,null,null,null,null,null,null,null,null,null,null,null,null,null,null,null,null,null,{"$f":"ROW()","v":9},null,null,null,null,"","",null,null,0,0]
[null,null,null,null,null,null,null,null,null,null,null,null,null,0,0,null,null,null,null,null,null,null,null,null,null,null,null,null,null,null,null,null,null,null,null,null,null,null,null,null,null,null,null,null,null,null,null,null,null,null,null,null,null,null,null,null,null,null,null,null,null,null,null,null,null,null,null,null,null,null,null,null,null,null,null,null,null,null,null,null,null,null,null,null,null,null,null,null,null,null,null,null,null,null,null,null,null,null,null,null,null,null,null,null,null,null,null,null,null,null,null,null,null,null,null,null,null,null,{"$f":"ROW()","v":10},null,null,null,null,"","",null,null,0,0]
[null,null,null,null,null,null,null,null,null,null,null,null,null,0,0,null,null,null,null,null,null,null,null,null,null,null,null,null,null,null,null,null,null,null,null,null,null,null,null,null,null,null,null,null,null,null,null,null,null,null,null,null,null,null,null,null,null,null,null,null,null,null,null,null,null,null,null,null,null,null,null,null,null,null,null,null,null,null,null,null,null,null,null,null,null,null,null,null,null,null,null,null,null,null,null,null,null,null,null,null,null,null,null,null,null,null,null,null,null,null,null,null,null,null,null,null,null,null,{"$f":"ROW()","v":11},null,null,null,null,"","",null,null,0,0]
[null,null,null,null,null,null,null,null,null,null,null,null,null,0,0,null,null,null,null,null,null,null,null,null,null,null,null,null,null,null,null,null,null,null,null,null,null,null,null,null,null,null,null,null,null,null,null,null,null,null,null,null,null,null,null,null,null,null,null,null,null,null,null,null,null,null,null,null,null,null,null,null,null,null,null,null,null,null,null,null,null,null,null,null,null,null,null,null,null,null,null,null,null,null,null,null,null,null,null,null,null,null,null,null,null,null,null,null,null,null,null,null,null,null,null,null,null,null,{"$f":"ROW()","v":12},null,null,null,null,"","",null,null,0,0]
[null,null,null,null,null,null,null,null,null,null,null,null,null,0,0,null,null,null,null,null,null,null,null,null,null,null,null,null,null,null,null,null,null,null,null,null,null,null,null,null,null,null,null,null,null,null,null,null,null,null,null,null,null,null,null,null,null,null,null,null,null,null,null,null,null,null,null,null,null,null,null,null,null,null,null,null,null,null,null,null,null,null,null,null,null,null,null,null,null,null,null,null,null,null,null,null,null,null,null,null,null,null,null,null,null,null,null,null,null,null,null,null,null,null,null,null,null,null,{"$f":"ROW()","v":13},null,null,null,null,"","",null,null,0,0]
[null,null,null,null,null,null,null,null,null,null,null,null,null,0,0,null,null,null,null,null,null,null,null,null,null,null,null,null,null,null,null,null,null,null,null,null,null,null,null,null,null,null,null,null,null,null,null,null,null,null,null,null,null,null,null,null,null,null,null,null,null,null,null,null,null,null,null,null,null,null,null,null,null,null,null,null,null,null,null,null,null,null,null,null,null,null,null,null,null,null,null,null,null,null,null,null,null,null,null,null,null,null,null,null,null,null,null,null,null,null,null,null,null,null,null,null,null,null,{"$f":"ROW()","v":14},null,null,null,null,"","",null,null,0,0]
[null,null,null,null,null,null,null,null,null,null,null,null,null,0,0,null,null,null,null,null,null,null,null,null,null,null,null,null,null,null,null,null,null,null,null,null,null,null,null,null,null,null,null,null,null,null,null,null,null,null,null,null,null,null,null,null,null,null,null,null,null,null,null,null,null,null,null,null,null,null,null,null,null,null,null,null,null,null,null,null,null,null,null,null,null,null,null,null,null,null,null,null,null,null,null,null,null,null,null,null,null,null,null,null,null,null,null,null,null,null,null,null,null,null,null,null,null,null,{"$f":"ROW()","v":15},null,null,null,null,"","",null,null,0,0]
[null,null,null,null,null,null,null,null,null,null,null,null,null,0,0,null,null,null,null,null,null,null,null,null,null,null,null,null,null,null,null,null,null,null,null,null,null,null,null,null,null,null,null,null,null,null,null,null,null,null,null,null,null,null,null,null,null,null,null,null,null,null,null,null,null,null,null,null,null,null,null,null,null,null,null,null,null,null,null,null,null,null,null,null,null,null,null,null,null,null,null,null,null,null,null,null,null,null,null,null,null,null,null,null,null,null,null,null,null,null,null,null,null,null,null,null,null,null,{"$f":"ROW()","v":16},null,null,null,null,"","",null,null,0,0]
[null,null,null,null,null,null,null,null,null,null,null,null,null,0,0,null,null,null,null,null,null,null,null,null,null,null,null,null,null,null,null,null,null,null,null,null,null,null,null,null,null,null,null,null,null,null,null,null,null,null,null,null,null,null,null,null,null,null,null,null,null,null,null,null,null,null,null,null,null,null,null,null,null,null,null,null,null,null,null,null,null,null,null,null,null,null,null,null,null,null,null,null,null,null,null,null,null,null,null,null,null,null,null,null,null,null,null,null,null,null,null,null,null,null,null,null,null,null,{"$f":"ROW()","v":17},null,null,null,null,"","",null,null,0,0]
[null,null,null,null,null,null,null,null,null,null,null,null,null,0,0,null,null,null,null,null,null,null,null,null,null,null,null,null,null,null,null,null,null,null,null,null,null,null,null,null,null,null,null,null,null,null,null,null,null,null,null,null,null,null,null,null,null,null,null,null,null,null,null,null,null,null,null,null,null,null,null,null,null,null,null,null,null,null,null,null,null,null,null,null,null,null,null,null,null,null,null,null,null,null,null,null,null,null,null,null,null,null,null,null,null,null,null,null,null,null,null,null,null,null,null,null,null,null,{"$f":"ROW()","v":18},null,null,null,null,"","",null,null,0,0]
[null,null,null,null,null,null,null,null,null,null,null,null,null,0,0,null,null,null,null,null,null,null,null,null,null,null,null,null,null,null,null,null,null,null,null,null,null,null,null,null,null,null,null,null,null,null,null,null,null,null,null,null,null,null,null,null,null,null,null,null,null,null,null,null,null,null,null,null,null,null,null,null,null,null,null,null,null,null,null,null,null,null,null,null,null,null,null,null,null,null,null,null,null,null,null,null,null,null,null,null,null,null,null,null,null,null,null,null,null,null,null,null,null,null,null,null,null,null,{"$f":"ROW()","v":19},null,null,null,null,"","",null,null,0,0]
[null,null,null,null,null,null,null,null,null,null,null,null,null,0,0,null,null,null,null,null,null,null,null,null,null,null,null,null,null,null,null,null,null,null,null,null,null,null,null,null,null,null,null,null,null,null,null,null,null,null,null,null,null,null,null,null,null,null,null,null,null,null,null,null,null,null,null,null,null,null,null,null,null,null,null,null,null,null,null,null,null,null,null,null,null,null,null,null,null,null,null,null,null,null,null,null,null,null,null,null,null,null,null,null,null,null,null,null,null,null,null,null,null,null,null,null,null,null,{"$f":"ROW()","v":20},null,null,null,null,"","",null,null,0,0]
[null,null,null,null,null,null,null,null,null,null,null,null,null,0,0,null,null,null,null,null,null,null,null,null,null,null,null,null,null,null,null,null,null,null,null,null,null,null,null,null,null,null,null,null,null,null,null,null,null,null,null,null,null,null,null,null,null,null,null,null,null,null,null,null,null,null,null,null,null,null,null,null,null,null,null,null,null,null,null,null,null,null,null,null,null,null,null,null,null,null,null,null,null,null,null,null,null,null,null,null,null,null,null,null,null,null,null,null,null,null,null,null,null,null,null,null,null,null,{"$f":"ROW()","v":21},null,null,null,null,"","",null,null,0,0]
[null,null,null,null,null,null,null,null,null,null,null,null,null,0,0,null,null,null,null,null,null,null,null,null,null,null,null,null,null,null,null,null,null,null,null,null,null,null,null,null,null,null,null,null,null,null,null,null,null,null,null,null,null,null,null,null,null,null,null,null,null,null,null,null,null,null,null,null,null,null,null,null,null,null,null,null,null,null,null,null,null,null,null,null,null,null,null,null,null,null,null,null,null,null,null,null,null,null,null,null,null,null,null,null,null,null,null,null,null,null,null,null,null,null,null,null,null,null,{"$f":"ROW()","v":22},null,null,null,null,"","",null,null,0,0]
[null,null,null,null,null,null,null,null,null,null,null,null,null,0,0,null,null,null,null,null,null,null,null,null,null,null,null,null,null,null,null,null,null,null,null,null,null,null,null,null,null,null,null,null,null,null,null,null,null,null,null,null,null,null,null,null,null,null,null,null,null,null,null,null,null,null,null,null,null,null,null,null,null,null,null,null,null,null,null,null,null,null,null,null,null,null,null,null,null,null,null,null,null,null,null,null,null,null,null,null,null,null,null,null,null,null,null,null,null,null,null,null,null,null,null,null,null,null,{"$f":"ROW()","v":23},null,null,null,null,"","",null,null,0,0]
[null,null,null,null,null,null,null,null,null,null,null,null,null,0,0,null,null,null,null,null,null,null,null,null,null,null,null,null,null,null,null,null,null,null,null,null,null,null,null,null,null,null,null,null,null,null,null,null,null,null,null,null,null,null,null,null,null,null,null,null,null,null,null,null,null,null,null,null,null,null,null,null,null,null,null,null,null,null,null,null,null,null,null,null,null,null,null,null,null,null,null,null,null,null,null,null,null,null,null,null,null,null,null,null,null,null,null,null,null,null,null,null,null,null,null,null,null,null,{"$f":"ROW()","v":24},null,null,null,null,"","",null,null,0,0]
[null,null,null,null,null,null,null,null,null,null,null,null,null,0,0,null,null,null,null,null,null,null,null,null,null,null,null,null,null,null,null,null,null,null,null,null,null,null,null,null,null,null,null,null,null,null,null,null,null,null,null,null,null,null,null,null,null,null,null,null,null,null,null,null,null,null,null,null,null,null,null,null,null,null,null,null,null,null,null,null,null,null,null,null,null,null,null,null,null,null,null,null,null,null,null,null,null,null,null,null,null,null,null,null,null,null,null,null,null,null,null,null,null,null,null,null,null,null,{"$f":"ROW()","v":25},null,null,null,null,"","",null,null,0,0]
[null,null,null,null,null,null,null,null,null,null,null,null,null,0,0,null,null,null,null,null,null,null,null,null,null,null,null,null,null,null,null,null,null,null,null,null,null,null,null,null,null,null,null,null,null,null,null,null,null,null,null,null,null,null,null,null,null,null,null,null,null,null,null,null,null,null,null,null,null,null,null,null,null,null,null,null,null,null,null,null,null,null,null,null,null,null,null,null,null,null,null,null,null,null,null,null,null,null,null,null,null,null,null,null,null,null,null,null,null,null,null,null,null,null,null,null,null,null,{"$f":"ROW()","v":26},null,null,null,null,"","",null,null,0,0]
[null,null,null,null,null,null,null,null,null,null,null,null,null,0,0,null,null,null,null,null,null,null,null,null,null,null,null,null,null,null,null,null,null,null,null,null,null,null,null,null,null,null,null,null,null,null,null,null,null,null,null,null,null,null,null,null,null,null,null,null,null,null,null,null,null,null,null,null,null,null,null,null,null,null,null,null,null,null,null,null,null,null,null,null,null,null,null,null,null,null,null,null,null,null,null,null,null,null,null,null,null,null,null,null,null,null,null,null,null,null,null,null,null,null,null,null,null,null,{"$f":"ROW()","v":27},null,null,null,null,"","",null,null,0,0]
[null,null,null,null,null,null,null,null,null,null,null,null,null,0,0,null,null,null,null,null,null,null,null,null,null,null,null,null,null,null,null,null,null,null,null,null,null,null,null,null,null,null,null,null,null,null,null,null,null,null,null,null,null,null,null,null,null,null,null,null,null,null,null,null,null,null,null,null,null,null,null,null,null,null,null,null,null,null,null,null,null,null,null,null,null,null,null,null,null,null,null,null,null,null,null,null,null,null,null,null,null,null,null,null,null,null,null,null,null,null,null,null,null,null,null,null,null,null,{"$f":"ROW()","v":28},null,null,null,null,"","",null,null,0,0]
[null,null,null,null,null,null,null,null,null,null,null,null,null,0,0,null,null,null,null,null,null,null,null,null,null,null,null,null,null,null,null,null,null,null,null,null,null,null,null,null,null,null,null,null,null,null,null,null,null,null,null,null,null,null,null,null,null,null,null,null,null,null,null,null,null,null,null,null,null,null,null,null,null,null,null,null,null,null,null,null,null,null,null,null,null,null,null,null,null,null,null,null,null,null,null,null,null,null,null,null,null,null,null,null,null,null,null,null,null,null,null,null,null,null,null,null,null,null,{"$f":"ROW()","v":29},null,null,null,null,"","",null,null,0,0]
[null,null,null,null,null,null,null,null,null,null,null,null,null,0,0,null,null,null,null,null,null,null,null,null,null,null,null,null,null,null,null,null,null,null,null,null,null,null,null,null,null,null,null,null,null,null,null,null,null,null,null,null,null,null,null,null,null,null,null,null,null,null,null,null,null,null,null,null,null,null,null,null,null,null,null,null,null,null,null,null,null,null,null,null,null,null,null,null,null,null,null,null,null,null,null,null,null,null,null,null,null,null,null,null,null,null,null,null,null,null,null,null,null,null,null,null,null,null,{"$f":"ROW()","v":30},null,null,null,null,"","",null,null,0,0]
[null,null,null,null,null,null,null,null,null,null,null,null,null,0,0,null,null,null,null,null,null,null,null,null,null,null,null,null,null,null,null,null,null,null,null,null,null,null,null,null,null,null,null,null,null,null,null,null,null,null,null,null,null,null,null,null,null,null,null,null,null,null,null,null,null,null,null,null,null,null,null,null,null,null,null,null,null,null,null,null,null,null,null,null,null,null,null,null,null,null,null,null,null,null,null,null,null,null,null,null,null,null,null,null,null,null,null,null,null,null,null,null,null,null,null,null,null,null,{"$f":"ROW()","v":31},null,null,null,null,"","",null,null,0,0]
[null,null,null,null,null,null,null,null,null,null,null,null,null,0,0,null,null,null,null,null,null,null,null,null,null,null,null,null,null,null,null,null,null,null,null,null,null,null,null,null,null,null,null,null,null,null,null,null,null,null,null,null,null,null,null,null,null,null,null,null,null,null,null,null,null,null,null,null,null,null,null,null,null,null,null,null,null,null,null,null,null,null,null,null,null,null,null,null,null,null,null,null,null,null,null,null,null,null,null,null,null,null,null,null,null,null,null,null,null,null,null,null,null,null,null,null,null,null,{"$f":"ROW()","v":32},null,null,null,null,"","",null,null,0,0]
[null,null,null,null,null,null,null,null,null,null,null,null,null,0,0,null,null,null,null,null,null,null,null,null,null,null,null,null,null,null,null,null,null,null,null,null,null,null,null,null,null,null,null,null,null,null,null,null,null,null,null,null,null,null,null,null,null,null,null,null,null,null,null,null,null,null,null,null,null,null,null,null,null,null,null,null,null,null,null,null,null,null,null,null,null,null,null,null,null,null,null,null,null,null,null,null,null,null,null,null,null,null,null,null,null,null,null,null,null,null,null,null,null,null,null,null,null,null,{"$f":"ROW()","v":33},null,null,null,null,"","",null,null,0,0]
[null,null,null,null,null,null,null,null,null,null,null,null,null,0,0,null,null,null,null,null,null,null,null,null,null,null,null,null,null,null,null,null,null,null,null,null,null,null,null,null,null,null,null,null,null,null,null,null,null,null,null,null,null,null,null,null,null,null,null,null,null,null,null,null,null,null,null,null,null,null,null,null,null,null,null,null,null,null,null,null,null,null,null,null,null,null,null,null,null,null,null,null,null,null,null,null,null,null,null,null,null,null,null,null,null,null,null,null,null,null,null,null,null,null,null,null,null,null,{"$f":"ROW()","v":34},null,null,null,null,"","",null,null,0,0]
[null,null,null,null,null,null,null,null,null,null,null,null,null,0,0,null,null,null,null,null,null,null,null,null,null,null,null,null,null,null,null,null,null,null,null,null,null,null,null,null,null,null,null,null,null,null,null,null,null,null,null,null,null,null,null,null,null,null,null,null,null,null,null,null,null,null,null,null,null,null,null,null,null,null,null,null,null,null,null,null,null,null,null,null,null,null,null,null,null,null,null,null,null,null,null,null,null,null,null,null,null,null,null,null,null,null,null,null,null,null,null,null,null,null,null,null,null,null,{"$f":"ROW()","v":35},null,null,null,null,"","",null,null,0,0]
[null,null,null,null,null,null,null,null,null,null,null,null,null,0,0,null,null,null,null,null,null,null,null,null,null,null,null,null,null,null,null,null,null,null,null,null,null,null,null,null,null,null,null,null,null,null,null,null,null,null,null,null,null,null,null,null,null,null,null,null,null,null,null,null,null,null,null,null,null,null,null,null,null,null,null,null,null,null,null,null,null,null,null,null,null,null,null,null,null,null,null,null,null,null,null,null,null,null,null,null,null,null,null,null,null,null,null,null,null,null,null,null,null,null,null,null,null,null,{"$f":"ROW()","v":36},null,null,null,null,"","",null,null,0,0]
[null,null,null,null,null,null,null,null,null,null,null,null,null,{"$f":"K37+L37","v":0},{"$f":"IF(N37<>R37,1,0)","v":0},null,null,null,null,null,null,null,null,null,null,null,null,null,null,null,null,null,null,null,null,null,null,null,null,null,null,null,null,null,null,null,null,null,null,null,null,null,null,null,null,null,null,null,null,null,null,null,null,null,null,null,null,null,null,null,null,null,null,null,null,null,null,null,null,null,null,null,null,null,null,null,null,null,null,null,null,null,null,null,null,null,null,null,null,null,null,null,null,null,null,null,null,null,null,null,null,null,null,null,null,null,null,null,{"$f":"ROW()","v":37},null,null,null,null,{"$f":"IFERROR(VLOOKUP(DQ37,$A$5:$DO$203,119,FALSE),\"\")","v":""},{"$f":"IFERROR(VLOOKUP(DR37,$A$5:$DO$203,119,FALSE),\"\")","v":""},null,null,0,0]
[null,null,null,null,null,null,null,null,null,null,null,null,null,0,0,null,null,null,null,null,null,null,null,null,null,null,null,null,null,null,null,null,null,null,null,null,null,null,null,null,null,null,null,null,null,null,null,null,null,null,null,null,null,null,null,null,null,null,null,null,null,null,null,null,null,null,null,null,null,null,null,null,null,null,null,null,null,null,null,null,null,null,null,null,null,null,null,null,null,null,null,null,null,null,null,null,null,null,null,null,null,null,null,null,null,null,null,null,null,null,null,null,null,null,null,null,null,null,{"$f":"ROW()","v":38},null,null,null,null,"","",null,null,0,0]
[null,null,null,null,null,null,null,null,null,null,null,null,null,0,0,null,null,null,null,null,null,null,null,null,null,null,null,null,null,null,null,null,null,null,null,null,null,null,null,null,null,null,null,null,null,null,null,null,null,null,null,null,null,null,null,null,null,null,null,null,null,null,null,null,null,null,null,null,null,null,null,null,null,null,null,null,null,null,null,null,null,null,null,null,null,null,null,null,null,null,null,null,null,null,null,null,null,null,null,null,null,null,null,null,null,null,null,null,null,null,null,null,null,null,null,null,null,null,{"$f":"ROW()","v":39},null,null,null,null,"","",null,null,0,0]
[null,null,null,null,null,null,null,null,null,null,null,null,null,0,0,null,null,null,null,null,null,null,null,null,null,null,null,null,null,null,null,null,null,null,null,null,null,null,null,null,null,null,null,null,null,null,null,null,null,null,null,null,null,null,null,null,null,null,null,null,null,null,null,null,null,null,null,null,null,null,null,null,null,null,null,null,null,null,null,null,null,null,null,null,null,null,null,null,null,null,null,null,null,null,null,null,null,null,null,null,null,null,null,null,null,null,null,null,null,null,null,null,null,null,null,null,null,null,{"$f":"ROW()","v":40},null,null,null,null,"","",null,null,0,0]
[null,null,null,null,null,null,null,null,null,null,null,null,null,0,0,null,null,null,null,null,null,null,null,null,null,null,null,null,null,null,null,null,null,null,null,null,null,null,null,null,null,null,null,null,null,null,null,null,null,null,null,null,null,null,null,null,null,null,null,null,null,null,null,null,null,null,null,null,null,null,null,null,null,null,null,null,null,null,null,null,null,null,null,null,null,null,null,null,null,null,null,null,null,null,null,null,null,null,null,null,null,null,null,null,null,null,null,null,null,null,null,null,null,null,null,null,null,null,{"$f":"ROW()","v":41},null,null,null,null,"","",null,null,0,0]
[null,null,null,null,null,null,null,null,null,null,null,null,null,0,0,null,null,null,null,null,null,null,null,null,null,null,null,null,null,null,null,null,null,null,null,null,null,null,null,null,null,null,null,null,null,null,null,null,null,null,null,null,null,null,null,null,null,null,null,null,null,null,null,null,null,null,null,null,null,null,null,null,null,null,null,null,null,null,null,null,null,null,null,null,null,null,null,null,null,null,null,null,null,null,null,null,null,null,null,null,null,null,null,null,null,null,null,null,null,null,null,null,null,null,null,null,null,null,{"$f":"ROW()","v":42},null,null,null,null,"","",null,null,0,0]
[null,null,null,null,null,null,null,null,null,null,null,null,null,0,0,null,null,null,null,null,null,null,null,null,null,null,null,null,null,null,null,null,null,null,null,null,null,null,null,null,null,null,null,null,null,null,null,null,null,null,null,null,null,null,null,null,null,null,null,null,null,null,null,null,null,null,null,null,null,null,null,null,null,null,null,null,null,null,null,null,null,null,null,null,null,null,null,null,null,null,null,null,null,null,null,null,null,null,null,null,null,null,null,null,null,null,null,null,null,null,null,null,null,null,null,null,null,null,{"$f":"ROW()","v":43},null,null,null,null,"","",null,null,0,0]
[null,null,null,null,null,null,null,null,null,null,null,null,null,0,0,null,null,null,null,null,null,null,null,null,null,null,null,null,null,null,null,null,null,null,null,null,null,null,null,null,null,null,null,null,null,null,null,null,null,null,null,null,null,null,null,null,null,null,null,null,null,null,null,null,null,null,null,null,null,null,null,null,null,null,null,null,null,null,null,null,null,null,null,null,null,null,null,null,null,null,null,null,null,null,null,null,null,null,null,null,null,null,null,null,null,null,null,null,null,null,null,null,null,null,null,null,null,null,{"$f":"ROW()","v":44},null,null,null,null,"","",null,null,0,0]
[null,null,null,null,null,null,null,null,null,null,null,null,null,0,0,null,null,null,null,null,null,null,null,null,null,null,null,null,null,null,null,null,null,null,null,null,null,null,null,null,null,null,null,null,null,null,null,null,null,null,null,null,null,null,null,null,null,null,null,null,null,null,null,null,null,null,null,null,null,null,null,null,null,null,null,null,null,null,null,null,null,null,null,null,null,null,null,null,null,null,null,null,null,null,null,null,null,null,null,null,null,null,null,null,null,null,null,null,null,null,null,null,null,null,null,null,null,null,{"$f":"ROW()","v":45},null,null,null,null,"","",null,null,0,0]
[null,null,null,null,null,null,null,null,null,null,null,null,null,0,0,null,null,null,null,null,null,null,null,null,null,null,null,null,null,null,null,null,null,null,null,null,null,null,null,null,null,null,null,null,null,null,null,null,null,null,null,null,null,null,null,null,null,null,null,null,null,null,null,null,null,null,null,null,null,null,null,null,null,null,null,null,null,null,null,null,null,null,null,null,null,null,null,null,null,null,null,null,null,null,null,null,null,null,null,null,null,null,null,null,null,null,null,null,null,null,null,null,null,null,null,null,null,null,{"$f":"ROW()","v":46},null,null,null,null,"","",null,null,0,0]
[null,null,null,null,null,null,null,null,null,null,null,null,null,0,0,null,null,null,null,null,null,null,null,null,null,null,null,null,null,null,null,null,null,null,null,null,null,null,null,null,null,null,null,null,null,null,null,null,null,null,null,null,null,null,null,null,null,null,null,null,null,null,null,null,null,null,null,null,null,null,null,null,null,null,null,null,null,null,null,null,null,null,null,null,null,null,null,null,null,null,null,null,null,null,null,null,null,null,null,null,null,null,null,null,null,null,null,null,null,null,null,null,null,null,null,null,null,null,{"$f":"ROW()","v":47},null,null,null,null,"","",null,null,0,0]
[null,null,null,null,null,null,null,null,null,null,null,null,null,0,0,null,null,null,null,null,null,null,null,null,null,null,null,null,null,null,null,null,null,null,null,null,null,null,null,null,null,null,null,null,null,null,null,null,null,null,null,null,null,null,null,null,null,null,null,null,null,null,null,null,null,null,null,null,null,null,null,null,null,null,null,null,null,null,null,null,null,null,null,null,null,null,null,null,null,null,null,null,null,null,null,null,null,null,null,null,null,null,null,null,null,null,null,null,null,null,null,null,null,null,null,null,null,null,{"$f":"ROW()","v":48},null,null,null,null,"","",null,null,0,0]
[null,null,null,null,null,null,null,null,null,null,null,null,null,0,0,null,null,null,null,null,null,null,null,null,null,null,null,null,null,null,null,null,null,null,null,null,null,null,null,null,null,null,null,null,null,null,null,null,null,null,null,null,null,null,null,null,null,null,null,null,null,null,null,null,null,null,null,null,null,null,null,null,null,null,null,null,null,null,null,null,null,null,null,null,null,null,null,null,null,null,null,null,null,null,null,null,null,null,null,null,null,null,null,null,null,null,null,null,null,null,null,null,null,null,null,null,null,null,{"$f":"ROW()","v":49},null,null,null,null,"","",null,null,0,0]
[null,null,null,null,null,null,null,null,null,null,null,null,null,0,0,null,null,null,null,null,null,null,null,null,null,null,null,null,null,null,null,null,null,null,null,null,null,null,null,null,null,null,null,null,null,null,null,null,null,null,null,null,null,null,null,null,null,null,null,null,null,null,null,null,null,null,null,null,null,null,null,null,null,null,null,null,null,null,null,null,null,null,null,null,null,null,null,null,null,null,null,null,null,null,null,null,null,null,null,null,null,null,null,null,null,null,null,null,null,null,null,null,null,null,null,null,null,null,{"$f":"ROW()","v":50},null,null,null,null,"","",null,null,0,0]
[null,null,null,null,null,null,null,null,null,null,null,null,null,0,0,null,null,null,null,null,null,null,null,null,null,null,null,null,null,null,null,null,null,null,null,null,null,null,null,null,null,null,null,null,null,null,null,null,null,null,null,null,null,null,null,null,null,null,null,null,null,null,null,null,null,null,null,null,null,null,null,null,null,null,null,null,null,null,null,null,null,null,null,null,null,null,null,null,null,null,null,null,null,null,null,null,null,null,null,null,null,null,null,null,null,null,null,null,null,null,null,null,null,null,null,null,null,null,{"$f":"ROW()","v":51},null,null,null,null,"","",null,null,0,0]
[null,null,null,null,null,null,null,null,null,null,null,null,null,0,0,null,null,null,null,null,null,null,null,null,null,null,null,null,null,null,null,null,null,null,null,null,null,null,null,null,null,null,null,null,null,null,null,null,null,null,null,null,null,null,null,null,null,null,null,null,null,null,null,null,null,null,null,null,null,null,null,null,null,null,null,null,null,null,null,null,null,null,null,null,null,null,null,null,null,null,null,null,null,null,null,null,null,null,null,null,null,null,null,null,null,null,null,null,null,null,null,null,null,null,null,null,null,null,{"$f":"ROW()","v":52},null,null,null,null,"","",null,null,0,0]
[null,null,null,null,null,null,null,null,null,null,null,null,null,0,0,null,null,null,null,null,null,null,null,null,null,null,null,null,null,null,null,null,null,null,null,null,null,null,null,null,null,null,null,null,null,null,null,null,null,null,null,null,null,null,null,null,null,null,null,null,null,null,null,null,null,null,null,null,null,null,null,null,null,null,null,null,null,null,null,null,null,null,null,null,null,null,null,null,null,null,null,null,null,null,null,null,null,null,null,null,null,null,null,null,null,null,null,null,null,null,null,null,null,null,null,null,null,null,{"$f":"ROW()","v":53},null,null,null,null,"","",null,null,0,0]
[null,null,null,null,null,null,null,null,null,null,null,null,null,0,0,null,null,null,null,null,null,null,null,null,null,null,null,null,null,null,null,null,null,null,null,null,null,null,null,null,null,null,null,null,null,null,null,null,null,null,null,null,null,null,null,null,null,null,null,null,null,null,null,null,null,null,null,null,null,null,null,null,null,null,null,null,null,null,null,null,null,null,null,null,null,null,null,null,null,null,null,null,null,null,null,null,null,null,null,null,null,null,null,null,null,null,null,null,null,null,null,null,null,null,null,null,null,null,{"$f":"ROW()","v":54},null,null,null,null,"","",null,null,0,0]
[null,null,null,null,null,null,null,null,null,null,null,null,null,0,0,null,null,null,null,null,null,null,null,null,null,null,null,null,null,null,null,null,null,null,null,null,null,null,null,null,null,null,null,null,null,null,null,null,null,null,null,null,null,null,null,null,null,null,null,null,null,null,null,null,null,null,null,null,null,null,null,null,null,null,null,null,null,null,null,null,null,null,null,null,null,null,null,null,null,null,null,null,null,null,null,null,null,null,null,null,null,null,null,null,null,null,null,null,null,null,null,null,null,null,null,null,null,null,{"$f":"ROW()","v":55},null,null,null,null,"","",null,null,0,0]
[null,null,null,null,null,null,null,null,null,null,null,null,null,0,0,null,null,null,null,null,null,null,null,null,null,null,null,null,null,null,null,null,null,null,null,null,null,null,null,null,null,null,null,null,null,null,null,null,null,null,null,null,null,null,null,null,null,null,null,null,null,null,null,null,null,null,null,null,null,null,null,null,null,null,null,null,null,null,null,null,null,null,null,null,null,null,null,null,null,null,null,null,null,null,null,null,null,null,null,null,null,null,null,null,null,null,null,null,null,null,null,null,null,null,null,null,null,null,{"$f":"ROW()","v":56},null,null,null,null,"","",null,null,0,0]
[null,null,null,null,null,null,null,null,null,null,null,null,null,0,0,null,null,null,null,null,null,null,null,null,null,null,null,null,null,null,null,null,null,null,null,null,null,null,null,null,null,null,null,null,null,null,null,null,null,null,null,null,null,null,null,null,null,null,null,null,null,null,null,null,null,null,null,null,null,null,null,null,null,null,null,null,null,null,null,null,null,null,null,null,null,null,null,null,null,null,null,null,null,null,null,null,null,null,null,null,null,null,null,null,null,null,null,null,null,null,null,null,null,null,null,null,null,null,{"$f":"ROW()","v":57},null,null,null,null,"","",null,null,0,0]
[null,null,null,null,null,null,null,null,null,null,null,null,null,0,0,null,null,null,null,null,null,null,null,null,null,null,null,null,null,null,null,null,null,null,null,null,null,null,null,null,null,null,null,null,null,null,null,null,null,null,null,null,null,null,null,null,null,null,null,null,null,null,null,null,null,null,null,null,null,null,null,null,null,null,null,null,null,null,null,null,null,null,null,null,null,null,null,null,null,null,null,null,null,null,null,null,null,null,null,null,null,null,null,null,null,null,null,null,null,null,null,null,null,null,null,null,null,null,{"$f":"ROW()","v":58},null,null,null,null,"","",null,null,0,0]
[null,null,null,null,null,null,null,null,null,null,null,null,null,0,0,null,null,null,null,null,null,null,null,null,null,null,null,null,null,null,null,null,null,null,null,null,null,null,null,null,null,null,null,null,null,null,null,null,null,null,null,null,null,null,null,null,null,null,null,null,null,null,null,null,null,null,null,null,null,null,null,null,null,null,null,null,null,null,null,null,null,null,null,null,null,null,null,null,null,null,null,null,null,null,null,null,null,null,null,null,null,null,null,null,null,null,null,null,null,null,null,null,null,null,null,null,null,null,{"$f":"ROW()","v":59},null,null,null,null,"","",null,null,0,0]
[null,null,null,null,null,null,null,null,null,null,null,null,null,0,0,null,null,null,null,null,null,null,null,null,null,null,null,null,null,null,null,null,null,null,null,null,null,null,null,null,null,null,null,null,null,null,null,null,null,null,null,null,null,null,null,null,null,null,null,null,null,null,null,null,null,null,null,null,null,null,null,null,null,null,null,null,null,null,null,null,null,null,null,null,null,null,null,null,null,null,null,null,null,null,null,null,null,null,null,null,null,null,null,null,null,null,null,null,null,null,null,null,null,null,null,null,null,null,{"$f":"ROW()","v":60},null,null,null,null,"","",null,null,0,0]
[null,null,null,null,null,null,null,null,null,null,null,null,null,0,0,null,null,null,null,null,null,null,null,null,null,null,null,null,null,null,null,null,null,null,null,null,null,null,null,null,null,null,null,null,null,null,null,null,null,null,null,null,null,null,null,null,null,null,null,null,null,null,null,null,null,null,null,null,null,null,null,null,null,null,null,null,null,null,null,null,null,null,null,null,null,null,null,null,null,null,null,null,null,null,null,null,null,null,null,null,null,null,null,null,null,null,null,null,null,null,null,null,null,null,null,null,null,null,{"$f":"ROW()","v":61},null,null,null,null,"","",null,null,0,0]
[null,null,null,null,null,null,null,null,null,null,null,null,null,0,0,null,null,null,null,null,null,null,null,null,null,null,null,null,null,null,null,null,null,null,null,null,null,null,null,null,null,null,null,null,null,null,null,null,null,null,null,null,null,null,null,null,null,null,null,null,null,null,null,null,null,null,null,null,null,null,null,null,null,null,null,null,null,null,null,null,null,null,null,null,null,null,null,null,null,null,null,null,null,null,null,null,null,null,null,null,null,null,null,null,null,null,null,null,null,null,null,null,null,null,null,null,null,null,{"$f":"ROW()","v":62},null,null,null,null,"","",null,null,0,0]
[null,null,null,null,null,null,null,null,null,null,null,null,null,0,0,null,null,null,null,null,null,null,null,null,null,null,null,null,null,null,null,null,null,null,null,null,null,null,null,null,null,null,null,null,null,null,null,null,null,null,null,null,null,null,null,null,null,null,null,null,null,null,null,null,null,null,null,null,null,null,null,null,null,null,null,null,null,null,null,null,null,null,null,null,null,null,null,null,null,null,null,null,null,null,null,null,null,null,null,null,null,null,null,null,null,null,null,null,null,null,null,null,null,null,null,null,null,null,{"$f":"ROW()","v":63},null,null,null,null,"","",null,null,0,0]
[null,null,null,null,null,null,null,null,null,null,null,null,null,0,0,null,null,null,null,null,null,null,null,null,null,null,null,null,null,null,null,null,null,null,null,null,null,null,null,null,null,null,null,null,null,null,null,null,null,null,null,null,null,null,null,null,null,null,null,null,null,null,null,null,null,null,null,null,null,null,null,null,null,null,null,null,null,null,null,null,null,null,null,null,null,null,null,null,null,null,null,null,null,null,null,null,null,null,null,null,null,null,null,null,null,null,null,null,null,null,null,null,null,null,null,null,null,null,{"$f":"ROW()","v":64},null,null,null,null,"","",null,null,0,0]
[null,null,null,null,null,null,null,null,null,null,null,null,null,0,0,null,null,null,null,null,null,null,null,null,null,null,null,null,null,null,null,null,null,null,null,null,null,null,null,null,null,null,null,null,null,null,null,null,null,null,null,null,null,null,null,null,null,null,null,null,null,null,null,null,null,null,null,null,null,null,null,null,null,null,null,null,null,null,null,null,null,null,null,null,null,null,null,null,null,null,null,null,null,null,null,null,null,null,null,null,null,null,null,null,null,null,null,null,null,null,null,null,null,null,null,null,null,null,{"$f":"ROW()","v":65},null,null,null,null,"","",null,null,0,0]
[null,null,null,null,null,null,null,null,null,null,null,null,null,0,0,null,null,null,null,null,null,null,null,null,null,null,null,null,null,null,null,null,null,null,null,null,null,null,null,null,null,null,null,null,null,null,null,null,null,null,null,null,null,null,null,null,null,null,null,null,null,null,null,null,null,null,null,null,null,null,null,null,null,null,null,null,null,null,null,null,null,null,null,null,null,null,null,null,null,null,null,null,null,null,null,null,null,null,null,null,null,null,null,null,null,null,null,null,null,null,null,null,null,null,null,null,null,null,{"$f":"ROW()","v":66},null,null,null,null,"","",null,null,0,0]
[null,null,null,null,null,null,null,null,null,null,null,null,null,0,0,null,null,null,null,null,null,null,null,null,null,null,null,null,null,null,null,null,null,null,null,null,null,null,null,null,null,null,null,null,null,null,null,null,null,null,null,null,null,null,null,null,null,null,null,null,null,null,null,null,null,null,null,null,null,null,null,null,null,null,null,null,null,null,null,null,null,null,null,null,null,null,null,null,null,null,null,null,null,null,null,null,null,null,null,null,null,null,null,null,null,null,null,null,null,null,null,null,null,null,null,null,null,null,{"$f":"ROW()","v":67},null,null,null,null,"","",null,null,0,0]
[null,null,null,null,null,null,null,null,null,null,null,null,null,0,0,null,null,null,null,null,null,null,null,null,null,null,null,null,null,null,null,null,null,null,null,null,null,null,null,null,null,null,null,null,null,null,null,null,null,null,null,null,null,null,null,null,null,null,null,null,null,null,null,null,null,null,null,null,null,null,null,null,null,null,null,null,null,null,null,null,null,null,null,null,null,null,null,null,null,null,null,null,null,null,null,null,null,null,null,null,null,null,null,null,null,null,null,null,null,null,null,null,null,null,null,null,null,null,{"$f":"ROW()","v":68},null,null,null,null,"","",null,null,0,0]
[null,null,null,null,null,null,null,null,null,null,null,null,null,{"$f":"K69+L69","v":0},{"$f":"IF(N69<>R69,1,0)","v":0},null,null,null,null,null,null,null,null,null,null,null,null,null,null,null,null,null,null,null,null,null,null,null,null,null,null,null,null,null,null,null,null,null,null,null,null,null,null,null,null,null,null,null,null,null,null,null,null,null,null,null,null,null,null,null,null,null,null,null,null,null,null,null,null,null,null,null,null,null,null,null,null,null,null,null,null,null,null,null,null,null,null,null,null,null,null,null,null,null,null,null,null,null,null,null,null,null,null,null,null,null,null,null,{"$f":"ROW()","v":69},null,null,null,null,{"$f":"IFERROR(VLOOKUP(DQ69,$A$5:$DO$203,119,FALSE),\"\")","v":""},{"$f":"IFERROR(VLOOKUP(DR69,$A$5:$DO$203,119,FALSE),\"\")","v":""},null,null,0,0]
[null,null,null,null,null,null,null,null,null,null,null,null,null,0,0,null,null,null,null,null,null,null,null,null,null,null,null,null,null,null,null,null,null,null,null,null,null,null,null,null,null,null,null,null,null,null,null,null,null,null,null,null,null,null,null,null,null,null,null,null,null,null,null,null,null,null,null,null,null,null,null,null,null,null,null,null,null,null,null,null,null,null,null,null,null,null,null,null,null,null,null,null,null,null,null,null,null,null,null,null,null,null,null,null,null,null,null,null,null,null,null,null,null,null,null,null,null,null,{"$f":"ROW()","v":70},null,null,null,null,"","",null,null,{"$f":"IF($DS70=\"C\",$G70,0)","v":0},{"$f":"IF($DS70=\"I\",$G70,0)","v":0}]
[null,null,null,null,null,null,null,null,null,null,null,null,null,0,0,null,null,null,null,null,null,null,null,null,null,null,null,null,null,null,null,null,null,null,null,null,null,null,null,null,null,null,null,null,null,null,null,null,null,null,null,null,null,null,null,null,null,null,null,null,null,null,null,null,null,null,null,null,null,null,null,null,null,null,null,null,null,null,null,null,null,null,null,null,null,null,null,null,null,null,null,null,null,null,null,null,null,null,null,null,null,null,null,null,null,null,null,null,null,null,null,null,null,null,null,null,null,null,{"$f":"ROW()","v":71},null,null,null,null,"","",null,null,0,0]
[null,null,null,null,null,null,null,null,null,null,null,null,null,0,0,null,null,null,null,null,null,null,null,null,null,null,null,null,null,null,null,null,null,null,null,null,null,null,null,null,null,null,null,null,null,null,null,null,null,null,null,null,null,null,null,null,null,null,null,null,null,null,null,null,null,null,null,null,null,null,null,null,null,null,null,null,null,null,null,null,null,null,null,null,null,null,null,null,null,null,null,null,null,null,null,null,null,null,null,null,null,null,null,null,null,null,null,null,null,null,null,null,null,null,null,null,null,null,{"$f":"ROW()","v":72},null,null,null,null,"","",null,null,0,0]
[null,null,null,null,null,null,null,null,null,null,null,null,null,0,0,null,null,null,null,null,null,null,null,null,null,null,null,null,null,null,null,null,null,null,null,null,null,null,null,null,null,null,null,null,null,null,null,null,null,null,null,null,null,null,null,null,null,null,null,null,null,null,null,null,null,null,null,null,null,null,null,null,null,null,null,null,null,null,null,null,null,null,null,null,null,null,null,null,null,null,null,null,null,null,null,null,null,null,null,null,null,null,null,null,null,null,null,null,null,null,null,null,null,null,null,null,null,null,{"$f":"ROW()","v":73},null,null,null,null,"","",null,null,0,0]
[null,null,null,null,null,null,null,null,null,null,null,null,null,0,0,null,null,null,null,null,null,null,null,null,null,null,null,null,null,null,null,null,null,null,null,null,null,null,null,null,null,null,null,null,null,null,null,null,null,null,null,null,null,null,null,null,null,null,null,null,null,null,null,null,null,null,null,null,null,null,null,null,null,null,null,null,null,null,null,null,null,null,null,null,null,null,null,null,null,null,null,null,null,null,null,null,null,null,null,null,null,null,null,null,null,null,null,null,null,null,null,null,null,null,null,null,null,null,{"$f":"ROW()","v":74},null,null,null,null,"","",null,null,0,0]
[null,null,null,null,null,null,null,null,null,null,null,null,null,0,0,null,null,null,null,null,null,null,null,null,null,null,null,null,null,null,null,null,null,null,null,null,null,null,null,null,null,null,null,null,null,null,null,null,null,null,null,null,null,null,null,null,null,null,null,null,null,null,null,null,null,null,null,null,null,null,null,null,null,null,null,null,null,null,null,null,null,null,null,null,null,null,null,null,null,null,null,null,null,null,null,null,null,null,null,null,null,null,null,null,null,null,null,null,null,null,null,null,null,null,null,null,null,null,{"$f":"ROW()","v":75},null,null,null,null,"","",null,null,0,0]
[null,null,null,null,null,null,null,null,null,null,null,null,null,0,0,null,null,null,null,null,null,null,null,null,null,null,null,null,null,null,null,null,null,null,null,null,null,null,null,null,null,null,null,null,null,null,null,null,null,null,null,null,null,null,null,null,null,null,null,null,null,null,null,null,null,null,null,null,null,null,null,null,null,null,null,null,null,null,null,null,null,null,null,null,null,null,null,null,null,null,null,null,null,null,null,null,null,null,null,null,null,null,null,null,null,null,null,null,null,null,null,null,null,null,null,null,null,null,{"$f":"ROW()","v":76},null,null,null,null,"","",null,null,0,0]
[null,null,null,null,null,null,null,null,null,null,null,null,null,0,0,null,null,null,null,null,null,null,null,null,null,null,null,null,null,null,null,null,null,null,null,null,null,null,null,null,null,null,null,null,null,null,null,null,null,null,null,null,null,null,null,null,null,null,null,null,null,null,null,null,null,null,null,null,null,null,null,null,null,null,null,null,null,null,null,null,null,null,null,null,null,null,null,null,null,null,null,null,null,null,null,null,null,null,null,null,null,null,null,null,null,null,null,null,null,null,null,null,null,null,null,null,null,null,{"$f":"ROW()","v":77},null,null,null,null,"","",null,null,0,0]
[null,null,null,null,null,null,null,null,null,null,null,null,null,0,0,null,null,null,null,null,null,null,null,null,null,null,null,null,null,null,null,null,null,null,null,null,null,null,null,null,null,null,null,null,null,null,null,null,null,null,null,null,null,null,null,null,null,null,null,null,null,null,null,null,null,null,null,null,null,null,null,null,null,null,null,null,null,null,null,null,null,null,null,null,null,null,null,null,null,null,null,null,null,null,null,null,null,null,null,null,null,null,null,null,null,null,null,null,null,null,null,null,null,null,null,null,null,null,{"$f":"ROW()","v":78},null,null,null,null,"","",null,null,0,0]
[null,null,null,null,null,null,null,null,null,null,null,null,null,0,0,null,null,null,null,null,null,null,null,null,null,null,null,null,null,null,null,null,null,null,null,null,null,null,null,null,null,null,null,null,null,null,null,null,null,null,null,null,null,null,null,null,null,null,null,null,null,null,null,null,null,null,null,null,null,null,null,null,null,null,null,null,null,null,null,null,null,null,null,null,null,null,null,null,null,null,null,null,null,null,null,null,null,null,null,null,null,null,null,null,null,null,null,null,null,null,null,null,null,null,null,null,null,null,{"$f":"ROW()","v":79},null,null,null,null,"","",null,null,0,0]
[null,null,null,null,null,null,null,null,null,null,null,null,null,0,0,null,null,null,null,null,null,null,null,null,null,null,null,null,null,null,null,null,null,null,null,null,null,null,null,null,null,null,null,null,null,null,null,null,null,null,null,null,null,null,null,null,null,null,null,null,null,null,null,null,null,null,null,null,null,null,null,null,null,null,null,null,null,null,null,null,null,null,null,null,null,null,null,null,null,null,null,null,null,null,null,null,null,null,null,null,null,null,null,null,null,null,null,null,null,null,null,null,null,null,null,null,null,null,{"$f":"ROW()","v":80},null,null,null,null,"","",null,null,0,0]
[null,null,null,null,null,null,null,null,null,null,null,null,null,0,0,null,null,null,null,null,null,null,null,null,null,null,null,null,null,null,null,null,null,null,null,null,null,null,null,null,null,null,null,null,null,null,null,null,null,null,null,null,null,null,null,null,null,null,null,null,null,null,null,null,null,null,null,null,null,null,null,null,null,null,null,null,null,null,null,null,null,null,null,null,null,null,null,null,null,null,null,null,null,null,null,null,null,null,null,null,null,null,null,null,null,null,null,null,null,null,null,null,null,null,null,null,null,null,{"$f":"ROW()","v":81},null,null,null,null,"","",null,null,0,0]
[null,null,null,null,null,null,null,null,null,null,null,null,null,0,0,null,null,null,null,null,null,null,null,null,null,null,null,null,null,null,null,null,null,null,null,null,null,null,null,null,null,null,null,null,null,null,null,null,null,null,null,null,null,null,null,null,null,null,null,null,null,null,null,null,null,null,null,null,null,null,null,null,null,null,null,null,null,null,null,null,null,null,null,null,null,null,null,null,null,null,null,null,null,null,null,null,null,null,null,null,null,null,null,null,null,null,null,null,null,null,null,null,null,null,null,null,null,null,{"$f":"ROW()","v":82},null,null,null,null,"","",null,null,0,0]
[null,null,null,null,null,null,null,null,null,null,null,null,null,0,0,null,null,null,null,null,null,null,null,null,null,null,null,null,null,null,null,null,null,null,null,null,null,null,null,null,null,null,null,null,null,null,null,null,null,null,null,null,null,null,null,null,null,null,null,null,null,null,null,null,null,null,null,null,null,null,null,null,null,null,null,null,null,null,null,null,null,null,null,null,null,null,null,null,null,null,null,null,null,null,null,null,null,null,null,null,null,null,null,null,null,null,null,null,null,null,null,null,null,null,null,null,null,null,{"$f":"ROW()","v":83},null,null,null,null,"","",null,null,0,0]
[null,null,null,null,null,null,null,null,null,null,null,null,null,0,0,null,null,null,null,null,null,null,null,null,null,null,null,null,null,null,null,null,null,null,null,null,null,null,null,null,null,null,null,null,null,null,null,null,null,null,null,null,null,null,null,null,null,null,null,null,null,null,null,null,null,null,null,null,null,null,null,null,null,null,null,null,null,null,null,null,null,null,null,null,null,null,null,null,null,null,null,null,null,null,null,null,null,null,null,null,null,null,null,null,null,null,null,null,null,null,null,null,null,null,null,null,null,null,{"$f":"ROW()","v":84},null,null,null,null,"","",null,null,0,0]
[null,null,null,null,null,null,null,null,null,null,null,null,null,0,0,null,null,null,null,null,null,null,null,null,null,null,null,null,null,null,null,null,null,null,null,null,null,null,null,null,null,null,null,null,null,null,null,null,null,null,null,null,null,null,null,null,null,null,null,null,null,null,null,null,null,null,null,null,null,null,null,null,null,null,null,null,null,null,null,null,null,null,null,null,null,null,null,null,null,null,null,null,null,null,null,null,null,null,null,null,null,null,null,null,null,null,null,null,null,null,null,null,null,null,null,null,null,null,{"$f":"ROW()","v":85},null,null,null,null,"","",null,null,0,0]
[null,null,null,null,null,null,null,null,null,null,null,null,null,0,0,null,null,null,null,null,null,null,null,null,null,null,null,null,null,null,null,null,null,null,null,null,null,null,null,null,null,null,null,null,null,null,null,null,null,null,null,null,null,null,null,null,null,null,null,null,null,null,null,null,null,null,null,null,null,null,null,null,null,null,null,null,null,null,null,null,null,null,null,null,null,null,null,null,null,null,null,null,null,null,null,null,null,null,null,null,null,null,null,null,null,null,null,null,null,null,null,null,null,null,null,null,null,null,{"$f":"ROW()","v":86},null,null,null,null,"","",null,null,0,0]
[null,null,null,null,null,null,null,null,null,null,null,null,null,0,0,null,null,null,null,null,null,null,null,null,null,null,null,null,null,null,null,null,null,null,null,null,null,null,null,null,null,null,null,null,null,null,null,null,null,null,null,null,null,null,null,null,null,null,null,null,null,null,null,null,null,null,null,null,null,null,null,null,null,null,null,null,null,null,null,null,null,null,null,null,null,null,null,null,null,null,null,null,null,null,null,null,null,null,null,null,null,null,null,null,null,null,null,null,null,null,null,null,null,null,null,null,null,null,{"$f":"ROW()","v":87},null,null,null,null,"","",null,null,0,0]
[null,null,null,null,null,null,null,null,null,null,null,null,null,0,0,null,null,null,null,null,null,null,null,null,null,null,null,null,null,null,null,null,null,null,null,null,null,null,null,null,null,null,null,null,null,null,null,null,null,null,null,null,null,null,null,null,null,null,null,null,null,null,null,null,null,null,null,null,null,null,null,null,null,null,null,null,null,null,null,null,null,null,null,null,null,null,null,null,null,null,null,null,null,null,null,null,null,null,null,null,null,null,null,null,null,null,null,null,null,null,null,null,null,null,null,null,null,null,{"$f":"ROW()","v":88},null,null,null,null,"","",null,null,0,0]
[null,null,null,null,null,null,null,null,null,null,null,null,null,0,0,null,null,null,null,null,null,null,null,null,null,null,null,null,null,null,null,null,null,null,null,null,null,null,null,null,null,null,null,null,null,null,null,null,null,null,null,null,null,null,null,null,null,null,null,null,null,null,null,null,null,null,null,null,null,null,null,null,null,null,null,null,null,null,null,null,null,null,null,null,null,null,null,null,null,null,null,null,null,null,null,null,null,null,null,null,null,null,null,null,null,null,null,null,null,null,null,null,null,null,null,null,null,null,{"$f":"ROW()","v":89},null,null,null,null,"","",null,null,0,0]
[null,null,null,null,null,null,null,null,null,null,null,null,null,0,0,null,null,null,null,null,null,null,null,null,null,null,null,null,null,null,null,null,null,null,null,null,null,null,null,null,null,null,null,null,null,null,null,null,null,null,null,null,null,null,null,null,null,null,null,null,null,null,null,null,null,null,null,null,null,null,null,null,null,null,null,null,null,null,null,null,null,null,null,null,null,null,null,null,null,null,null,null,null,null,null,null,null,null,null,null,null,null,null,null,null,null,null,null,null,null,null,null,null,null,null,null,null,null,{"$f":"ROW()","v":90},null,null,null,null,"","",null,null,0,0]
[null,null,null,null,null,null,null,null,null,null,null,null,null,0,0,null,null,null,null,null,null,null,null,null,null,null,null,null,null,null,null,null,null,null,null,null,null,null,null,null,null,null,null,null,null,null,null,null,null,null,null,null,null,null,null,null,null,null,null,null,null,null,null,null,null,null,null,null,null,null,null,null,null,null,null,null,null,null,null,null,null,null,null,null,null,null,null,null,null,null,null,null,null,null,null,null,null,null,null,null,null,null,null,null,null,null,null,null,null,null,null,null,null,null,null,null,null,null,{"$f":"ROW()","v":91},null,null,null,null,"","",null,null,0,0]
[null,null,null,null,null,null,null,null,null,null,null,null,null,0,0,null,null,null,null,null,null,null,null,null,null,null,null,null,null,null,null,null,null,null,null,null,null,null,null,null,null,null,null,null,null,null,null,null,null,null,null,null,null,null,null,null,null,null,null,null,null,null,null,null,null,null,null,null,null,null,null,null,null,null,null,null,null,null,null,null,null,null,null,null,null,null,null,null,null,null,null,null,null,null,null,null,null,null,null,null,null,null,null,null,null,null,null,null,null,null,null,null,null,null,null,null,null,null,{"$f":"ROW()","v":92},null,null,null,null,"","",null,null,0,0]
[null,null,null,null,null,null,null,null,null,null,null,null,null,0,0,null,null,null,null,null,null,null,null,null,null,null,null,null,null,null,null,null,null,null,null,null,null,null,null,null,null,null,null,null,null,null,null,null,null,null,null,null,null,null,null,null,null,null,null,null,null,null,null,null,null,null,null,null,null,null,null,null,null,null,null,null,null,null,null,null,null,null,null,null,null,null,null,null,null,null,null,null,null,null,null,null,null,null,null,null,null,null,null,null,null,null,null,null,null,null,null,null,null,null,null,null,null,null,{"$f":"ROW()","v":93},null,null,null,null,"","",null,null,0,0]
[null,null,null,null,null,null,null,null,null,null,null,null,null,0,0,null,null,null,null,null,null,null,null,null,null,null,null,null,null,null,null,null,null,null,null,null,null,null,null,null,null,null,null,null,null,null,null,null,null,null,null,null,null,null,null,null,null,null,null,null,null,null,null,null,null,null,null,null,null,null,null,null,null,null,null,null,null,null,null,null,null,null,null,null,null,null,null,null,null,null,null,null,null,null,null,null,null,null,null,null,null,null,null,null,null,null,null,null,null,null,null,null,null,null,null,null,null,null,{"$f":"ROW()","v":94},null,null,null,null,"","",null,null,0,0]
[null,null,null,null,null,null,null,null,null,null,null,null,null,0,0,null,null,null,null,null,null,null,null,null,null,null,null,null,null,null,null,null,null,null,null,null,null,null,null,null,null,null,null,null,null,null,null,null,null,null,null,null,null,null,null,null,null,null,null,null,null,null,null,null,null,null,null,null,null,null,null,null,null,null,null,null,null,null,null,null,null,null,null,null,null,null,null,null,null,null,null,null,null,null,null,null,null,null,null,null,null,null,null,null,null,null,null,null,null,null,null,null,null,null,null,null,null,null,{"$f":"ROW()","v":95},null,null,null,null,"","",null,null,0,0]
[null,null,null,null,null,null,null,null,null,null,null,null,null,0,0,null,null,null,null,null,null,null,null,null,null,null,null,null,null,null,null,null,null,null,null,null,null,null,null,null,null,null,null,null,null,null,null,null,null,null,null,null,null,null,null,null,null,null,null,null,null,null,null,null,null,null,null,null,null,null,null,null,null,null,null,null,null,null,null,null,null,null,null,null,null,null,null,null,null,null,null,null,null,null,null,null,null,null,null,null,null,null,null,null,null,null,null,null,null,null,null,null,null,null,null,null,null,null,{"$f":"ROW()","v":96},null,null,null,null,"","",null,null,0,0]
[null,null,null,null,null,null,null,null,null,null,null,null,null,0,0,null,null,null,null,null,null,null,null,null,null,null,null,null,null,null,null,null,null,null,null,null,null,null,null,null,null,null,null,null,null,null,null,null,null,null,null,null,null,null,null,null,null,null,null,null,null,null,null,null,null,null,null,null,null,null,null,null,null,null,null,null,null,null,null,null,null,null,null,null,null,null,null,null,null,null,null,null,null,null,null,null,null,null,null,null,null,null,null,null,null,null,null,null,null,null,null,null,null,null,null,null,null,null,{"$f":"ROW()","v":97},null,null,null,null,"","",null,null,0,0]
[null,null,null,null,null,null,null,null,null,null,null,null,null,0,0,null,null,null,null,null,null,null,null,null,null,null,null,null,null,null,null,null,null,null,null,null,null,null,null,null,null,null,null,null,null,null,null,null,null,null,null,null,null,null,null,null,null,null,null,null,null,null,null,null,null,null,null,null,null,null,null,null,null,null,null,null,null,null,null,null,null,null,null,null,null,null,null,null,null,null,null,null,null,null,null,null,null,null,null,null,null,null,null,null,null,null,null,null,null,null,null,null,null,null,null,null,null,null,{"$f":"ROW()","v":98},null,null,null,null,"","",null,null,0,0]
[null,null,null,null,null,null,null,null,null,null,null,null,null,0,0,null,null,null,null,null,null,null,null,null,null,null,null,null,null,null,null,null,null,null,null,null,null,null,null,null,null,null,null,null,null,null,null,null,null,null,null,null,null,null,null,null,null,null,null,null,null,null,null,null,null,null,null,null,null,null,null,null,null,null,null,null,null,null,null,null,null,null,null,null,null,null,null,null,null,null,null,null,null,null,null,null,null,null,null,null,null,null,null,null,null,null,null,null,null,null,null,null,null,null,null,null,null,null,{"$f":"ROW()","v":99},null,null,null,null,"","",null,null,0,0]
[null,null,null,null,null,null,null,null,null,null,null,null,null,0,0,null,null,null,null,null,null,null,null,null,null,null,null,null,null,null,null,null,null,null,null,null,null,null,null,null,null,null,null,null,null,null,null,null,null,null,null,null,null,null,null,null,null,null,null,null,null,null,null,null,null,null,null,null,null,null,null,null,null,null,null,null,null,null,null,null,null,null,null,null,null,null,null,null,null,null,null,null,null,null,null,null,null,null,null,null,null,null,null,null,null,null,null,null,null,null,null,null,null,null,null,null,null,null,{"$f":"ROW()","v":100},null,null,null,null,"","",null,null,0,0]
[null,null,null,null,null,null,null,null,null,null,null,null,null,{"$f":"K101+L101","v":0},{"$f":"IF(N101<>R101,1,0)","v":0},null,null,null,null,null,null,null,null,null,null,null,null,null,null,null,null,null,null,null,null,null,null,null,null,null,null,null,null,null,null,null,null,null,null,null,null,null,null,null,null,null,null,null,null,null,null,null,null,null,null,null,null,null,null,null,null,null,null,null,null,null,null,null,null,null,null,null,null,null,null,null,null,null,null,null,null,null,null,null,null,null,null,null,null,null,null,null,null,null,null,null,null,null,null,null,null,null,null,null,null,null,null,null,{"$f":"ROW()","v":101},null,null,null,null,{"$f":"IFERROR(VLOOKUP(DQ101,$A$5:$DO$203,119,FALSE),\"\")","v":""},{"$f":"IFERROR(VLOOKUP(DR101,$A$5:$DO$203,119,FALSE),\"\")","v":""},null,null,0,0]
[null,null,null,null,null,null,null,null,null,null,null,null,null,0,0,null,null,null,null,null,null,null,null,null,null,null,null,null,null,null,null,null,null,null,null,null,null,null,null,null,null,null,null,null,null,null,null,null,null,null,null,null,null,null,null,null,null,null,null,null,null,null,null,null,null,null,null,null,null,null,null,null,null,null,null,null,null,null,null,null,null,null,null,null,null,null,null,null,null,null,null,null,null,null,null,null,null,null,null,null,null,null,null,null,null,null,null,null,null,null,null,null,null,null,null,null,null,null,{"$f":"ROW()","v":102},null,null,null,null,"","",null,null,0,0]
[null,null,null,null,null,null,null,null,null,null,null,null,null,0,0,null,null,null,null,null,null,null,null,null,null,null,null,null,null,null,null,null,null,null,null,null,null,null,null,null,null,null,null,null,null,null,null,null,null,null,null,null,null,null,null,null,null,null,null,null,null,null,null,null,null,null,null,null,null,null,null,null,null,null,null,null,null,null,null,null,null,null,null,null,null,null,null,null,null,null,null,null,null,null,null,null,null,null,null,null,null,null,null,null,null,null,null,null,null,null,null,null,null,null,null,null,null,null,{"$f":"ROW()","v":103},null,null,null,null,"","",null,null,0,0]
[null,null,null,null,null,null,null,null,null,null,null,null,null,0,0,null,null,null,null,null,null,null,null,null,null,null,null,null,null,null,null,null,null,null,null,null,null,null,null,null,null,null,null,null,null,null,null,null,null,null,null,null,null,null,null,null,null,null,null,null,null,null,null,null,null,null,null,null,null,null,null,null,null,null,null,null,null,null,null,null,null,null,null,null,null,null,null,null,null,null,null,null,null,null,null,null,null,null,null,null,null,null,null,null,null,null,null,null,null,null,null,null,null,null,null,null,null,null,{"$f":"ROW()","v":104},null,null,null,null,"","",null,null,0,0]
[null,null,null,null,null,null,null,null,null,null,null,null,null,0,0,null,null,null,null,null,null,null,null,null,null,null,null,null,null,null,null,null,null,null,null,null,null,null,null,null,null,null,null,null,null,null,null,null,null,null,null,null,null,null,null,null,null,null,null,null,null,null,null,null,null,null,null,null,null,null,null,null,null,null,null,null,null,null,null,null,null,null,null,null,null,null,null,null,null,null,null,null,null,null,null,null,null,null,null,null,null,null,null,null,null,null,null,null,null,null,null,null,null,null,null,null,null,null,{"$f":"ROW()","v":105},null,null,null,null,"","",null,null,0,0]
[null,null,null,null,null,null,null,null,null,null,null,null,null,0,0,null,null,null,null,null,null,null,null,null,null,null,null,null,null,null,null,null,null,null,null,null,null,null,null,null,null,null,null,null,null,null,null,null,null,null,null,null,null,null,null,null,null,null,null,null,null,null,null,null,null,null,null,null,null,null,null,null,null,null,null,null,null,null,null,null,null,null,null,null,null,null,null,null,null,null,null,null,null,null,null,null,null,null,null,null,null,null,null,null,null,null,null,null,null,null,null,null,null,null,null,null,null,null,{"$f":"ROW()","v":106},null,null,null,null,"","",null,null,0,0]
[null,null,null,null,null,null,null,null,null,null,null,null,null,0,0,null,null,null,null,null,null,null,null,null,null,null,null,null,null,null,null,null,null,null,null,null,null,null,null,null,null,null,null,null,null,null,null,null,null,null,null,null,null,null,null,null,null,null,null,null,null,null,null,null,null,null,null,null,null,null,null,null,null,null,null,null,null,null,null,null,null,null,null,null,null,null,null,null,null,null,null,null,null,null,null,null,null,null,null,null,null,null,null,null,null,null,null,null,null,null,null,null,null,null,null,null,null,null,{"$f":"ROW()","v":107},null,null,null,null,"","",null,null,0,0]
[null,null,null,null,null,null,null,null,null,null,null,null,null,0,0,null,null,null,null,null,null,null,null,null,null,null,null,null,null,null,null,null,null,null,null,null,null,null,null,null,null,null,null,null,null,null,null,null,null,null,null,null,null,null,null,null,null,null,null,null,null,null,null,null,null,null,null,null,null,null,null,null,null,null,null,null,null,null,null,null,null,null,null,null,null,null,null,null,null,null,null,null,null,null,null,null,null,null,null,null,null,null,null,null,null,null,null,null,null,null,null,null,null,null,null,null,null,null,{"$f":"ROW()","v":108},null,null,null,null,"","",null,null,0,0]
[null,null,null,null,null,null,null,null,null,null,null,null,null,0,0,null,null,null,null,null,null,null,null,null,null,null,null,null,null,null,null,null,null,null,null,null,null,null,null,null,null,null,null,null,null,null,null,null,null,null,null,null,null,null,null,null,null,null,null,null,null,null,null,null,null,null,null,null,null,null,null,null,null,null,null,null,null,null,null,null,null,null,null,null,null,null,null,null,null,null,null,null,null,null,null,null,null,null,null,null,null,null,null,null,null,null,null,null,null,null,null,null,null,null,null,null,null,null,{"$f":"ROW()","v":109},null,null,null,null,"","",null,null,0,0]
[null,null,null,null,null,null,null,null,null,null,null,null,null,0,0,null,null,null,null,null,null,null,null,null,null,null,null,null,null,null,null,null,null,null,null,null,null,null,null,null,null,null,null,null,null,null,null,null,null,null,null,null,null,null,null,null,null,null,null,null,null,null,null,null,null,null,null,null,null,null,null,null,null,null,null,null,null,null,null,null,null,null,null,null,null,null,null,null,null,null,null,null,null,null,null,null,null,null,null,null,null,null,null,null,null,null,null,null,null,null,null,null,null,null,null,null,null,null,{"$f":"ROW()","v":110},null,null,null,null,"","",null,null,0,0]
[null,null,null,null,null,null,null,null,null,null,null,null,null,0,0,null,null,null,null,null,null,null,null,null,null,null,null,null,null,null,null,null,null,null,null,null,null,null,null,null,null,null,null,null,null,null,null,null,null,null,null,null,null,null,null,null,null,null,null,null,null,null,null,null,null,null,null,null,null,null,null,null,null,null,null,null,null,null,null,null,null,null,null,null,null,null,null,null,null,null,null,null,null,null,null,null,null,null,null,null,null,null,null,null,null,null,null,null,null,null,null,null,null,null,null,null,null,null,{"$f":"ROW()","v":111},null,null,null,null,"","",null,null,0,0]
[null,null,null,null,null,null,null,null,null,null,null,null,null,0,0,null,null,null,null,null,null,null,null,null,null,null,null,null,null,null,null,null,null,null,null,null,null,null,null,null,null,null,null,null,null,null,null,null,null,null,null,null,null,null,null,null,null,null,null,null,null,null,null,null,null,null,null,null,null,null,null,null,null,null,null,null,null,null,null,null,null,null,null,null,null,null,null,null,null,null,null,null,null,null,null,null,null,null,null,null,null,null,null,null,null,null,null,null,null,null,null,null,null,null,null,null,null,null,{"$f":"ROW()","v":112},null,null,null,null,"","",null,null,0,0]
[null,null,null,null,null,null,null,null,null,null,null,null,null,0,0,null,null,null,null,null,null,null,null,null,null,null,null,null,null,null,null,null,null,null,null,null,null,null,null,null,null,null,null,null,null,null,null,null,null,null,null,null,null,null,null,null,null,null,null,null,null,null,null,null,null,null,null,null,null,null,null,null,null,null,null,null,null,null,null,null,null,null,null,null,null,null,null,null,null,null,null,null,null,null,null,null,null,null,null,null,null,null,null,null,null,null,null,null,null,null,null,null,null,null,null,null,null,null,{"$f":"ROW()","v":113},null,null,null,null,"","",null,null,0,0]
[null,null,null,null,null,null,null,null,null,null,null,null,null,0,0,null,null,null,null,null,null,null,null,null,null,null,null,null,null,null,null,null,null,null,null,null,null,null,null,null,null,null,null,null,null,null,null,null,null,null,null,null,null,null,null,null,null,null,null,null,null,null,null,null,null,null,null,null,null,null,null,null,null,null,null,null,null,null,null,null,null,null,null,null,null,null,null,null,null,null,null,null,null,null,null,null,null,null,null,null,null,null,null,null,null,null,null,null,null,null,null,null,null,null,null,null,null,null,{"$f":"ROW()","v":114},null,null,null,null,"","",null,null,0,0]
[null,null,null,null,null,null,null,null,null,null,null,null,null,0,0,null,null,null,null,null,null,null,null,null,null,null,null,null,null,null,null,null,null,null,null,null,null,null,null,null,null,null,null,null,null,null,null,null,null,null,null,null,null,null,null,null,null,null,null,null,null,null,null,null,null,null,null,null,null,null,null,null,null,null,null,null,null,null,null,null,null,null,null,null,null,null,null,null,null,null,null,null,null,null,null,null,null,null,null,null,null,null,null,null,null,null,null,null,null,null,null,null,null,null,null,null,null,null,{"$f":"ROW()","v":115},null,null,null,null,"","",null,null,0,0]
[null,null,null,null,null,null,null,null,null,null,null,null,null,0,0,null,null,null,null,null,null,null,null,null,null,null,null,null,null,null,null,null,null,null,null,null,null,null,null,null,null,null,null,null,null,null,null,null,null,null,null,null,null,null,null,null,null,null,null,null,null,null,null,null,null,null,null,null,null,null,null,null,null,null,null,null,null,null,null,null,null,null,null,null,null,null,null,null,null,null,null,null,null,null,null,null,null,null,null,null,null,null,null,null,null,null,null,null,null,null,null,null,null,null,null,null,null,null,{"$f":"ROW()","v":116},null,null,null,null,"","",null,null,0,0]
[null,null,null,null,null,null,null,null,null,null,null,null,null,0,0,null,null,null,null,null,null,null,null,null,null,null,null,null,null,null,null,null,null,null,null,null,null,null,null,null,null,null,null,null,null,null,null,null,null,null,null,null,null,null,null,null,null,null,null,null,null,null,null,null,null,null,null,null,null,null,null,null,null,null,null,null,null,null,null,null,null,null,null,null,null,null,null,null,null,null,null,null,null,null,null,null,null,null,null,null,null,null,null,null,null,null,null,null,null,null,null,null,null,null,null,null,null,null,{"$f":"ROW()","v":117},null,null,null,null,"","",null,null,0,0]
[null,null,null,null,null,null,null,null,null,null,null,null,null,0,0,null,null,null,null,null,null,null,null,null,null,null,null,null,null,null,null,null,null,null,null,null,null,null,null,null,null,null,null,null,null,null,null,null,null,null,null,null,null,null,null,null,null,null,null,null,null,null,null,null,null,null,null,null,null,null,null,null,null,null,null,null,null,null,null,null,null,null,null,null,null,null,null,null,null,null,null,null,null,null,null,null,null,null,null,null,null,null,null,null,null,null,null,null,null,null,null,null,null,null,null,null,null,null,{"$f":"ROW()","v":118},null,null,null,null,"","",null,null,0,0]
[null,null,null,null,null,null,null,null,null,null,null,null,null,0,0,null,null,null,null,null,null,null,null,null,null,null,null,null,null,null,null,null,null,null,null,null,null,null,null,null,null,null,null,null,null,null,null,null,null,null,null,null,null,null,null,null,null,null,null,null,null,null,null,null,null,null,null,null,null,null,null,null,null,null,null,null,null,null,null,null,null,null,null,null,null,null,null,null,null,null,null,null,null,null,null,null,null,null,null,null,null,null,null,null,null,null,null,null,null,null,null,null,null,null,null,null,null,null,{"$f":"ROW()","v":119},null,null,null,null,"","",null,null,0,0]
[null,null,null,null,null,null,null,null,null,null,null,null,null,0,0,null,null,null,null,null,null,null,null,null,null,null,null,null,null,null,null,null,null,null,null,null,null,null,null,null,null,null,null,null,null,null,null,null,null,null,null,null,null,null,null,null,null,null,null,null,null,null,null,null,null,null,null,null,null,null,null,null,null,null,null,null,null,null,null,null,null,null,null,null,null,null,null,null,null,null,null,null,null,null,null,null,null,null,null,null,null,null,null,null,null,null,null,null,null,null,null,null,null,null,null,null,null,null,{"$f":"ROW()","v":120},null,null,null,null,"","",null,null,0,0]
[null,null,null,null,null,null,null,null,null,null,null,null,null,0,0,null,null,null,null,null,null,null,null,null,null,null,null,null,null,null,null,null,null,null,null,null,null,null,null,null,null,null,null,null,null,null,null,null,null,null,null,null,null,null,null,null,null,null,null,null,null,null,null,null,null,null,null,null,null,null,null,null,null,null,null,null,null,null,null,null,null,null,null,null,null,null,null,null,null,null,null,null,null,null,null,null,null,null,null,null,null,null,null,null,null,null,null,null,null,null,null,null,null,null,null,null,null,null,{"$f":"ROW()","v":121},null,null,null,null,"","",null,null,0,0]
[null,null,null,null,null,null,null,null,null,null,null,null,null,0,0,null,null,null,null,null,null,null,null,null,null,null,null,null,null,null,null,null,null,null,null,null,null,null,null,null,null,null,null,null,null,null,null,null,null,null,null,null,null,null,null,null,null,null,null,null,null,null,null,null,null,null,null,null,null,null,null,null,null,null,null,null,null,null,null,null,null,null,null,null,null,null,null,null,null,null,null,null,null,null,null,null,null,null,null,null,null,null,null,null,null,null,null,null,null,null,null,null,null,null,null,null,null,null,{"$f":"ROW()","v":122},null,null,null,null,"","",null,null,0,0]
[null,null,null,null,null,null,null,null,null,null,null,null,null,0,0,null,null,null,null,null,null,null,null,null,null,null,null,null,null,null,null,null,null,null,null,null,null,null,null,null,null,null,null,null,null,null,null,null,null,null,null,null,null,null,null,null,null,null,null,null,null,null,null,null,null,null,null,null,null,null,null,null,null,null,null,null,null,null,null,null,null,null,null,null,null,null,null,null,null,null,null,null,null,null,null,null,null,null,null,null,null,null,null,null,null,null,null,null,null,null,null,null,null,null,null,null,null,null,{"$f":"ROW()","v":123},null,null,null,null,"","",null,null,0,0]
[null,null,null,null,null,null,null,null,null,null,null,null,null,0,0,null,null,null,null,null,null,null,null,null,null,null,null,null,null,null,null,null,null,null,null,null,null,null,null,null,null,null,null,null,null,null,null,null,null,null,null,null,null,null,null,null,null,null,null,null,null,null,null,null,null,null,null,null,null,null,null,null,null,null,null,null,null,null,null,null,null,null,null,null,null,null,null,null,null,null,null,null,null,null,null,null,null,null,null,null,null,null,null,null,null,null,null,null,null,null,null,null,null,null,null,null,null,null,{"$f":"ROW()","v":124},null,null,null,null,"","",null,null,0,0]
[null,null,null,null,null,null,null,null,null,null,null,null,null,0,0,null,null,null,null,null,null,null,null,null,null,null,null,null,null,null,null,null,null,null,null,null,null,null,null,null,null,null,null,null,null,null,null,null,null,null,null,null,null,null,null,null,null,null,null,null,null,null,null,null,null,null,null,null,null,null,null,null,null,null,null,null,null,null,null,null,null,null,null,null,null,null,null,null,null,null,null,null,null,null,null,null,null,null,null,null,null,null,null,null,null,null,null,null,null,null,null,null,null,null,null,null,null,null,{"$f":"ROW()","v":125},null,null,null,null,"","",null,null,0,0]
[null,null,null,null,null,null,null,null,null,null,null,null,null,0,0,null,null,null,null,null,null,null,null,null,null,null,null,null,null,null,null,null,null,null,null,null,null,null,null,null,null,null,null,null,null,null,null,null,null,null,null,null,null,null,null,null,null,null,null,null,null,null,null,null,null,null,null,null,null,null,null,null,null,null,null,null,null,null,null,null,null,null,null,null,null,null,null,null,null,null,null,null,null,null,null,null,null,null,null,null,null,null,null,null,null,null,null,null,null,null,null,null,null,null,null,null,null,null,{"$f":"ROW()","v":126},null,null,null,null,"","",null,null,0,0]
[null,null,null,null,null,null,null,null,null,null,null,null,null,0,0,null,null,null,null,null,null,null,null,null,null,null,null,null,null,null,null,null,null,null,null,null,null,null,null,null,null,null,null,null,null,null,null,null,null,null,null,null,null,null,null,null,null,null,null,null,null,null,null,null,null,null,null,null,null,null,null,null,null,null,null,null,null,null,null,null,null,null,null,null,null,null,null,null,null,null,null,null,null,null,null,null,null,null,null,null,null,null,null,null,null,null,null,null,null,null,null,null,null,null,null,null,null,null,{"$f":"ROW()","v":127},null,null,null,null,"","",null,null,0,0]
[null,null,null,null,null,null,null,null,null,null,null,null,null,0,0,null,null,null,null,null,null,null,null,null,null,null,null,null,null,null,null,null,null,null,null,null,null,null,null,null,null,null,null,null,null,null,null,null,null,null,null,null,null,null,null,null,null,null,null,null,null,null,null,null,null,null,null,null,null,null,null,null,null,null,null,null,null,null,null,null,null,null,null,null,null,null,null,null,null,null,null,null,null,null,null,null,null,null,null,null,null,null,null,null,null,null,null,null,null,null,null,null,null,null,null,null,null,null,{"$f":"ROW()","v":128},null,null,null,null,"","",null,null,0,0]
[null,null,null,null,null,null,null,null,null,null,null,null,null,0,0,null,null,null,null,null,null,null,null,null,null,null,null,null,null,null,null,null,null,null,null,null,null,null,null,null,null,null,null,null,null,null,null,null,null,null,null,null,null,null,null,null,null,null,null,null,null,null,null,null,null,null,null,null,null,null,null,null,null,null,null,null,null,null,null,null,null,null,null,null,null,null,null,null,null,null,null,null,null,null,null,null,null,null,null,null,null,null,null,null,null,null,null,null,null,null,null,null,null,null,null,null,null,null,{"$f":"ROW()","v":129},null,null,null,null,"","",null,null,0,0]
[null,null,null,null,null,null,null,null,null,null,null,null,null,0,0,null,null,null,null,null,null,null,null,null,null,null,null,null,null,null,null,null,null,null,null,null,null,null,null,null,null,null,null,null,null,null,null,null,null,null,null,null,null,null,null,null,null,null,null,null,null,null,null,null,null,null,null,null,null,null,null,null,null,null,null,null,null,null,null,null,null,null,null,null,null,null,null,null,null,null,null,null,null,null,null,null,null,null,null,null,null,null,null,null,null,null,null,null,null,null,null,null,null,null,null,null,null,null,{"$f":"ROW()","v":130},null,null,null,null,"","",null,null,0,0]
[null,null,null,null,null,null,null,null,null,null,null,null,null,0,0,null,null,null,null,null,null,null,null,null,null,null,null,null,null,null,null,null,null,null,null,null,null,null,null,null,null,null,null,null,null,null,null,null,null,null,null,null,null,null,null,null,null,null,null,null,null,null,null,null,null,null,null,null,null,null,null,null,null,null,null,null,null,null,null,null,null,null,null,null,null,null,null,null,null,null,null,null,null,null,null,null,null,null,null,null,null,null,null,null,null,null,null,null,null,null,null,null,null,null,null,null,null,null,{"$f":"ROW()","v":131},null,null,null,null,"","",null,null,0,0]
[null,null,null,null,null,null,null,null,null,null,null,null,null,0,0,null,null,null,null,null,null,null,null,null,null,null,null,null,null,null,null,null,null,null,null,null,null,null,null,null,null,null,null,null,null,null,null,null,null,null,null,null,null,null,null,null,null,null,null,null,null,null,null,null,null,null,null,null,null,null,null,null,null,null,null,null,null,null,null,null,null,null,null,null,null,null,null,null,null,null,null,null,null,null,null,null,null,null,null,null,null,null,null,null,null,null,null,null,null,null,null,null,null,null,null,null,null,null,{"$f":"ROW()","v":132},null,null,null,null,"","",null,null,0,0]
[null,null,null,null,null,null,null,null,null,null,null,null,null,{"$f":"K133+L133","v":0},{"$f":"IF(N133<>R133,1,0)","v":0},null,null,null,null,null,null,null,null,null,null,null,null,null,null,null,null,null,null,null,null,null,null,null,null,null,null,null,null,null,null,null,null,null,null,null,null,null,null,null,null,null,null,null,null,null,null,null,null,null,null,null,null,null,null,null,null,null,null,null,null,null,null,null,null,null,null,null,null,null,null,null,null,null,null,null,null,null,null,null,null,null,null,null,null,null,null,null,null,null,null,null,null,null,null,null,null,null,null,null,null,null,null,null,{"$f":"ROW()","v":133},null,null,null,null,{"$f":"IFERROR(VLOOKUP(DQ133,$A$5:$DO$203,119,FALSE),\"\")","v":""},{"$f":"IFERROR(VLOOKUP(DR133,$A$5:$DO$203,119,FALSE),\"\")","v":""},null,null,0,0]
[null,null,null,null,null,null,null,null,null,null,null,null,null,0,0,null,null,null,null,null,null,null,null,null,null,null,null,null,null,null,null,null,null,null,null,null,null,null,null,null,null,null,null,null,null,null,null,null,null,null,null,null,null,null,null,null,null,null,null,null,null,null,null,null,null,null,null,null,null,null,null,null,null,null,null,null,null,null,null,null,null,null,null,null,null,null,null,null,null,null,null,null,null,null,null,null,null,null,null,null,null,null,null,null,null,null,null,null,null,null,null,null,null,null,null,null,null,null,{"$f":"ROW()","v":134},null,null,null,null,"","",null,null,{"$f":"IF($DS134=\"C\",$G134,0)","v":0},{"$f":"IF($DS134=\"I\",$G134,0)","v":0}]
[null,null,null,null,null,null,null,null,null,null,null,null,null,0,0,null,null,null,null,null,null,null,null,null,null,null,null,null,null,null,null,null,null,null,null,null,null,null,null,null,null,null,null,null,null,null,null,null,null,null,null,null,null,null,null,null,null,null,null,null,null,null,null,null,null,null,null,null,null,null,null,null,null,null,null,null,null,null,null,null,null,null,null,null,null,null,null,null,null,null,null,null,null,null,null,null,null,null,null,null,null,null,null,null,null,null,null,null,null,null,null,null,null,null,null,null,null,null,{"$f":"ROW()","v":135},null,null,null,null,"","",null,null,0,0]
[null,null,null,null,null,null,null,null,null,null,null,null,null,0,0,null,null,null,null,null,null,null,null,null,null,null,null,null,null,null,null,null,null,null,null,null,null,null,null,null,null,null,null,null,null,null,null,null,null,null,null,null,null,null,null,null,null,null,null,null,null,null,null,null,null,null,null,null,null,null,null,null,null,null,null,null,null,null,null,null,null,null,null,null,null,null,null,null,null,null,null,null,null,null,null,null,null,null,null,null,null,null,null,null,null,null,null,null,null,null,null,null,null,null,null,null,null,null,{"$f":"ROW()","v":136},null,null,null,null,"","",null,null,0,0]
[null,null,null,null,null,null,null,null,null,null,null,null,null,0,0,null,null,null,null,null,null,null,null,null,null,null,null,null,null,null,null,null,null,null,null,null,null,null,null,null,null,null,null,null,null,null,null,null,null,null,null,null,null,null,null,null,null,null,null,null,null,null,null,null,null,null,null,null,null,null,null,null,null,null,null,null,null,null,null,null,null,null,null,null,null,null,null,null,null,null,null,null,null,null,null,null,null,null,null,null,null,null,null,null,null,null,null,null,null,null,null,null,null,null,null,null,null,null,{"$f":"ROW()","v":137},null,null,null,null,"","",null,null,0,0]
[null,null,null,null,null,null,null,null,null,null,null,null,null,0,0,null,null,null,null,null,null,null,null,null,null,null,null,null,null,null,null,null,null,null,null,null,null,null,null,null,null,null,null,null,null,null,null,null,null,null,null,null,null,null,null,null,null,null,null,null,null,null,null,null,null,null,null,null,null,null,null,null,null,null,null,null,null,null,null,null,null,null,null,null,null,null,null,null,null,null,null,null,null,null,null,null,null,null,null,null,null,null,null,null,null,null,null,null,null,null,null,null,null,null,null,null,null,null,{"$f":"ROW()","v":138},null,null,null,null,"","",null,null,0,0]
[null,null,null,null,null,null,null,null,null,null,null,null,null,0,0,null,null,null,null,null,null,null,null,null,null,null,null,null,null,null,null,null,null,null,null,null,null,null,null,null,null,null,null,null,null,null,null,null,null,null,null,null,null,null,null,null,null,null,null,null,null,null,null,null,null,null,null,null,null,null,null,null,null,null,null,null,null,null,null,null,null,null,null,null,null,null,null,null,null,null,null,null,null,null,null,null,null,null,null,null,null,null,null,null,null,null,null,null,null,null,null,null,null,null,null,null,null,null,{"$f":"ROW()","v":139},null,null,null,null,"","",null,null,0,0]
[null,null,null,null,null,null,null,null,null,null,null,null,null,0,0,null,null,null,null,null,null,null,null,null,null,null,null,null,null,null,null,null,null,null,null,null,null,null,null,null,null,null,null,null,null,null,null,null,null,null,null,null,null,null,null,null,null,null,null,null,null,null,null,null,null,null,null,null,null,null,null,null,null,null,null,null,null,null,null,null,null,null,null,null,null,null,null,null,null,null,null,null,null,null,null,null,null,null,null,null,null,null,null,null,null,null,null,null,null,null,null,null,null,null,null,null,null,null,{"$f":"ROW()","v":140},null,null,null,null,"","",null,null,0,0]
[null,null,null,null,null,null,null,null,null,null,null,null,null,0,0,null,null,null,null,null,null,null,null,null,null,null,null,null,null,null,null,null,null,null,null,null,null,null,null,null,null,null,null,null,null,null,null,null,null,null,null,null,null,null,null,null,null,null,null,null,null,null,null,null,null,null,null,null,null,null,null,null,null,null,null,null,null,null,null,null,null,null,null,null,null,null,null,null,null,null,null,null,null,null,null,null,null,null,null,null,null,null,null,null,null,null,null,null,null,null,null,null,null,null,null,null,null,null,{"$f":"ROW()","v":141},null,null,null,null,"","",null,null,0,0]
[null,null,null,null,null,null,null,null,null,null,null,null,null,0,0,null,null,null,null,null,null,null,null,null,null,null,null,null,null,null,null,null,null,null,null,null,null,null,null,null,null,null,null,null,null,null,null,null,null,null,null,null,null,null,null,null,null,null,null,null,null,null,null,null,null,null,null,null,null,null,null,null,null,null,null,null,null,null,null,null,null,null,null,null,null,null,null,null,null,null,null,null,null,null,null,null,null,null,null,null,null,null,null,null,null,null,null,null,null,null,null,null,null,null,null,null,null,null,{"$f":"ROW()","v":142},null,null,null,null,"","",null,null,0,0]
[null,null,null,null,null,null,null,null,null,null,null,null,null,0,0,null,null,null,null,null,null,null,null,null,null,null,null,null,null,null,null,null,null,null,null,null,null,null,null,null,null,null,null,null,null,null,null,null,null,null,null,null,null,null,null,null,null,null,null,null,null,null,null,null,null,null,null,null,null,null,null,null,null,null,null,null,null,null,null,null,null,null,null,null,null,null,null,null,null,null,null,null,null,null,null,null,null,null,null,null,null,null,null,null,null,null,null,null,null,null,null,null,null,null,null,null,null,null,{"$f":"ROW()","v":143},null,null,null,null,"","",null,null,0,0]
[null,null,null,null,null,null,null,null,null,null,null,null,null,0,0,null,null,null,null,null,null,null,null,null,null,null,null,null,null,null,null,null,null,null,null,null,null,null,null,null,null,null,null,null,null,null,null,null,null,null,null,null,null,null,null,null,null,null,null,null,null,null,null,null,null,null,null,null,null,null,null,null,null,null,null,null,null,null,null,null,null,null,null,null,null,null,null,null,null,null,null,null,null,null,null,null,null,null,null,null,null,null,null,null,null,null,null,null,null,null,null,null,null,null,null,null,null,null,{"$f":"ROW()","v":144},null,null,null,null,"","",null,null,0,0]
[null,null,null,null,null,null,null,null,null,null,null,null,null,0,0,null,null,null,null,null,null,null,null,null,null,null,null,null,null,null,null,null,null,null,null,null,null,null,null,null,null,null,null,null,null,null,null,null,null,null,null,null,null,null,null,null,null,null,null,null,null,null,null,null,null,null,null,null,null,null,null,null,null,null,null,null,null,null,null,null,null,null,null,null,null,null,null,null,null,null,null,null,null,null,null,null,null,null,null,null,null,null,null,null,null,null,null,null,null,null,null,null,null,null,null,null,null,null,{"$f":"ROW()","v":145},null,null,null,null,"","",null,null,0,0]
[null,null,null,null,null,null,null,null,null,null,null,null,null,0,0,null,null,null,null,null,null,null,null,null,null,null,null,null,null,null,null,null,null,null,null,null,null,null,null,null,null,null,null,null,null,null,null,null,null,null,null,null,null,null,null,null,null,null,null,null,null,null,null,null,null,null,null,null,null,null,null,null,null,null,null,null,null,null,null,null,null,null,null,null,null,null,null,null,null,null,null,null,null,null,null,null,null,null,null,null,null,null,null,null,null,null,null,null,null,null,null,null,null,null,null,null,null,null,{"$f":"ROW()","v":146},null,null,null,null,"","",null,null,0,0]
[null,null,null,null,null,null,null,null,null,null,null,null,null,0,0,null,null,null,null,null,null,null,null,null,null,null,null,null,null,null,null,null,null,null,null,null,null,null,null,null,null,null,null,null,null,null,null,null,null,null,null,null,null,null,null,null,null,null,null,null,null,null,null,null,null,null,null,null,null,null,null,null,null,null,null,null,null,null,null,null,null,null,null,null,null,null,null,null,null,null,null,null,null,null,null,null,null,null,null,null,null,null,null,null,null,null,null,null,null,null,null,null,null,null,null,null,null,null,{"$f":"ROW()","v":147},null,null,null,null,"","",null,null,0,0]
[null,null,null,null,null,null,null,null,null,null,null,null,null,0,0,null,null,null,null,null,null,null,null,null,null,null,null,null,null,null,null,null,null,null,null,null,null,null,null,null,null,null,null,null,null,null,null,null,null,null,null,null,null,null,null,null,null,null,null,null,null,null,null,null,null,null,null,null,null,null,null,null,null,null,null,null,null,null,null,null,null,null,null,null,null,null,null,null,null,null,null,null,null,null,null,null,null,null,null,null,null,null,null,null,null,null,null,null,null,null,null,null,null,null,null,null,null,null,{"$f":"ROW()","v":148},null,null,null,null,"","",null,null,0,0]
[null,null,null,null,null,null,null,null,null,null,null,null,null,0,0,null,null,null,null,null,null,null,null,null,null,null,null,null,null,null,null,null,null,null,null,null,null,null,null,null,null,null,null,null,null,null,null,null,null,null,null,null,null,null,null,null,null,null,null,null,null,null,null,null,null,null,null,null,null,null,null,null,null,null,null,null,null,null,null,null,null,null,null,null,null,null,null,null,null,null,null,null,null,null,null,null,null,null,null,null,null,null,null,null,null,null,null,null,null,null,null,null,null,null,null,null,null,null,{"$f":"ROW()","v":149},null,null,null,null,"","",null,null,0,0]
[null,null,null,null,null,null,null,null,null,null,null,null,null,0,0,null,null,null,null,null,null,null,null,null,null,null,null,null,null,null,null,null,null,null,null,null,null,null,null,null,null,null,null,null,null,null,null,null,null,null,null,null,null,null,null,null,null,null,null,null,null,null,null,null,null,null,null,null,null,null,null,null,null,null,null,null,null,null,null,null,null,null,null,null,null,null,null,null,null,null,null,null,null,null,null,null,null,null,null,null,null,null,null,null,null,null,null,null,null,null,null,null,null,null,null,null,null,null,{"$f":"ROW()","v":150},null,null,null,null,"","",null,null,0,0]
[null,null,null,null,null,null,null,null,null,null,null,null,null,0,0,null,null,null,null,null,null,null,null,null,null,null,null,null,null,null,null,null,null,null,null,null,null,null,null,null,null,null,null,null,null,null,null,null,null,null,null,null,null,null,null,null,null,null,null,null,null,null,null,null,null,null,null,null,null,null,null,null,null,null,null,null,null,null,null,null,null,null,null,null,null,null,null,null,null,null,null,null,null,null,null,null,null,null,null,null,null,null,null,null,null,null,null,null,null,null,null,null,null,null,null,null,null,null,{"$f":"ROW()","v":151},null,null,null,null,"","",null,null,0,0]
[null,null,null,null,null,null,null,null,null,null,null,null,null,0,0,null,null,null,null,null,null,null,null,null,null,null,null,null,null,null,null,null,null,null,null,null,null,null,null,null,null,null,null,null,null,null,null,null,null,null,null,null,null,null,null,null,null,null,null,null,null,null,null,null,null,null,null,null,null,null,null,null,null,null,null,null,null,null,null,null,null,null,null,null,null,null,null,null,null,null,null,null,null,null,null,null,null,null,null,null,null,null,null,null,null,null,null,null,null,null,null,null,null,null,null,null,null,null,{"$f":"ROW()","v":152},null,null,null,null,"","",null,null,0,0]
[null,null,null,null,null,null,null,null,null,null,null,null,null,0,0,null,null,null,null,null,null,null,null,null,null,null,null,null,null,null,null,null,null,null,null,null,null,null,null,null,null,null,null,null,null,null,null,null,null,null,null,null,null,null,null,null,null,null,null,null,null,null,null,null,null,null,null,null,null,null,null,null,null,null,null,null,null,null,null,null,null,null,null,null,null,null,null,null,null,null,null,null,null,null,null,null,null,null,null,null,null,null,null,null,null,null,null,null,null,null,null,null,null,null,null,null,null,null,{"$f":"ROW()","v":153},null,null,null,null,"","",null,null,0,0]
[null,null,null,null,null,null,null,null,null,null,null,null,null,0,0,null,null,null,null,null,null,null,null,null,null,null,null,null,null,null,null,null,null,null,null,null,null,null,null,null,null,null,null,null,null,null,null,null,null,null,null,null,null,null,null,null,null,null,null,null,null,null,null,null,null,null,null,null,null,null,null,null,null,null,null,null,null,null,null,null,null,null,null,null,null,null,null,null,null,null,null,null,null,null,null,null,null,null,null,null,null,null,null,null,null,null,null,null,null,null,null,null,null,null,null,null,null,null,{"$f":"ROW()","v":154},null,null,null,null,"","",null,null,0,0]
[null,null,null,null,null,null,null,null,null,null,null,null,null,0,0,null,null,null,null,null,null,null,null,null,null,null,null,null,null,null,null,null,null,null,null,null,null,null,null,null,null,null,null,null,null,null,null,null,null,null,null,null,null,null,null,null,null,null,null,null,null,null,null,null,null,null,null,null,null,null,null,null,null,null,null,null,null,null,null,null,null,null,null,null,null,null,null,null,null,null,null,null,null,null,null,null,null,null,null,null,null,null,null,null,null,null,null,null,null,null,null,null,null,null,null,null,null,null,{"$f":"ROW()","v":155},null,null,null,null,"","",null,null,0,0]
[null,null,null,null,null,null,null,null,null,null,null,null,null,0,0,null,null,null,null,null,null,null,null,null,null,null,null,null,null,null,null,null,null,null,null,null,null,null,null,null,null,null,null,null,null,null,null,null,null,null,null,null,null,null,null,null,null,null,null,null,null,null,null,null,null,null,null,null,null,null,null,null,null,null,null,null,null,null,null,null,null,null,null,null,null,null,null,null,null,null,null,null,null,null,null,null,null,null,null,null,null,null,null,null,null,null,null,null,null,null,null,null,null,null,null,null,null,null,{"$f":"ROW()","v":156},null,null,null,null,"","",null,null,0,0]
[null,null,null,null,null,null,null,null,null,null,null,null,null,0,0,null,null,null,null,null,null,null,null,null,null,null,null,null,null,null,null,null,null,null,null,null,null,null,null,null,null,null,null,null,null,null,null,null,null,null,null,null,null,null,null,null,null,null,null,null,null,null,null,null,null,null,null,null,null,null,null,null,null,null,null,null,null,null,null,null,null,null,null,null,null,null,null,null,null,null,null,null,null,null,null,null,null,null,null,null,null,null,null,null,null,null,null,null,null,null,null,null,null,null,null,null,null,null,{"$f":"ROW()","v":157},null,null,null,null,"","",null,null,0,0]
[null,null,null,null,null,null,null,null,null,null,null,null,null,0,0,null,null,null,null,null,null,null,null,null,null,null,null,null,null,null,null,null,null,null,null,null,null,null,null,null,null,null,null,null,null,null,null,null,null,null,null,null,null,null,null,null,null,null,null,null,null,null,null,null,null,null,null,null,null,null,null,null,null,null,null,null,null,null,null,null,null,null,null,null,null,null,null,null,null,null,null,null,null,null,null,null,null,null,null,null,null,null,null,null,null,null,null,null,null,null,null,null,null,null,null,null,null,null,{"$f":"ROW()","v":158},null,null,null,null,"","",null,null,0,0]
[null,null,null,null,null,null,null,null,null,null,null,null,null,0,0,null,null,null,null,null,null,null,null,null,null,null,null,null,null,null,null,null,null,null,null,null,null,null,null,null,null,null,null,null,null,null,null,null,null,null,null,null,null,null,null,null,null,null,null,null,null,null,null,null,null,null,null,null,null,null,null,null,null,null,null,null,null,null,null,null,null,null,null,null,null,null,null,null,null,null,null,null,null,null,null,null,null,null,null,null,null,null,null,null,null,null,null,null,null,null,null,null,null,null,null,null,null,null,{"$f":"ROW()","v":159},null,null,null,null,"","",null,null,0,0]
[null,null,null,null,null,null,null,null,null,null,null,null,null,0,0,null,null,null,null,null,null,null,null,null,null,null,null,null,null,null,null,null,null,null,null,null,null,null,null,null,null,null,null,null,null,null,null,null,null,null,null,null,null,null,null,null,null,null,null,null,null,null,null,null,null,null,null,null,null,null,null,null,null,null,null,null,null,null,null,null,null,null,null,null,null,null,null,null,null,null,null,null,null,null,null,null,null,null,null,null,null,null,null,null,null,null,null,null,null,null,null,null,null,null,null,null,null,null,{"$f":"ROW()","v":160},null,null,null,null,"","",null,null,0,0]
[null,null,null,null,null,null,null,null,null,null,null,null,null,0,0,null,null,null,null,null,null,null,null,null,null,null,null,null,null,null,null,null,null,null,null,null,null,null,null,null,null,null,null,null,null,null,null,null,null,null,null,null,null,null,null,null,null,null,null,null,null,null,null,null,null,null,null,null,null,null,null,null,null,null,null,null,null,null,null,null,null,null,null,null,null,null,null,null,null,null,null,null,null,null,null,null,null,null,null,null,null,null,null,null,null,null,null,null,null,null,null,null,null,null,null,null,null,null,{"$f":"ROW()","v":161},null,null,null,null,"","",null,null,0,0]
[null,null,null,null,null,null,null,null,null,null,null,null,null,0,0,null,null,null,null,null,null,null,null,null,null,null,null,null,null,null,null,null,null,null,null,null,null,null,null,null,null,null,null,null,null,null,null,null,null,null,null,null,null,null,null,null,null,null,null,null,null,null,null,null,null,null,null,null,null,null,null,null,null,null,null,null,null,null,null,null,null,null,null,null,null,null,null,null,null,null,null,null,null,null,null,null,null,null,null,null,null,null,null,null,null,null,null,null,null,null,null,null,null,null,null,null,null,null,{"$f":"ROW()","v":162},null,null,null,null,"","",null,null,0,0]
[null,null,null,null,null,null,null,null,null,null,null,null,null,0,0,null,null,null,null,null,null,null,null,null,null,null,null,null,null,null,null,null,null,null,null,null,null,null,null,null,null,null,null,null,null,null,null,null,null,null,null,null,null,null,null,null,null,null,null,null,null,null,null,null,null,null,null,null,null,null,null,null,null,null,null,null,null,null,null,null,null,null,null,null,null,null,null,null,null,null,null,null,null,null,null,null,null,null,null,null,null,null,null,null,null,null,null,null,null,null,null,null,null,null,null,null,null,null,{"$f":"ROW()","v":163},null,null,null,null,"","",null,null,0,0]
[null,null,null,null,null,null,null,null,null,null,null,null,null,0,0,null,null,null,null,null,null,null,null,null,null,null,null,null,null,null,null,null,null,null,null,null,null,null,null,null,null,null,null,null,null,null,null,null,null,null,null,null,null,null,null,null,null,null,null,null,null,null,null,null,null,null,null,null,null,null,null,null,null,null,null,null,null,null,null,null,null,null,null,null,null,null,null,null,null,null,null,null,null,null,null,null,null,null,null,null,null,null,null,null,null,null,null,null,null,null,null,null,null,null,null,null,null,null,{"$f":"ROW()","v":164},null,null,null,null,"","",null,null,0,0]
[null,null,null,null,null,null,null,null,null,null,null,null,null,{"$f":"K165+L165","v":0},{"$f":"IF(N165<>R165,1,0)","v":0},null,null,null,null,null,null,null,null,null,null,null,null,null,null,null,null,null,null,null,null,null,null,null,null,null,null,null,null,null,null,null,null,null,null,null,null,null,null,null,null,null,null,null,null,null,null,null,null,null,null,null,null,null,null,null,null,null,null,null,null,null,null,null,null,null,null,null,null,null,null,null,null,null,null,null,null,null,null,null,null,null,null,null,null,null,null,null,null,null,null,null,null,null,null,null,null,null,null,null,null,null,null,null,{"$f":"ROW()","v":165},null,null,null,null,{"$f":"IFERROR(VLOOKUP(DQ165,$A$5:$DO$203,119,FALSE),\"\")","v":""},{"$f":"IFERROR(VLOOKUP(DR165,$A$5:$DO$203,119,FALSE),\"\")","v":""},null,null,0,0]
[null,null,null,null,null,null,null,null,null,null,null,null,null,0,0,null,null,null,null,null,null,null,null,null,null,null,null,null,null,null,null,null,null,null,null,null,null,null,null,null,null,null,null,null,null,null,null,null,null,null,null,null,null,null,null,null,null,null,null,null,null,null,null,null,null,null,null,null,null,null,null,null,null,null,null,null,null,null,null,null,null,null,null,null,null,null,null,null,null,null,null,null,null,null,null,null,null,null,null,null,null,null,null,null,null,null,null,null,null,null,null,null,null,null,null,null,null,null,{"$f":"ROW()","v":166},null,null,null,null,"","",null,null,0,0]
[null,null,null,null,null,null,null,null,null,null,null,null,null,0,0,null,null,null,null,null,null,null,null,null,null,null,null,null,null,null,null,null,null,null,null,null,null,null,null,null,null,null,null,null,null,null,null,null,null,null,null,null,null,null,null,null,null,null,null,null,null,null,null,null,null,null,null,null,null,null,null,null,null,null,null,null,null,null,null,null,null,null,null,null,null,null,null,null,null,null,null,null,null,null,null,null,null,null,null,null,null,null,null,null,null,null,null,null,null,null,null,null,null,null,null,null,null,null,{"$f":"ROW()","v":167},null,null,null,null,"","",null,null,0,0]
[null,null,null,null,null,null,null,null,null,null,null,null,null,0,0,null,null,null,null,null,null,null,null,null,null,null,null,null,null,null,null,null,null,null,null,null,null,null,null,null,null,null,null,null,null,null,null,null,null,null,null,null,null,null,null,null,null,null,null,null,null,null,null,null,null,null,null,null,null,null,null,null,null,null,null,null,null,null,null,null,null,null,null,null,null,null,null,null,null,null,null,null,null,null,null,null,null,null,null,null,null,null,null,null,null,null,null,null,null,null,null,null,null,null,null,null,null,null,{"$f":"ROW()","v":168},null,null,null,null,"","",null,null,0,0]
[null,null,null,null,null,null,null,null,null,null,null,null,null,0,0,null,null,null,null,null,null,null,null,null,null,null,null,null,null,null,null,null,null,null,null,null,null,null,null,null,null,null,null,null,null,null,null,null,null,null,null,null,null,null,null,null,null,null,null,null,null,null,null,null,null,null,null,null,null,null,null,null,null,null,null,null,null,null,null,null,null,null,null,null,null,null,null,null,null,null,null,null,null,null,null,null,null,null,null,null,null,null,null,null,null,null,null,null,null,null,null,null,null,null,null,null,null,null,{"$f":"ROW()","v":169},null,null,null,null,"","",null,null,0,0]
[null,null,null,null,null,null,null,null,null,null,null,null,null,0,0,null,null,null,null,null,null,null,null,null,null,null,null,null,null,null,null,null,null,null,null,null,null,null,null,null,null,null,null,null,null,null,null,null,null,null,null,null,null,null,null,null,null,null,null,null,null,null,null,null,null,null,null,null,null,null,null,null,null,null,null,null,null,null,null,null,null,null,null,null,null,null,null,null,null,null,null,null,null,null,null,null,null,null,null,null,null,null,null,null,null,null,null,null,null,null,null,null,null,null,null,null,null,null,{"$f":"ROW()","v":170},null,null,null,null,"","",null,null,0,0]
[null,null,null,null,null,null,null,null,null,null,null,null,null,0,0,null,null,null,null,null,null,null,null,null,null,null,null,null,null,null,null,null,null,null,null,null,null,null,null,null,null,null,null,null,null,null,null,null,null,null,null,null,null,null,null,null,null,null,null,null,null,null,null,null,null,null,null,null,null,null,null,null,null,null,null,null,null,null,null,null,null,null,null,null,null,null,null,null,null,null,null,null,null,null,null,null,null,null,null,null,null,null,null,null,null,null,null,null,null,null,null,null,null,null,null,null,null,null,{"$f":"ROW()","v":171},null,null,null,null,"","",null,null,0,0]
[null,null,null,null,null,null,null,null,null,null,null,null,null,0,0,null,null,null,null,null,null,null,null,null,null,null,null,null,null,null,null,null,null,null,null,null,null,null,null,null,null,null,null,null,null,null,null,null,null,null,null,null,null,null,null,null,null,null,null,null,null,null,null,null,null,null,null,null,null,null,null,null,null,null,null,null,null,null,null,null,null,null,null,null,null,null,null,null,null,null,null,null,null,null,null,null,null,null,null,null,null,null,null,null,null,null,null,null,null,null,null,null,null,null,null,null,null,null,{"$f":"ROW()","v":172},null,null,null,null,"","",null,null,0,0]
[null,null,null,null,null,null,null,null,null,null,null,null,null,0,0,null,null,null,null,null,null,null,null,null,null,null,null,null,null,null,null,null,null,null,null,null,null,null,null,null,null,null,null,null,null,null,null,null,null,null,null,null,null,null,null,null,null,null,null,null,null,null,null,null,null,null,null,null,null,null,null,null,null,null,null,null,null,null,null,null,null,null,null,null,null,null,null,null,null,null,null,null,null,null,null,null,null,null,null,null,null,null,null,null,null,null,null,null,null,null,null,null,null,null,null,null,null,null,{"$f":"ROW()","v":173},null,null,null,null,"","",null,null,0,0]
[null,null,null,null,null,null,null,null,null,null,null,null,null,0,0,null,null,null,null,null,null,null,null,null,null,null,null,null,null,null,null,null,null,null,null,null,null,null,null,null,null,null,null,null,null,null,null,null,null,null,null,null,null,null,null,null,null,null,null,null,null,null,null,null,null,null,null,null,null,null,null,null,null,null,null,null,null,null,null,null,null,null,null,null,null,null,null,null,null,null,null,null,null,null,null,null,null,null,null,null,null,null,null,null,null,null,null,null,null,null,null,null,null,null,null,null,null,null,{"$f":"ROW()","v":174},null,null,null,null,"","",null,null,0,0]
[null,null,null,null,null,null,null,null,null,null,null,null,null,0,0,null,null,null,null,null,null,null,null,null,null,null,null,null,null,null,null,null,null,null,null,null,null,null,null,null,null,null,null,null,null,null,null,null,null,null,null,null,null,null,null,null,null,null,null,null,null,null,null,null,null,null,null,null,null,null,null,null,null,null,null,null,null,null,null,null,null,null,null,null,null,null,null,null,null,null,null,null,null,null,null,null,null,null,null,null,null,null,null,null,null,null,null,null,null,null,null,null,null,null,null,null,null,null,{"$f":"ROW()","v":175},null,null,null,null,"","",null,null,0,0]
[null,null,null,null,null,null,null,null,null,null,null,null,null,0,0,null,null,null,null,null,null,null,null,null,null,null,null,null,null,null,null,null,null,null,null,null,null,null,null,null,null,null,null,null,null,null,null,null,null,null,null,null,null,null,null,null,null,null,null,null,null,null,null,null,null,null,null,null,null,null,null,null,null,null,null,null,null,null,null,null,null,null,null,null,null,null,null,null,null,null,null,null,null,null,null,null,null,null,null,null,null,null,null,null,null,null,null,null,null,null,null,null,null,null,null,null,null,null,{"$f":"ROW()","v":176},null,null,null,null,"","",null,null,0,0]
[null,null,null,null,null,null,null,null,null,null,null,null,null,0,0,null,null,null,null,null,null,null,null,null,null,null,null,null,null,null,null,null,null,null,null,null,null,null,null,null,null,null,null,null,null,null,null,null,null,null,null,null,null,null,null,null,null,null,null,null,null,null,null,null,null,null,null,null,null,null,null,null,null,null,null,null,null,null,null,null,null,null,null,null,null,null,null,null,null,null,null,null,null,null,null,null,null,null,null,null,null,null,null,null,null,null,null,null,null,null,null,null,null,null,null,null,null,null,{"$f":"ROW()","v":177},null,null,null,null,"","",null,null,0,0]
[null,null,null,null,null,null,null,null,null,null,null,null,null,0,0,null,null,null,null,null,null,null,null,null,null,null,null,null,null,null,null,null,null,null,null,null,null,null,null,null,null,null,null,null,null,null,null,null,null,null,null,null,null,null,null,null,null,null,null,null,null,null,null,null,null,null,null,null,null,null,null,null,null,null,null,null,null,null,null,null,null,null,null,null,null,null,null,null,null,null,null,null,null,null,null,null,null,null,null,null,null,null,null,null,null,null,null,null,null,null,null,null,null,null,null,null,null,null,{"$f":"ROW()","v":178},null,null,null,null,"","",null,null,0,0]
[null,null,null,null,null,null,null,null,null,null,null,null,null,0,0,null,null,null,null,null,null,null,null,null,null,null,null,null,null,null,null,null,null,null,null,null,null,null,null,null,null,null,null,null,null,null,null,null,null,null,null,null,null,null,null,null,null,null,null,null,null,null,null,null,null,null,null,null,null,null,null,null,null,null,null,null,null,null,null,null,null,null,null,null,null,null,null,null,null,null,null,null,null,null,null,null,null,null,null,null,null,null,null,null,null,null,null,null,null,null,null,null,null,null,null,null,null,null,{"$f":"ROW()","v":179},null,null,null,null,"","",null,null,0,0]
[null,null,null,null,null,null,null,null,null,null,null,null,null,0,0,null,null,null,null,null,null,null,null,null,null,null,null,null,null,null,null,null,null,null,null,null,null,null,null,null,null,null,null,null,null,null,null,null,null,null,null,null,null,null,null,null,null,null,null,null,null,null,null,null,null,null,null,null,null,null,null,null,null,null,null,null,null,null,null,null,null,null,null,null,null,null,null,null,null,null,null,null,null,null,null,null,null,null,null,null,null,null,null,null,null,null,null,null,null,null,null,null,null,null,null,null,null,null,{"$f":"ROW()","v":180},null,null,null,null,"","",null,null,0,0]
[null,null,null,null,null,null,null,null,null,null,null,null,null,0,0,null,null,null,null,null,null,null,null,null,null,null,null,null,null,null,null,null,null,null,null,null,null,null,null,null,null,null,null,null,null,null,null,null,null,null,null,null,null,null,null,null,null,null,null,null,null,null,null,null,null,null,null,null,null,null,null,null,null,null,null,null,null,null,null,null,null,null,null,null,null,null,null,null,null,null,null,null,null,null,null,null,null,null,null,null,null,null,null,null,null,null,null,null,null,null,null,null,null,null,null,null,null,null,{"$f":"ROW()","v":181},null,null,null,null,"","",null,null,0,0]
[null,null,null,null,null,null,null,null,null,null,null,null,null,0,0,null,null,null,null,null,null,null,null,null,null,null,null,null,null,null,null,null,null,null,null,null,null,null,null,null,null,null,null,null,null,null,null,null,null,null,null,null,null,null,null,null,null,null,null,null,null,null,null,null,null,null,null,null,null,null,null,null,null,null,null,null,null,null,null,null,null,null,null,null,null,null,null,null,null,null,null,null,null,null,null,null,null,null,null,null,null,null,null,null,null,null,null,null,null,null,null,null,null,null,null,null,null,null,{"$f":"ROW()","v":182},null,null,null,null,"","",null,null,0,0]
[null,null,null,null,null,null,null,null,null,null,null,null,null,0,0,null,null,null,null,null,null,null,null,null,null,null,null,null,null,null,null,null,null,null,null,null,null,null,null,null,null,null,null,null,null,null,null,null,null,null,null,null,null,null,null,null,null,null,null,null,null,null,null,null,null,null,null,null,null,null,null,null,null,null,null,null,null,null,null,null,null,null,null,null,null,null,null,null,null,null,null,null,null,null,null,null,null,null,null,null,null,null,null,null,null,null,null,null,null,null,null,null,null,null,null,null,null,null,{"$f":"ROW()","v":183},null,null,null,null,"","",null,null,0,0]
[null,null,null,null,null,null,null,null,null,null,null,null,null,0,0,null,null,null,null,null,null,null,null,null,null,null,null,null,null,null,null,null,null,null,null,null,null,null,null,null,null,null,null,null,null,null,null,null,null,null,null,null,null,null,null,null,null,null,null,null,null,null,null,null,null,null,null,null,null,null,null,null,null,null,null,null,null,null,null,null,null,null,null,null,null,null,null,null,null,null,null,null,null,null,null,null,null,null,null,null,null,null,null,null,null,null,null,null,null,null,null,null,null,null,null,null,null,null,{"$f":"ROW()","v":184},null,null,null,null,"","",null,null,0,0]
[null,null,null,null,null,null,null,null,null,null,null,null,null,0,0,null,null,null,null,null,null,null,null,null,null,null,null,null,null,null,null,null,null,null,null,null,null,null,null,null,null,null,null,null,null,null,null,null,null,null,null,null,null,null,null,null,null,null,null,null,null,null,null,null,null,null,null,null,null,null,null,null,null,null,null,null,null,null,null,null,null,null,null,null,null,null,null,null,null,null,null,null,null,null,null,null,null,null,null,null,null,null,null,null,null,null,null,null,null,null,null,null,null,null,null,null,null,null,{"$f":"ROW()","v":185},null,null,null,null,"","",null,null,0,0]
[null,null,null,null,null,null,null,null,null,null,null,null,null,0,0,null,null,null,null,null,null,null,null,null,null,null,null,null,null,null,null,null,null,null,null,null,null,null,null,null,null,null,null,null,null,null,null,null,null,null,null,null,null,null,null,null,null,null,null,null,null,null,null,null,null,null,null,null,null,null,null,null,null,null,null,null,null,null,null,null,null,null,null,null,null,null,null,null,null,null,null,null,null,null,null,null,null,null,null,null,null,null,null,null,null,null,null,null,null,null,null,null,null,null,null,null,null,null,{"$f":"ROW()","v":186},null,null,null,null,"","",null,null,0,0]
[null,null,null,null,null,null,null,null,null,null,null,null,null,0,0,null,null,null,null,null,null,null,null,null,null,null,null,null,null,null,null,null,null,null,null,null,null,null,null,null,null,null,null,null,null,null,null,null,null,null,null,null,null,null,null,null,null,null,null,null,null,null,null,null,null,null,null,null,null,null,null,null,null,null,null,null,null,null,null,null,null,null,null,null,null,null,null,null,null,null,null,null,null,null,null,null,null,null,null,null,null,null,null,null,null,null,null,null,null,null,null,null,null,null,null,null,null,null,{"$f":"ROW()","v":187},null,null,null,null,"","",null,null,0,0]
[null,null,null,null,null,null,null,null,null,null,null,null,null,0,0,null,null,null,null,null,null,null,null,null,null,null,null,null,null,null,null,null,null,null,null,null,null,null,null,null,null,null,null,null,null,null,null,null,null,null,null,null,null,null,null,null,null,null,null,null,null,null,null,null,null,null,null,null,null,null,null,null,null,null,null,null,null,null,null,null,null,null,null,null,null,null,null,null,null,null,null,null,null,null,null,null,null,null,null,null,null,null,null,null,null,null,null,null,null,null,null,null,null,null,null,null,null,null,{"$f":"ROW()","v":188},null,null,null,null,"","",null,null,0,0]
[null,null,null,null,null,null,null,null,null,null,null,null,null,0,0,null,null,null,null,null,null,null,null,null,null,null,null,null,null,null,null,null,null,null,null,null,null,null,null,null,null,null,null,null,null,null,null,null,null,null,null,null,null,null,null,null,null,null,null,null,null,null,null,null,null,null,null,null,null,null,null,null,null,null,null,null,null,null,null,null,null,null,null,null,null,null,null,null,null,null,null,null,null,null,null,null,null,null,null,null,null,null,null,null,null,null,null,null,null,null,null,null,null,null,null,null,null,null,{"$f":"ROW()","v":189},null,null,null,null,"","",null,null,0,0]
[null,null,null,null,null,null,null,null,null,null,null,null,null,0,0,null,null,null,null,null,null,null,null,null,null,null,null,null,null,null,null,null,null,null,null,null,null,null,null,null,null,null,null,null,null,null,null,null,null,null,null,null,null,null,null,null,null,null,null,null,null,null,null,null,null,null,null,null,null,null,null,null,null,null,null,null,null,null,null,null,null,null,null,null,null,null,null,null,null,null,null,null,null,null,null,null,null,null,null,null,null,null,null,null,null,null,null,null,null,null,null,null,null,null,null,null,null,null,{"$f":"ROW()","v":190},null,null,null,null,"","",null,null,0,0]
[null,null,null,null,null,null,null,null,null,null,null,null,null,0,0,null,null,null,null,null,null,null,null,null,null,null,null,null,null,null,null,null,null,null,null,null,null,null,null,null,null,null,null,null,null,null,null,null,null,null,null,null,null,null,null,null,null,null,null,null,null,null,null,null,null,null,null,null,null,null,null,null,null,null,null,null,null,null,null,null,null,null,null,null,null,null,null,null,null,null,null,null,null,null,null,null,null,null,null,null,null,null,null,null,null,null,null,null,null,null,null,null,null,null,null,null,null,null,{"$f":"ROW()","v":191},null,null,null,null,"","",null,null,0,0]
[null,null,null,null,null,null,null,null,null,null,null,null,null,0,0,null,null,null,null,null,null,null,null,null,null,null,null,null,null,null,null,null,null,null,null,null,null,null,null,null,null,null,null,null,null,null,null,null,null,null,null,null,null,null,null,null,null,null,null,null,null,null,null,null,null,null,null,null,null,null,null,null,null,null,null,null,null,null,null,null,null,null,null,null,null,null,null,null,null,null,null,null,null,null,null,null,null,null,null,null,null,null,null,null,null,null,null,null,null,null,null,null,null,null,null,null,null,null,{"$f":"ROW()","v":192},null,null,null,null,"","",null,null,0,0]
[null,null,null,null,null,null,null,null,null,null,null,null,null,0,0,null,null,null,null,null,null,null,null,null,null,null,null,null,null,null,null,null,null,null,null,null,null,null,null,null,null,null,null,null,null,null,null,null,null,null,null,null,null,null,null,null,null,null,null,null,null,null,null,null,null,null,null,null,null,null,null,null,null,null,null,null,null,null,null,null,null,null,null,null,null,null,null,null,null,null,null,null,null,null,null,null,null,null,null,null,null,null,null,null,null,null,null,null,null,null,null,null,null,null,null,null,null,null,{"$f":"ROW()","v":193},null,null,null,null,"","",null,null,0,0]
[null,null,null,null,null,null,null,null,null,null,null,null,null,0,0,null,null,null,null,null,null,null,null,null,null,null,null,null,null,null,null,null,null,null,null,null,null,null,null,null,null,null,null,null,null,null,null,null,null,null,null,null,null,null,null,null,null,null,null,null,null,null,null,null,null,null,null,null,null,null,null,null,null,null,null,null,null,null,null,null,null,null,null,null,null,null,null,null,null,null,null,null,null,null,null,null,null,null,null,null,null,null,null,null,null,null,null,null,null,null,null,null,null,null,null,null,null,null,{"$f":"ROW()","v":194},null,null,null,null,"","",null,null,0,0]
[null,null,null,null,null,null,null,null,null,null,null,null,null,0,0,null,null,null,null,null,null,null,null,null,null,null,null,null,null,null,null,null,null,null,null,null,null,null,null,null,null,null,null,null,null,null,null,null,null,null,null,null,null,null,null,null,null,null,null,null,null,null,null,null,null,null,null,null,null,null,null,null,null,null,null,null,null,null,null,null,null,null,null,null,null,null,null,null,null,null,null,null,null,null,null,null,null,null,null,null,null,null,null,null,null,null,null,null,null,null,null,null,null,null,null,null,null,null,{"$f":"ROW()","v":195},null,null,null,null,"","",null,null,0,0]
[null,null,null,null,null,null,null,null,null,null,null,null,null,0,0,null,null,null,null,null,null,null,null,null,null,null,null,null,null,null,null,null,null,null,null,null,null,null,null,null,null,null,null,null,null,null,null,null,null,null,null,null,null,null,null,null,null,null,null,null,null,null,null,null,null,null,null,null,null,null,null,null,null,null,null,null,null,null,null,null,null,null,null,null,null,null,null,null,null,null,null,null,null,null,null,null,null,null,null,null,null,null,null,null,null,null,null,null,null,null,null,null,null,null,null,null,null,null,{"$f":"ROW()","v":196},null,null,null,null,"","",null,null,0,0]
[null,null,null,null,null,null,null,null,null,null,null,null,null,{"$f":"K197+L197","v":0},{"$f":"IF(N197<>R197,1,0)","v":0},null,null,null,null,null,null,null,null,null,null,null,null,null,null,null,null,null,null,null,null,null,null,null,null,null,null,null,null,null,null,null,null,null,null,null,null,null,null,null,null,null,null,null,null,null,null,null,null,null,null,null,null,null,null,null,null,null,null,null,null,null,null,null,null,null,null,null,null,null,null,null,null,null,null,null,null,null,null,null,null,null,null,null,null,null,null,null,null,null,null,null,null,null,null,null,null,null,null,null,null,null,null,null,{"$f":"ROW()","v":197},null,null,null,null,{"$f":"IFERROR(VLOOKUP(DQ197,$A$5:$DO$203,119,FALSE),\"\")","v":""},{"$f":"IFERROR(VLOOKUP(DR197,$A$5:$DO$203,119,FALSE),\"\")","v":""},null,null,0,0]
[null,null,null,null,null,null,null,null,null,null,null,null,null,0,0,null,null,null,null,null,null,null,null,null,null,null,null,null,null,null,null,null,null,null,null,null,null,null,null,null,null,null,null,null,null,null,null,null,null,null,null,null,null,null,null,null,null,null,null,null,null,null,null,null,null,null,null,null,null,null,null,null,null,null,null,null,null,null,null,null,null,null,null,null,null,null,null,null,null,null,null,null,null,null,null,null,null,null,null,null,null,null,null,null,null,null,null,null,null,null,null,null,null,null,null,null,null,null,{"$f":"ROW()","v":198},null,null,null,null,"","",null,null,{"$f":"IF($DS198=\"C\",$G198,0)","v":0},{"$f":"IF($DS198=\"I\",$G198,0)","v":0}]
[null,null,null,null,null,null,null,null,null,null,null,null,null,0,0,null,null,null,null,null,null,null,null,null,null,null,null,null,null,null,null,null,null,null,null,null,null,null,null,null,null,null,null,null,null,null,null,null,null,null,null,null,null,null,null,null,null,null,null,null,null,null,null,null,null,null,null,null,null,null,null,null,null,null,null,null,null,null,null,null,null,null,null,null,null,null,null,null,null,null,null,null,null,null,null,null,null,null,null,null,null,null,null,null,null,null,null,null,null,null,null,null,null,null,null,null,null,null,{"$f":"ROW()","v":199},null,null,null,null,"","",null,null,{"$f":"IF($DS199=\"C\",$G199,0)","v":0},0]
[null,null,null,null,null,null,null,null,null,null,null,null,null,0,0,null,null,null,null,null,null,null,null,null,null,null,null,null,null,null,null,null,null,null,null,null,null,null,null,null,null,null,null,null,null,null,null,null,null,null,null,null,null,null,null,null,null,null,null,null,null,null,null,null,null,null,null,null,null,null,null,null,null,null,null,null,null,null,null,null,null,null,null,null,null,null,null,null,null,null,null,null,null,null,null,null,null,null,null,null,null,null,null,null,null,null,null,null,null,null,null,null,null,null,null,null,null,null,{"$f":"ROW()","v":200},null,null,null,null,"","",null,null,{"$f":"IF($DS200=\"C\",$G200,0)","v":0},0]
[null,null,null,null,null,null,null,null,null,null,null,null,null,0,0,null,null,null,null,null,null,null,null,null,null,null,null,null,null,null,null,null,null,null,null,null,null,null,null,null,null,null,null,null,null,null,null,null,null,null,null,null,null,null,null,null,null,null,null,null,null,null,null,null,null,null,null,null,null,null,null,null,null,null,null,null,null,null,null,null,null,null,null,null,null,null,null,null,null,null,null,null,null,null,null,null,null,null,null,null,null,null,null,null,null,null,null,null,null,null,null,null,null,null,null,null,null,null,{"$f":"ROW()","v":201},null,null,null,null,"","",null,null,null,0]
[null,null,null,null,null,null,null,null,null,null,null,null,null,0,0,null,null,null,null,null,null,null,null,null,null,null,null,null,null,null,null,null,null,null,null,null,null,null,null,null,null,null,null,null,null,null,null,null,null,null,null,null,null,null,null,null,null,null,null,null,null,null,null,null,null,null,null,null,null,null,null,null,null,null,null,null,null,null,null,null,null,null,null,null,null,null,null,null,null,null,null,null,null,null,null,null,null,null,null,null,null,null,null,null,null,null,null,null,null,null,null,null,null,null,null,null,null,null,{"$f":"ROW()","v":202},null,null,null,null,"","",null,null,null,0]
[null,null,null,null,null,null,null,null,null,null,null,null,null,0,0,null,null,null,null,null,null,null,null,null,null,null,null,null,null,null,null,null,null,null,null,null,null,null,null,null,null,null,null,null,null,null,null,null,null,null,null,null,null,null,null,null,null,null,null,null,null,null,null,null,null,null,null,null,null,null,null,null,null,null,null,null,null,null,null,null,null,null,null,null,null,null,null,null,null,null,null,null,null,null,null,null,null,null,null,null,null,null,null,null,null,null,null,null,null,null,null,null,null,null,null,null,null,null,{"$f":"ROW()","v":203},null,null,null,null,"","",null,null,null,0]
[null,null,null,null,null,null,null,null,null,null,null,null,null,null,null,null,null,null,null,null,null,null,null,null,null,null,null,null,null,null,null,null,null,null,null,null,null,null,null,null,null,null,null,null,null,null,null,null,null,null,null,null,null,null,null,null,null,null,null,null,null,null,null,null,null,null,null,null,null,null,null,null,null,null,null,null,null,null,null,null,null,null,null,null,null,null,null,null,null,null,null,null,null,null,null,null,null,null,null,null,null,null,null,null,null,null,null,null,null,null,null,null,null,null,null,null,null,null,null,null,null,null,null,null,null,null,null,{"$f":"SUM(DX5:DX203)","v":0},{"$f":"SUM(DY5:DY203)","v":0}]
[5,"ultima riga",null,null,null,"Ultima riga"]
[1,"Avanzamento",null,null,null,"Avanzamento"]
[{"$f":"Prospetto!E5","v":"SI"},"Subtotali richiesti",null,null,null,"Subtotali"]
[{"$f":"Prospetto!E6","v":0},"Cofinanziamento",null,null,null,"cofinanziamento"]
[1,{"$f":"A209+1","v":2},{"$f":"B209+1","v":3},{"$f":"C209+1","v":4},{"$f":"D209+1","v":5},{"$f":"E209+1","v":6},{"$f":"F209+1","v":7},8,9,10,11,12,13,{"$f":"M209+1","v":14},15,16,17,{"$f":"Q209+1","v":18},19,20,{"$f":"T209+1","v":21},22,23,24,25,26,27,28,29,30,31,32,33,34,35,36,37,38,{"$f":"AL209+1","v":39},40,41,42,43,44,45,46,47,48,49,50,51,52,53,54,55,56,57,58,59,60,61,62,63,64,65,66,67,68,69,70,{"$f":"BR209+1","v":71},72,73,74,75,76,77,78,79,80,81,82,83,84,85,86,87,88,89,90,91,92,93,94,95,96,97,98,99,100,101,102,{"$f":"CX209+1","v":103},104,105,106,107,108,109,110,111,112,113,114,115,116,117,118,119,120,121,122,123,124,125,126,127,128,129]
[21,"Colonna Libera",null,null,null,"Colonna Libera","G","H","I","J","K","L","M","N","O","P","Q","R","S","T","U","V","W","X","Y","Z","AA","AB","AC","AD","AE","AF","AG","AH","AI","AJ","AK","AL","AM","AN","AO","AP","AQ","AR","AS","AT","AU","AV","AW","AX","AY","AZ","BA","BB","BC","BD","BE","BF","BG","BH","BI","BJ","BK","BL","BM","BN","BO","BP","BQ","BR","BS","BT","BU","BV","BW","BX","BY","BZ","CA","CB","CC","CD","CE","CF","CG","CH","CI","CJ","CK","CL","CM","CN","CO","CP","CQ","CR","CS","CT","CU","CV","CW","CX","CY","CZ","DA","DB","DC","DD","DE","DF","DG","DH","DI","DJ","DK","DL","DM","DN","DO","DP","DQ","DR","DS","DT","DU","DV","DW","DX","DY"]
[20,"NON USATO",null,null,null,"Colonna no pag o var"]
[null,null,null,null,null,"Cella cliccata"]
[null,null,null,null,null,"TOTALE  ATTIVITA"]
[null,null,null,null,null,"TOTALE CASSA"]
[null,null,null,null,null,"TOTALE IVA"]
[]
[]
[0]
[0]
[null,null,null,null,null,"Tipo CE inserita in form"]
["Desc CE Altro"]
[null,null,null,null,null,"Numero CE per calcolo economie"]
[null,null,null,null,null,"No action su maschera"]
[0,null,null,null,null,"BASe SI"]
[]
[]
[]
[]
[]
[]
[]
[]
[]
[]
[]
[]
[]
[]
[]
[]
[]
[null,null,null,null,null,1,"Versione da stampare"]
[null,null,null,null,null,0,"1=si economie"]
[null,null,null,null,null,0,"1= si dettagli"]

{"sheet":"Consuntivazione","index":3,"n_rows":207,"n_cols":9,"rows_kept":207,"cut":false,"hidden":false,"merged":[[0,8,0,11],[1,8,1,11],[1,1,1,2],[0,1,0,2],[2,4,2,6],[2,0,2,1],[1,5,1,6],[0,5,0,6],[0,3,0,4],[1,3,1,4]]}
["Opera:",{"$f":"Prospetto!B3","v":0},null,"CUP:",null,{"$f":"Prospetto!B5","v":1}]
["Committente:",{"$f":"Prospetto!B7","v":0},null,"RUP: ",null,{"$f":"Prospetto!B6","v":0}]
[null,null,"Inserire la versione del Conto Economico da Caricare -->"]
["Codice Attività","Raggruppa Per","Descrizione attività","Piano\nEconomico\nSelezionato",null,"Codice Raggruppamento","Descrizione Raggruppamento"]
[null,null,null,null,null,"T01","Totale Lavori AL NETTO IVA"]
[null,null,null,null,null,"T02","Totale Lavori in Economia Stazione Appaltante AL NETTO IVA E CASSE"]
[null,null,null,null,null,"T03","Toatale analisi tecniche"]
[null,null,null,null,null,"T04","Totale costi amministrativi"]
[null,null,null,null,null,"T05","Totale Esecuzione"]
[null,null,null,null,null,"T06","Totale Progettazione"]
[null,null,null,null,null,"T07","Totale Esecuzione"]
[null,null,null,null,null,"T08","Totale Conduzione Progetto ed amministrazione Progetto"]
[null,null,null,null,null,"T09","Spese per gare e pubblicità"]
[null,null,null,null,null,"T10","Totale spese Collaudo"]
[null,null,null,null,null,"T11","Totale Indennizzi ed Acquisti"]
[null,null,null,null,null,"T12","Totale T12"]
[null,null,null,null,null,"T13","Totale T13"]
[null,null,null,null,null,"T14","Totale T14"]
[null,null,null,null,null,"T15","Totale T15"]
[null,null,null,null,null,"T16","Totale T16"]
[null,null,null,null,null,"T17","Totale T17"]
[null,null,null,null,null,"T18","Totale T18"]
[null,null,null,null,null,"T19","Totale T19"]
[null,null,null,null,null,"T20","Totale T20"]
[null,null,null,null,null,"T21","Totale T21"]
[null,null,null,null,null,"T22","Totale T22"]
[null,null,null,null,null,"T23","Totale T23"]
[null,null,null,null,null,"T24","Totale Casse"]
[null,null,null,null,null,"T25","Totale IVA"]
[null,null,null,null,null,"T99","Non riclassificato"]
[]
[]
[]
[]
[]
[]
[]
[]
[]
[]
[]
[]
[]
[]
[]
[]
[]
[]
[]
[]
[]
[]
[]
[]
[]
[]
[]
[]
[]
[]
[]
[]
[]
[]
[]
[]
[]
[]
[]
[]
[]
[]
[]
[]
[]
[]
[]
[]
[]
[]
[]
[]
[]
[]
[]
[]
[]
[]
[]
[]
[]
[]
[]
[]
[]
[]
[]
[]
[]
[]
[]
[]
[]
[]
[]
[]
[]
[]
[]
[]
[]
[]
[]
[]
[]
[]
[]
[]
[]
[]
[]
[]
[]
[]
[]
[]
[]
[]
[]
[]
[]
[]
[]
[]
[]
[]
[]
[]
[]
[]
[]
[]
[]
[]
[]
[]
[]
[]
[]
[]
[]
[]
[]
[]
[]
[]
[]
[]
[]
[]
[]
[]
[]
[]
[]
[]
[]
[]
[]
[]
[]
[]
[]
[]
[]
[]
[]
[]
[]
[]
[]
[]
[]
[]
[]
[]
[]
[]
[]
[]
[]
[]
[]
[]
[]
[]
[]
[]
[]
[]
[]
[]
[]
[1,{"$f":"A204+1","v":2},3,4,5,6,7,null,{"$f":"H204+1","v":1}]
[4,"ult. Riga"]
[0]
[0,"solo tot"]

{"sheet":"FatturazionePagamenti","index":4,"n_rows":210,"n_cols":9,"rows_kept":210,"cut":false,"hidden":false,"merged":[[2,0,2,1],[0,5,0,8],[1,5,1,8],[0,1,0,2],[0,3,0,4],[1,1,1,2],[1,3,1,4]]}
["Opera:",{"$f":"Prospetto!B3","v":0},null,"CUP:",null,{"$f":"Prospetto!B5","v":1}]
["Committente:",{"$f":"Prospetto!B7","v":0},null,"RUP: ",null,{"$f":"Prospetto!B6","v":0}]
[null,null,"Inserire la versione del Conto Economico da Caricare -->",null,{"$f":"SUM(E5:E203)","v":0},{"$f":"SUM(F5:F203)","v":0},{"$f":"SUM(G5:G203)","v":0},{"$f":"SUM(H5:H203)","v":0},{"$f":"SUM(I5:I203)","v":0}]
["Codice Attività","Raggruppa Per","Descrizione attività","Piano\nEconomico\nSelezionato","Fatturato","Pagato","Da Pagare","Saldo su \nFatturazione","Saldo su Pagamenti"]
[null,null,null,null,null,null,{"$f":"E5-F5","v":0},{"$f":"D5-E5","v":0},{"$f":"D5-F5","v":0}]
[null,null,null,null,null,null,{"$f":"E6-F6","v":0},{"$f":"D6-E6","v":0},{"$f":"D6-F6","v":0}]
[null,null,null,null,null,null,0,0,0]
[null,null,null,null,null,null,0,0,0]
[null,null,null,null,null,null,0,0,0]
[null,null,null,null,null,null,0,0,0]
[null,null,null,null,null,null,0,0,0]
[null,null,null,null,null,null,0,0,0]
[null,null,null,null,null,null,0,0,0]
[null,null,null,null,null,null,0,0,0]
[null,null,null,null,null,null,0,0,0]
[null,null,null,null,null,null,0,0,0]
[null,null,null,null,null,null,0,0,0]
[null,null,null,null,null,null,0,0,0]
[null,null,null,null,null,null,0,0,0]
[null,null,null,null,null,null,0,0,0]
[null,null,null,null,null,null,0,0,0]
[null,null,null,null,null,null,0,0,0]
[null,null,null,null,null,null,0,0,0]
[null,null,null,null,null,null,0,0,0]
[null,null,null,null,null,null,0,0,0]
[null,null,null,null,null,null,0,0,0]
[null,null,null,null,null,null,0,0,0]
[null,null,null,null,null,null,0,0,0]
[null,null,null,null,null,null,0,0,0]
[null,null,null,null,null,null,0,0,0]
[null,null,null,null,null,null,0,0,0]
[null,null,null,null,null,null,0,0,0]
[null,null,null,null,null,null,0,0,0]
[null,null,null,null,null,null,0,0,0]
[null,null,null,null,null,null,0,0,0]
[null,null,null,null,null,null,0,0,0]
[null,null,null,null,null,null,0,0,0]
[null,null,null,null,null,null,0,0,0]
[null,null,null,null,null,null,0,0,0]
[null,null,null,null,null,null,0,0,0]
[null,null,null,null,null,null,0,0,0]
[null,null,null,null,null,null,0,0,0]
[null,null,null,null,null,null,0,0,0]
[null,null,null,null,null,null,0,0,0]
[null,null,null,null,null,null,0,0,0]
[null,null,null,null,null,null,0,0,0]
[null,null,null,null,null,null,0,0,0]
[null,null,null,null,null,null,0,0,0]
[null,null,null,null,null,null,0,0,0]
[null,null,null,null,null,null,0,0,0]
[null,null,null,null,null,null,0,0,0]
[null,null,null,null,null,null,0,0,0]
[null,null,null,null,null,null,0,0,0]
[null,null,null,null,null,null,0,0,0]
[null,null,null,null,null,null,0,0,0]
[null,null,null,null,null,null,0,0,0]
[null,null,null,null,null,null,0,0,0]
[null,null,null,null,null,null,0,0,0]
[null,null,null,null,null,null,0,0,0]
[null,null,null,null,null,null,0,0,0]
[null,null,null,null,null,null,0,0,0]
[null,null,null,null,null,null,0,0,0]
[null,null,null,null,null,null,0,0,0]
[null,null,null,null,null,null,0,0,0]
[null,null,null,null,null,null,0,0,0]
[null,null,null,null,null,null,0,0,0]
[null,null,null,null,null,null,0,0,0]
[null,null,null,null,null,null,0,0,0]
[null,null,null,null,null,null,0,0,0]
[null,null,null,null,null,null,{"$f":"E70-F70","v":0},{"$f":"D70-E70","v":0},{"$f":"D70-F70","v":0}]
[null,null,null,null,null,null,0,0,0]
[null,null,null,null,null,null,0,0,0]
[null,null,null,null,null,null,0,0,0]
[null,null,null,null,null,null,0,0,0]
[null,null,null,null,null,null,0,0,0]
[null,null,null,null,null,null,0,0,0]
[null,null,null,null,null,null,0,0,0]
[null,null,null,null,null,null,0,0,0]
[null,null,null,null,null,null,0,0,0]
[null,null,null,null,null,null,0,0,0]
[null,null,null,null,null,null,0,0,0]
[null,null,null,null,null,null,0,0,0]
[null,null,null,null,null,null,0,0,0]
[null,null,null,null,null,null,0,0,0]
[null,null,null,null,null,null,0,0,0]
[null,null,null,null,null,null,0,0,0]
[null,null,null,null,null,null,0,0,0]
[null,null,null,null,null,null,0,0,0]
[null,null,null,null,null,null,0,0,0]
[null,null,null,null,null,null,0,0,0]
[null,null,null,null,null,null,0,0,0]
[null,null,null,null,null,null,0,0,0]
[null,null,null,null,null,null,0,0,0]
[null,null,null,null,null,null,0,0,0]
[null,null,null,null,null,null,0,0,0]
[null,null,null,null,null,null,0,0,0]
[null,null,null,null,null,null,0,0,0]
[null,null,null,null,null,null,0,0,0]
[null,null,null,null,null,null,0,0,0]
[null,null,null,null,null,null,0,0,0]
[null,null,null,null,null,null,0,0,0]
[null,null,null,null,null,null,0,0,0]
[null,null,null,null,null,null,0,0,0]
[null,null,null,null,null,null,0,0,0]
[null,null,null,null,null,null,0,0,0]
[null,null,null,null,null,null,0,0,0]
[null,null,null,null,null,null,0,0,0]
[null,null,null,null,null,null,0,0,0]
[null,null,null,null,null,null,0,0,0]
[null,null,null,null,null,null,0,0,0]
[null,null,null,null,null,null,0,0,0]
[null,null,null,null,null,null,0,0,0]
[null,null,null,null,null,null,0,0,0]
[null,null,null,null,null,null,0,0,0]
[null,null,null,null,null,null,0,0,0]
[null,null,null,null,null,null,0,0,0]
[null,null,null,null,null,null,0,0,0]
[null,null,null,null,null,null,0,0,0]
[null,null,null,null,null,null,0,0,0]
[null,null,null,null,null,null,0,0,0]
[null,null,null,null,null,null,0,0,0]
[null,null,null,null,null,null,0,0,0]
[null,null,null,null,null,null,0,0,0]
[null,null,null,null,null,null,0,0,0]
[null,null,null,null,null,null,0,0,0]
[null,null,null,null,null,null,0,0,0]
[null,null,null,null,null,null,0,0,0]
[null,null,null,null,null,null,0,0,0]
[null,null,null,null,null,null,0,0,0]
[null,null,null,null,null,null,0,0,0]
[null,null,null,null,null,null,0,0,0]
[null,null,null,null,null,null,0,0,0]
[null,null,null,null,null,null,0,0,0]
[null,null,null,null,null,null,{"$f":"E134-F134","v":0},{"$f":"D134-E134","v":0},{"$f":"D134-F134","v":0}]
[null,null,null,null,null,null,0,0,0]
[null,null,null,null,null,null,0,0,0]
[null,null,null,null,null,null,0,0,0]
[null,null,null,null,null,null,0,0,0]
[null,null,null,null,null,null,0,0,0]
[null,null,null,null,null,null,0,0,0]
[null,null,null,null,null,null,0,0,0]
[null,null,null,null,null,null,0,0,0]
[null,null,null,null,null,null,0,0,0]
[null,null,null,null,null,null,0,0,0]
[null,null,null,null,null,null,0,0,0]
[null,null,null,null,null,null,0,0,0]
[null,null,null,null,null,null,0,0,0]
[null,null,null,null,null,null,0,0,0]
[null,null,null,null,null,null,0,0,0]
[null,null,null,null,null,null,0,0,0]
[null,null,null,null,null,null,0,0,0]
[null,null,null,null,null,null,0,0,0]
[null,null,null,null,null,null,0,0,0]
[null,null,null,null,null,null,0,0,0]
[null,null,null,null,null,null,0,0,0]
[null,null,null,null,null,null,0,0,0]
[null,null,null,null,null,null,0,0,0]
[null,null,null,null,null,null,0,0,0]
[null,null,null,null,null,null,0,0,0]
[null,null,null,null,null,null,0,0,0]
[null,null,null,null,null,null,0,0,0]
[null,null,null,null,null,null,0,0,0]
[null,null,null,null,null,null,0,0,0]
[null,null,null,null,null,null,0,0,0]
[null,null,null,null,null,null,0,0,0]
[null,null,null,null,null,null,0,0,0]
[null,null,null,null,null,null,0,0,0]
[null,null,null,null,null,null,0,0,0]
[null,null,null,null,null,null,0,0,0]
[null,null,null,null,null,null,0,0,0]
[null,null,null,null,null,null,0,0,0]
[null,null,null,null,null,null,0,0,0]
[null,null,null,null,null,null,0,0,0]
[null,null,null,null,null,null,0,0,0]
[null,null,null,null,null,null,0,0,0]
[null,null,null,null,null,null,0,0,0]
[null,null,null,null,null,null,0,0,0]
[null,null,null,null,null,null,0,0,0]
[null,null,null,null,null,null,0,0,0]
[null,null,null,null,null,null,0,0,0]
[null,null,null,null,null,null,0,0,0]
[null,null,null,null,null,null,0,0,0]
[null,null,null,null,null,null,0,0,0]
[null,null,null,null,null,null,0,0,0]
[null,null,null,null,null,null,0,0,0]
[null,null,null,null,null,null,0,0,0]
[null,null,null,null,null,null,0,0,0]
[null,null,null,null,null,null,0,0,0]
[null,null,null,null,null,null,0,0,0]
[null,null,null,null,null,null,0,0,0]
[null,null,null,null,null,null,0,0,0]
[null,null,null,null,null,null,0,0,0]
[null,null,null,null,null,null,0,0,0]
[null,null,null,null,null,null,0,0,0]
[null,null,null,null,null,null,0,0,0]
[null,null,null,null,null,null,0,0,0]
[null,null,null,null,null,null,0,0,0]
[null,null,null,null,null,null,{"$f":"E198-F198","v":0},{"$f":"D198-E198","v":0},{"$f":"D198-F198","v":0}]
[null,null,null,null,null,null,0,0,0]
[null,null,null,null,null,null,0,0,0]
[null,null,null,null,null,null,0,0,0]
[null,null,null,null,null,null,0,0,0]
[null,null,null,null,null,null,0,0,0]
[1,{"$f":"A204+1","v":2},{"$f":"B204+1","v":3},{"$f":"C204+1","v":4},{"$f":"D204+1","v":5},{"$f":"E204+1","v":6}]
[4,"ult. Riga"]
[0]
[0,"solo tot"]
[]
[]
[7]

{"sheet":"HELP","index":5,"n_rows":205,"n_cols":2,"rows_kept":205,"cut":false,"hidden":false,"merged":[[89,0,99,0],[89,1,99,1],[67,0,77,0],[67,1,77,1],[78,0,88,0],[78,1,88,1]]}
["Introduzione","Il tool e’ composto da cinque fogli di lavoro (Spreadsheet) ed un foglio di Help on line:\n1.\tProspetto\n2.\tAnagrafica\n3.\tQuadro\n4.\tConsuntivazione\n5.\tFatturazionePagamenti\n6.\tHelp\n\nTutti i fogli presentano una Testata dedotta dalle informazioni inserite nel foglio Prospetto.\nLe sole celle editabili sono evidenziate nel colore giallo, le altre sono bloccate ed immodificabili.\nL'utente può selezionare a piacimento la cartella sulla quale è interessato ad operare.\n\nIl flusso logico prevede l’inserimento dei dati nel Prospetto con la conseguente creazione delle directory ove salvare l’opera ed i documenti ad essa inerenti, successivamente sul foglio Anagrafica si caricherà l’anagrafica che si vuole utilizzare e si selezioneranno le voci che si vogliono inserire nel Quadro generandolo. Sul quadro andranno digitati gli importi per ciascuna voce selezionata ed inserita. \nSi possono genere più versioni del Quadro Economico e mantenerne la storicizzazione. \nSi potranno poi usare il foglio Consuntivazione, per riclassificare il quadro economico di interesse ed il foglio FatturazionePagamenti, per riportare per ciascuna voce del Quadro Economico i valori delle fatture ricevute ed dei pagamenti effettuati."]
["Generalità","Premendo i tasti Ctrl+h si può richiamare questo Help/Manuale Utente\nPremendo i tasti Ctrl+q  Ctrl+w  Ctrl+F1 si possono nascondere i vari menù Excel ed avere più spazio in visualizzazione.\nL'utente può interagire con il tool:\n•\tinserendo i dati nelle caselle non bloccate (gialle),\n•\tpremendo sui pulsanti per lanciare le procedure automatizzate corrispondenti \n•\tselezionando le \"check box\" per selezionare righe.\n\nIl tool salva in automatico il file su cui si opera creando con il nome utente una versione \"saved\" ed una versione \"bk\" \nLa versione \"saved\" viene creata all’apertura del tool quindi si lavora sul foglio di lavoro saved ed il file originario non verrà modificato sino al premere del pulsante Salva.\nLa versione \"bk\" viene creata in uscita e salva il file con le modifiche effettuate anche se non si è usato il pulsante Salva.\n"]
["Prospetto","\nIn questa cartella vanno inseriti i valori descrittivi dell'opera:\n•\tNome dell'opera\n•\tBreve descrizione dell'opera\n•\tNumero del CUP\n•\tNome del RUP\n•\tSoggetto Finanziatore\n•\tCriticità dell'opera\n•\tSettore della stazione appaltante (Provincia di Rieti)\n•\tUna eventuale nota\n•\tUn numero intervento\n•\tUn codice intervento\n•\tAnno inizio Opera.\n\nQuando si inizia un quadro di una nuova opera occorre, dopo aver inserito il numero di CUP (definitivo o provvisorio) premere il pulsante Crea Cartelle, in modo da creare nella cartella condivisa indicata nella cella in giallo Cartella Archiviazione Opere la struttura per memorizzare tutti i documenti da condividere inerenti all’opera. Viene Proposta una maschera in cui si può specificare quali Cartelle creare e se creare le sottocartelle. Il sistema Propone quelle inerenti il QE che si sta creando. Il pulsante potrà essere premuto anche per aggiungere le cartelle secondo necessità (es. nuove attività aggiunte al QE).\n\nSe non si crea la directory non sarà possibile salvare il file.\n\nSe si preme il pulsante Salva l’opera viene salvata, se non sono state precedentemente create le directory si riceverà un messaggio di errore.\n\nIl salvataggio avviene nella cartella che avrà il nome “Opera + CUP indicato “nel Prospetto.\n\nIl nome del foglio Excel salvato sarà “Op. N. + CUP indicato “nel Prospetto.\n\n"]
["Anagrafica","In questa cartella sono proposte le possibili operazioni necessarie per la creazione del quadro dell'Opera.\nIn via preliminare è possibile caricare una anagrafica creata con il tool gestione Anagrafica\nModificare l’anagrafica caricata secondo esigenze.\n\nPer le varie attività è possibile indicare se il loro valore corrisponde ad una percentuale della somma di una o più attività (il sistema controlla che i valori immessi siano corretti) Tale possibilità è utile per definire gli importi per l'IVA o le Casse dei professionisti e per valorizzare secondo legge importi a riserva.\nLe voci di anagrafica sono selezionabili singolarmente o tutte tramite i check box presenti sul lato sinistro delle voci, in modo da inserirle nel quadro secondo necessità.\n\nLa tabella delle voci di Anagrafica è composta da 7 colonne;\n1.\tBox di selezione (in testata è presente box per selezionare tutte le attività)\n2.\tCodice attività (occorre rispettare la sintassi indicata per la codifica)\n3.\tDescrizione Attività (Testo libero ma si consiglia di utilizzare una descrizione esplicativa)\n4.\t% di calcolo (se una attività è una % di una altra attività o somma di attività)\n5.\tDa (primo codice attività da sommare per il calcolo della %)\n6.\tA (ultimo codice attività da sommare per il calcolo della %)\n7.\tTipo di voce del Quadro (relativo a Cassa Professionale, IVA, o attività primaria)\n\nLa struttura della anagrafica viene validata prima di essere utilizzata, la presenza di eventuali errori viene segnalata e non si procede a creare il Quadro Economico se tutti gli errori non sono stati eliminati. \nSono presenti sei bottoni che lanciano le rispettive procedure automatiche:\n•\tCrea Quadro con tutte le attività (Crea Quadro tutte)\n•\tCrea Quadro con le sole attività selezionate (Crea Quadro Selezionate)\n•\tOrdina le attività in Anagrafica per codice immesso (Ordina attività per Codice)\n•\tInizializza l'opera cancellando tutti i dati immessi a meno del Prospetto (Inizializza)\n•\t Aggiungi righe su Quadro già creato (Aggiungi Righe Selezionate)\n•\tCaricare l'anagrafica generata con il tool Gestione Anagrafica (Carica Anagrafica)\n\nSul lato destro in intestazione è indicato se il Quadro Economico è stato già generato (SI/NO).\nLe caselle della prima colonna diventano colore giallo ocra se le voci di anagrafica sono state già inserite nel Quadro Economico."]
["Quadro","In questa cartella è possibile gestire il Quadro Economico di un'opera.\nL'utente si trova a disposizione l’elenco delle attività selezionate precedentemente ed ha la possibilità di inserire gli importi ipotizzati per ciascuna. \nLa cancellazione di una attività dal Quadro Economico può essere effettuata inserendo zero nell’importo. \n\nNon è possibile cancellare fisicamente la riga, in quanto potrebbe essere valorizzata ed utilizzata in altre versioni del Quadro Economico\n\nFunzioni da avviare tramite Pulsanti:\n\n• Pulsante Genera QE – Dopo aver inserito gli importi nelle righe del quadro se si preme questo pulsante viene generata una versione del QE che verrà memorizzata nella    prima colonna disponibile a destra.\nPrima di generare il QE viene visualizzata una finestra dove inserire “il titolo” del QE (selezionando uno tra quelli standard o selezionando “altro” e inserendo il titolo desiderato).\nSe sono stati generati altri QE generato viene richiesto di inserire la versione del QE rispetto al quale calcolare le economie.\nVersione, Data e Titolo del QE vengono memorizzati nelle due righe di testata.\n\n•Pulsante BASE – Dopo aver inserito gli importi nelle righe del quadro se si preme questo pulsante vengono cancellate tutte le versioni del QE sin ora generate e generata una versione del QE che verrà memorizzata nella prima colonna a destra. \nPrima di generare il QE viene visualizzata una finestra dove inserire “il titolo” del QE (selezionando uno tra quelli standard o selezionando “altro” e inserendo il titolo desiderato).\nSe sono stati generati altri QE generato viene richiesto di inserire la versione del QE rispetto al quale calcolare le economie\nVersione, Data e Titolo del QE vengono memorizzati nelle due righe di testata.\n\n•Pulsante Salva –se si preme questo tasto viene salvata l’opera nella directory indicata nel foglio Prospetto\n\n•Pulsante Stampa – se si preme questo tasto viene avviata la procedura di stampa del QE, viene visualizzata una finestra dove selezionare le intestazioni ed i piè pagina da stampare si indica la versione del QE da stampare e si seleziona o meno la stampa delle economie e dei dettagli del QE. Successivamente è possibile indicare se stampare su carta o generare un file PDF.\n\nE’ possibile variare il Titolo del QE e la versione di riferimento per il calcolo delle Economie effettuando un doppio click col mouse sulle caselle di testata, a tale azione si aziona la schermata di sostituzione."]
["Consuntivazione","Foglio Consuntivazione\nTale Foglio di lavoro appare vuoto se non già utilizzato in precedenza.\nSulla destra e invece inserita la lista dei codici da utilizzare per riclassificare, tale lista è personalizzabile (caselle gialle) con descrizioni personali.\nPer elaborare la riclassifica bisogna utilizzare le funzioni previste.\n\nFunzioni da avviare tramite Pulsanti:\n\n•Pulsante Carica – prima di premere detto pulsante occorre inserire nella casella a destra la Versione di QE che si vuole caricare, premendo il pulsante tale versione viene visualizzata nel prospetto.\n\n•Pulsante Riclassifica – prima di premere detto pulsante occorre inserire a sinistra di ogni voce del Quadro caricato il codice di totalizzazione (tutte le voci con tale codice verranno sommate generando un sotto totale). Se il codice non è inserito verrà attributo automaticamente il codice T99.\n\n•Pulsante Solo TotaliSI/NO – premendo tale pulsante è possibile nascondere od evidenziare Ie righe di dettaglio del Quadro\n\n•Pulsante Inizializza – premendo tale pulsante viene inizializzato il foglio di lavoro eliminando il Quadro Economico caricato\n\n•Pulsante Stampa – premendo tale pulsante viene stampata la versione corrente della riclassifica effettuata.\n"]
["FatturazionePagamenti","Tale Foglio di lavoro appare vuoto se non già utilizzato in precedenza.\n\nPer elaborare i dettagli bisogna utilizzare le funzioni previste.\n\nFunzioni da avviare tramite Pulsanti:\n\n•Pulsante Carica – prima di premere detto pulsante occorre inserire nella casella a destra la Versione di QE che si vuole caricare, premendo il pulsante tale versione viene visualizzata nel prospetto.\nUna volta caricate le righe di dettaglio del QE di interesse, su ciascuna, si possono inserire gli Importi fatturati e gli Importi pagati.\n\nNOTA: se si carica una nuova versione del CE vengono definitivamente persi i dati di fatturazione e pagamenti già inseriti.\n\n•Pulsante Stampa – premendo tale pulsante viene stampata la versione corrente del prospetto con gli Importi fatturati e/o Pagati."]
["Considerazioni Sulla Sicurezza dell’Applicazione","La procedura è stata realizzata con alcune funzioni di sicurezza già implementate.\n\nGestione della non contemporaneità di uso degli stessi file (Opere) da utenti diversi (al secondo utente viene negato l’accesso al quadro dell’opera)\nI file Excel vengono automaticamente salvati in fase di apertura e di chiusura con il nome utente che sta operando, per cui ciascun utente ha sempre disponibile un file Excel nella versione prima del suo intervento (Saved) e successivamente al suo intervento (Back Up) anche se non salva il file modificato)\n\nL’applicazione permette di creare una cartella in area condivisa per ogni OPERA (la cartella riporta il numero CUP dell’opera come inserita nella procedura) con tutte le sottocartelle ad oggi identificate come necessarie, in tali cartelle deve essere inserita tutta la documentazione inerente all’Opera suddivisa per tipologia:\n•\tDocumenti Tecnici\n•\tDetermine\n•\tFatture e Mandati\n•\tDocumenti Gare\n•\tSAL\n\nIn tale Cartella verranno salvati tutti i file Excel generati in automatico o salvati da utente.\n\nAd oggi non è stata prevista una segregazione delle funzioni. Tutti gli utenti abilitati ad accedere alle cartelle condivise possono accedere alle opere. \n\nSi suggerisce di creare cartelle condivise diverse per ogni area tecnica in modo da ridurre la possibilità di accessi non voluti ed errori."]
["Nota sulla Release Corrente","Viene rilasciata l’applicazione con numero di Release 03.\n\nEcco la Cronologia delle Release:\n•\t(Release 0 = creazione del front end per una verifica con utenti e identificazioni funzionalità di base)\n•\t(Release 01 = Funzionalità di base Operative)\n•\t(Release 02 = Applicazione Completa)\n•\t(Release 03 = Release attuale rilasciata per l’uso diffuso)."]
[]
[]
[]
[]
[]
[]
[]
[]
[]
[]
[]
[]
[]
[]
[]
[]
[]
[]
[]
[]
[]
[]
[]
[]
[]
[]
[]
[]
[]
[]
[]
[]
[]
[]
[]
[]
[]
[]
[]
[]
[]
[]
[]
[]
[]
[]
[]
[]
[]
[]
[]
[]
[]
[]
[]
[]
[]
[]
[]
[]
[]
[]
[]
[]
[]
[]
[]
[]
[]
[]
[]
[]
[]
[]
[]
[]
[]
[]
[]
[]
[]
[]
[]
[]
[]
[]
[]
[]
[]
[]
[]
[]
[]
[]
[]
[]
[]
[]
[]
[]
[]
[]
[]
[]
[]
[]
[]
[]
[]
[]
[]
[]
[]
[]
[]
[]
[]
[]
[]
[]
[]
[]
[]
[]
[]
[]
[]
[]
[]
[]
[]
[]
[]
[]
[]
[]
[]
[]
[]
[]
[]
[]
[]
[]
[]
[]
[]
[]
[]
[]
[]
[]
[]
[]
[]
[]
[]
[]
[]
[]
[]
[]
[]
[]
[]
[]
[]
[]
[]
[]
[]
[]
[]
[]
[]
[]
[]
[]
[]
[]
[]
[]
[]
[]
[]
[]
[]
[]
[]
[]
[]
[]
[]
[]
[]
[31]

{"sheet":"Cartelle","index":6,"n_rows":253,"n_cols":9,"rows_kept":253,"cut":false,"hidden":true,"merged":[[0,1,24,1],[103,1,106,1],[98,1,102,1],[107,1,125,1],[50,1,74,1],[25,1,49,1],[85,1,97,1],[75,1,84,1],[245,1,251,1],[242,1,244,1],[232,1,241,1],[227,1,231,1],[212,1,226,1],[197,1,211,1],[191,1,196,1],[184,1,190,1],[168,1,182,1],[126,1,167,1]]}
["00","LAVORI","01","Incarichi",null,null,{"$f":"A1&\" \"&B1","v":"00 LAVORI"},{"$f":"A1&C1&\" \"&D1","v":"0001 Incarichi"}]
["00",null,"02","Fatture","01"," Incarico",null,{"$f":"A2&C2&\" \"&D2","v":"0002 Fatture"},{"$f":"A2&C2&E2&\" \"&F2","v":"000201  Incarico"}]
["00",null,"02",null,"02"," Verifica Requisiti",null,null,"000202  Verifica Requisiti"]
["00",null,"02",null,"03"," Verifiche Fiscali e Previdenziali",null,null,"000203  Verifiche Fiscali e Previdenziali"]
["00",null,"02",null,"04"," Fatture",null,null,"000204  Fatture"]
["00",null,"02",null,"05"," Liquidazione fatture",null,null,"000205  Liquidazione fatture"]
["00",null,"02",null,"06"," Mandati Quietanzati",null,null,"000206  Mandati Quietanzati"]
["00",null,"02",null,"07"," Garanzie",null,null,"000207  Garanzie"]
["00",null,"02",null,"08"," Tracciabilità",null,null,"000208  Tracciabilità"]
["00",null,"03","Liquidazione Spese","01"," Incarico",null,{"$f":"A10&C10&\" \"&D10","v":"0003 Liquidazione Spese"},"000301  Incarico"]
["00",null,"03",null,"02"," Verifica Requisiti",null,null,"000302  Verifica Requisiti"]
["00",null,"03",null,"03"," Verifiche Fiscali e Previdenziali",null,null,"000303  Verifiche Fiscali e Previdenziali"]
["00",null,"03",null,"04"," Fatture",null,null,"000304  Fatture"]
["00",null,"03",null,"05"," Liquidazione fatture",null,null,"000305  Liquidazione fatture"]
["00",null,"03",null,"06"," Mandati Quietanzati",null,null,"000306  Mandati Quietanzati"]
["00",null,"03",null,"07"," Garanzie",null,null,"000307  Garanzie"]
["00",null,"03",null,"08"," Tracciabilità",null,null,"000308  Tracciabilità"]
["00",null,"04","Mandati Quietanzati","01"," Incarico",null,{"$f":"A18&C18&\" \"&D18","v":"0004 Mandati Quietanzati"},"000401  Incarico"]
["00",null,"04",null,"02"," Verifica Requisiti",null,null,"000402  Verifica Requisiti"]
["00",null,"04",null,"03"," Verifiche Fiscali e Previdenziali",null,null,"000403  Verifiche Fiscali e Previdenziali"]
["00",null,"04",null,"04"," Fatture",null,null,"000404  Fatture"]
["00",null,"04",null,"05"," Liquidazione fatture",null,null,"000405  Liquidazione fatture"]
["00",null,"04",null,"06"," Mandati Quietanzati",null,null,"000406  Mandati Quietanzati"]
["00",null,"04",null,"07"," Garanzie",null,null,"000407  Garanzie"]
["00",null,"04",null,"08"," Tracciabilità",null,null,"000408  Tracciabilità"]
["01","LAVORI IN ECONOMIA","01","Incarichi",null,null,{"$f":"A26&\" \"&B26","v":"01 LAVORI IN ECONOMIA"},{"$f":"A26&C26&\" \"&D26","v":"0101 Incarichi"}]
["01",null,"02","Fatture","01"," Incarico",null,{"$f":"A27&C27&\" \"&D27","v":"0102 Fatture"},{"$f":"A27&C27&E27&\" \"&F27","v":"010201  Incarico"}]
["01",null,"02",null,"02"," Verifica Requisiti",null,null,"010202  Verifica Requisiti"]
["01",null,"02",null,"03"," Verifiche Fiscali e Previdenziali",null,null,"010203  Verifiche Fiscali e Previdenziali"]
["01",null,"02",null,"04"," Fatture",null,null,"010204  Fatture"]
["01",null,"02",null,"05"," Liquidazione fatture",null,null,"010205  Liquidazione fatture"]
["01",null,"02",null,"06"," Mandati Quietanzati",null,null,"010206  Mandati Quietanzati"]
["01",null,"02",null,"07"," Garanzie",null,null,"010207  Garanzie"]
["01",null,"02",null,"08"," Tracciabilità",null,null,"010208  Tracciabilità"]
["01",null,"03","Liquidazione Spese","01"," Incarico",null,{"$f":"A35&C35&\" \"&D35","v":"0103 Liquidazione Spese"},"010301  Incarico"]
["01",null,"03",null,"02"," Verifica Requisiti",null,null,"010302  Verifica Requisiti"]
["01",null,"03",null,"03"," Verifiche Fiscali e Previdenziali",null,null,"010303  Verifiche Fiscali e Previdenziali"]
["01",null,"03",null,"04"," Fatture",null,null,"010304  Fatture"]
["01",null,"03",null,"05"," Liquidazione fatture",null,null,"010305  Liquidazione fatture"]
["01",null,"03",null,"06"," Mandati Quietanzati",null,null,"010306  Mandati Quietanzati"]
["01",null,"03",null,"07"," Garanzie",null,null,"010307  Garanzie"]
["01",null,"03",null,"08"," Tracciabilità",null,null,"010308  Tracciabilità"]
["01",null,"04","Mandati Quietanzati","01"," Incarico",null,{"$f":"A43&C43&\" \"&D43","v":"0104 Mandati Quietanzati"},"010401  Incarico"]
["01",null,"04",null,"02"," Verifica Requisiti",null,null,"010402  Verifica Requisiti"]
["01",null,"04",null,"03"," Verifiche Fiscali e Previdenziali",null,null,"010403  Verifiche Fiscali e Previdenziali"]
["01",null,"04",null,"04"," Fatture",null,null,"010404  Fatture"]
["01",null,"04",null,"05"," Liquidazione fatture",null,null,"010405  Liquidazione fatture"]
["01",null,"04",null,"06"," Mandati Quietanzati",null,null,"010406  Mandati Quietanzati"]
["01",null,"04",null,"07"," Garanzie",null,null,"010407  Garanzie"]
["01",null,"04",null,"08"," Tracciabilità",null,null,"010408  Tracciabilità"]
["02","RILIEVI E ACC. ST. APPALTANTE","01","Rilievi ed Accatastamenti","01"," Incarico",{"$f":"A51&\" \"&B51","v":"02 RILIEVI E ACC. ST. APPALTANTE"},{"$f":"A51&C51&\" \"&D51","v":"0201 Rilievi ed Accatastamenti"},"020101  Incarico"]
["02",null,"01",null,"02"," Fatture",null,null,"020102  Fatture"]
["02",null,"01",null,"03"," Liquidazione fatture",null,null,"020103  Liquidazione fatture"]
["02",null,"01",null,"04"," Mandati Quietanzati",null,null,"020104  Mandati Quietanzati"]
["02",null,"01",null,"05","Documentazione tecnica",null,null,"020105 Documentazione tecnica"]
["02",null,"04","Indagini Geol., Geogn, Geof…","01"," Incarico",null,{"$f":"A56&C56&\" \"&D56","v":"0204 Indagini Geol., Geogn, Geof…"},"020401  Incarico"]
["02",null,"04",null,"02"," Fatture",null,null,"020402  Fatture"]
["02",null,"04",null,"03"," Liquidazione fatture",null,null,"020403  Liquidazione fatture"]
["02",null,"04",null,"04"," Mandati Quietanzati",null,null,"020404  Mandati Quietanzati"]
["02",null,"04",null,"05","Documentazione tecnica",null,null,"020405 Documentazione tecnica"]
["02",null,"06","Indagini Archeologiche","01"," Incarico",null,{"$f":"A61&C61&\" \"&D61","v":"0206 Indagini Archeologiche"},"020601  Incarico"]
["02",null,"06",null,"02"," Fatture",null,null,"020602  Fatture"]
["02",null,"06",null,"03"," Liquidazione fatture",null,null,"020603  Liquidazione fatture"]
["02",null,"06",null,"04"," Mandati Quietanzati",null,null,"020604  Mandati Quietanzati"]
["02",null,"06",null,"05","Documentazione tecnica",null,null,"020605 Documentazione tecnica"]
["02",null,"09","Analisi Strutturali","01"," Incarico",null,{"$f":"A66&C66&\" \"&D66","v":"0209 Analisi Strutturali"},"020901  Incarico"]
["02",null,"09",null,"02"," Fatture",null,null,"020902  Fatture"]
["02",null,"09",null,"03"," Liquidazione fatture",null,null,"020903  Liquidazione fatture"]
["02",null,"09",null,"04"," Mandati Quietanzati",null,null,"020904  Mandati Quietanzati"]
["02",null,"09",null,"05","Documentazione tecnica",null,null,"020905 Documentazione tecnica"]
["02",null,12,"Geologo","01"," Incarico",null,{"$f":"A71&C71&\" \"&D71","v":"0212 Geologo"},"021201  Incarico"]
["02",null,12,null,"04"," Fatture",null,null,"021204  Fatture"]
["02",null,12,null,"05"," Liquidazione fatture",null,null,"021205  Liquidazione fatture"]
["02",null,12,null,"06"," Mandati Quietanzati",null,null,"021206  Mandati Quietanzati"]
["02",null,12,null,"10","Indagine geologica",null,null,"021210 Indagine geologica"]
["03","RILIEVI E ACC. A CURA PROGETTISTA","01","Rilievi ed Accatastamenti","01"," Incarico",{"$f":"A76&\" \"&B76","v":"03 RILIEVI E ACC. A CURA PROGETTISTA"},{"$f":"A76&C76&\" \"&D76","v":"0301 Rilievi ed Accatastamenti"},"030101  Incarico"]
["03",null,"01",null,"02"," Fatture",null,null,"030102  Fatture"]
["03",null,"01",null,"03"," Liquidazione fatture",null,null,"030103  Liquidazione fatture"]
["03",null,"01",null,"04"," Mandati Quietanzati",null,null,"030104  Mandati Quietanzati"]
["03",null,"01",null,"05","Documentazione tecnica",null,null,"030105 Documentazione tecnica"]
["03",null,"04","Altri Accertementi ed Indagini","01"," Incarico",null,{"$f":"A81&C81&\" \"&D81","v":"0304 Altri Accertementi ed Indagini"},"030401  Incarico"]
["03",null,"04",null,"04"," Fatture",null,null,"030404  Fatture"]
["03",null,"04",null,"05"," Liquidazione fatture",null,null,"030405  Liquidazione fatture"]
["03",null,"04",null,"06"," Mandati Quietanzati",null,null,"030406  Mandati Quietanzati"]
["03",null,"04",null,"09","Documentazione tecnica",null,null,"030409 Documentazione tecnica"]
["04","ALLACCIAMENTI","01","All. Pubblici Servizi","01"," Incarico",{"$f":"A86&\" \"&B86","v":"04 ALLACCIAMENTI"},{"$f":"A86&C86&\" \"&D86","v":"0401 All. Pubblici Servizi"},"040101  Incarico"]
["04",null,"01",null,"02"," Fatture",null,null,"040102  Fatture"]
["04",null,"01",null,"03"," Liquidazione fatture",null,null,"040103  Liquidazione fatture"]
["04",null,"01",null,"04"," Mandati Quietanzati",null,null,"040104  Mandati Quietanzati"]
["04",null,"01",null,"05","Documentazione tecnica",null,null,"040105 Documentazione tecnica"]
["04",null,"03","Onerei su Allacciamenti","01"," Fatture",null,{"$f":"A91&C91&\" \"&D91","v":"0403 Onerei su Allacciamenti"},{"$f":"A91&C91&E91&\" \"&F91","v":"040301  Fatture"}]
["04",null,"03",null,"02"," Liquidazione fatture",null,null,"040302  Liquidazione fatture"]
["04",null,"03",null,"03"," Mandati Quietanzati",null,null,"040303  Mandati Quietanzati"]
["04",null,"04","Spost. Serv. Inferenti","01"," Incarico",null,null,"040401  Incarico"]
["04",null,"04",null,"02"," Fatture",null,{"$f":"A95&C95&\" \"&D94","v":"0404 Spost. Serv. Inferenti"},"040402  Fatture"]
["04",null,"04",null,"03"," Liquidazione fatture",null,null,"040403  Liquidazione fatture"]
["04",null,"04",null,"04"," Mandati Quietanzati",null,null,"040404  Mandati Quietanzati"]
["04",null,"04",null,"05","Documentazione tecnica",null,null,"040405 Documentazione tecnica"]
["05","IMPREVISTI","01","Incarichi",null,null,{"$f":"A99&\" \"&B99","v":"05 IMPREVISTI"},{"$f":"A99&C99&\" \"&D99","v":"0501 Incarichi"}]
["05",null,"04","Fatture",null,null,null,"0504 Fatture"]
["05",null,"05","Liquidazione Fatture",null,null,null,"0505 Liquidazione Fatture"]
["05",null,"06","Mandati Quietanzati",null,null,null,"0506 Mandati Quietanzati"]
["05",null,"10","Documentazione",null,null,null,"0510 Documentazione"]
["06","ACCANT ART.LI 60 E 120 CODICE","01","ART. 60 Revisione prezzi","01","Approvazione",{"$f":"A104&\" \"&B104","v":"06 ACCANT ART.LI 60 E 120 CODICE"},"0601 ART. 60 Revisione prezzi","060101 Approvazione"]
["06",null,"01",null,"02","Documentazione",null,null,"060102 Documentazione"]
["06",null,"04","ART. 120  Modifiche contrattuali","01","Approvazione",null,{"$f":"A106&C106&\" \"&D106","v":"0604 ART. 120  Modifiche contrattuali"},"060401 Approvazione"]
["06",null,"04",null,"02","Documentazione",null,null,"060402 Documentazione"]
["07","ACQUISIZIONE AREE_IMMOBILI","01","Espropri Aree","01","Decreto di Esproprio",{"$f":"A108&\" \"&B108","v":"07 ACQUISIZIONE AREE_IMMOBILI"},{"$f":"A108&C108&\" \"&D108","v":"0701 Espropri Aree"},"070101 Decreto di Esproprio"]
["07",null,"01",null,"02","Atto di Acquisto",null,null,"070102 Atto di Acquisto"]
["07",null,"01",null,"03","Liquidazione",null,null,"070103 Liquidazione"]
["07",null,"01",null,"04","Mandato Quietanziato",null,null,"070104 Mandato Quietanziato"]
["07",null,"01",null,"05","Documentazione",null,null,"070105 Documentazione"]
["07",null,"02","Espropri Immobili","01","Decreto di Esproprio",null,{"$f":"A113&C113&\" \"&D113","v":"0702 Espropri Immobili"},"070201 Decreto di Esproprio"]
["07",null,"02",null,"02","Atto di Acquisto",null,null,"070202 Atto di Acquisto"]
["07",null,"02",null,"03","Liquidazione",null,null,"070203 Liquidazione"]
["07",null,"02",null,"04","Mandato Quietanziato",null,null,"070204 Mandato Quietanziato"]
["07",null,"02",null,"05","Documentazione",null,null,"070205 Documentazione"]
["07",null,"03","Indennizzi","01","Liquidazione",null,{"$f":"A118&C118&\" \"&D118","v":"0703 Indennizzi"},"070301 Liquidazione"]
["07",null,"03",null,"02","Mandato Quietanziato",null,null,"070302 Mandato Quietanziato"]
["07",null,"03",null,"03","Documentazione",null,null,"070303 Documentazione"]
["07",null,"04","Occupazioni Temporanee","01","Liquidazione",null,null,"070401 Liquidazione"]
["07",null,"04",null,"02","Mandato Quietanziato",null,null,"070402 Mandato Quietanziato"]
["07",null,"04",null,"03","Documentazione",null,null,"070403 Documentazione"]
["07",null,"05","Oneri","01","Liquidazione",null,{"$f":"A124&C124&\" \"&D124","v":"0705 Oneri"},"070501 Liquidazione"]
["07",null,"05",null,"02","Mandato Quietanziato",null,null,"070502 Mandato Quietanziato"]
["07",null,"05",null,"03","Documentazione",null,null,"070503 Documentazione"]
["08","AFFIDAMENTO SERVIZI TECNICI","01","Fattibilità Tecnico Economica","01","Incarico",{"$f":"A127&\" \"&B127","v":"08 AFFIDAMENTO SERVIZI TECNICI"},{"$f":"A127&C127&\" \"&D127","v":"0801 Fattibilità Tecnico Economica"},"080101 Incarico"]
["08",null,"01",null,"02","Elaborati Progettuali",null,null,"080102 Elaborati Progettuali"]
["08",null,"01",null,"03","Verifica e Validazione",null,null,"080103 Verifica e Validazione"]
["08",null,"01",null,"04","Approvazione progetto",null,null,"080104 Approvazione progetto"]
["08",null,"01",null,"05","QTE",null,null,"080105 QTE"]
["08",null,"01",null,"06","Fatture",null,null,"080106 Fatture"]
["08",null,"01",null,"07","Determine di Liquidazione",null,null,"080107 Determine di Liquidazione"]
["08",null,"01",null,"08","Mandati Quietanziati",null,null,"080108 Mandati Quietanziati"]
["08",null,"04","Progetto Esecutivo","01","Incarico",null,{"$f":"A135&C135&\" \"&D135","v":"0804 Progetto Esecutivo"},"080401 Incarico"]
["08",null,"04",null,"02","Elaborati Progettuali",null,null,"080402 Elaborati Progettuali"]
["08",null,"04",null,"03","Verifica e Validazione",null,null,"080403 Verifica e Validazione"]
["08",null,"04",null,"04","Approvazione progetto",null,null,"080404 Approvazione progetto"]
["08",null,"04",null,"05","QTE",null,null,"080405 QTE"]
["08",null,"04",null,"06","Fatture",null,null,"080406 Fatture"]
["08",null,"04",null,"07","Determine di Liquidazione",null,null,"080407 Determine di Liquidazione"]
["08",null,"04",null,"08","Mandati Quietanziati",null,null,"080408 Mandati Quietanziati"]
["08",null,"07","Direzione lavori","01","Incarico",null,{"$f":"A143&C143&\" \"&D143","v":"0807 Direzione lavori"},"080701 Incarico"]
["08",null,"07",null,"02","Fatture",null,null,"080702 Fatture"]
["08",null,"07",null,"03","Determine di Liquidazione",null,null,"080703 Determine di Liquidazione"]
["08",null,"07",null,"04","Mandati Quietanziati",null,null,"080704 Mandati Quietanziati"]
["08",null,"07",null,"05","Corrispondenza",null,null,"080705 Corrispondenza"]
["08",null,"11","Sicurezza fase Prog.","01","Incarico",null,{"$f":"A148&C148&\" \"&D148","v":"0811 Sicurezza fase Prog."},"081101 Incarico"]
["08",null,"11",null,"02","Fatture",null,null,"081102 Fatture"]
["08",null,"11",null,"03","Determine di Liquidazione",null,null,"081103 Determine di Liquidazione"]
["08",null,"11",null,"04","Mandati Quietanziati",null,null,"081104 Mandati Quietanziati"]
["08",null,"14","Sicurezza fase Esec.","01","Incarico",null,{"$f":"A152&C152&\" \"&D152","v":"0814 Sicurezza fase Esec."},"081401 Incarico"]
["08",null,"14",null,"02","Fatture",null,null,"081402 Fatture"]
["08",null,"14",null,"03","Determine di Liquidazione",null,null,"081403 Determine di Liquidazione"]
["08",null,"14",null,"04","Mandati Quietanziati",null,null,{"$f":"A155&C155&E155&\" \"&F155","v":"081404 Mandati Quietanziati"}]
["08",null,"17","Altri Servizi tecnici","01","Incarico",null,null,"081701 Incarico"]
["08",null,"17",null,"02","Fatture",null,null,"081702 Fatture"]
["08",null,"17",null,"03","Determine di Liquidazione",null,null,"081703 Determine di Liquidazione"]
["08",null,"17",null,"04","Mandati Quietanziati",null,null,"081704 Mandati Quietanziati"]
["08",null,"20","Conferenze dei Servizi","01","Incarico",null,{"$f":"A160&C160&\" \"&D160","v":"0820 Conferenze dei Servizi"},"082001 Incarico"]
["08",null,"20",null,"02","Fatture",null,null,"082002 Fatture"]
["08",null,"20",null,"03","Determine di Liquidazione",null,null,"082003 Determine di Liquidazione"]
["08",null,"20",null,"03","Altri Oneri",null,null,"082003 Altri Oneri"]
["08",null,"20",null,"04","Mandati Quietanziati",null,null,"082004 Mandati Quietanziati"]
["08",null,"23","Incentivo (Quota 80%)","01","Incarico",null,{"$f":"A165&C165&\" \"&D165","v":"0823 Incentivo (Quota 80%)"},"082301 Incarico"]
["08",null,"23",null,"02","Calcolo Incentivi",null,null,"082302 Calcolo Incentivi"]
["08",null,"23",null,"03","Liquidazione Incentivi",null,null,"082303 Liquidazione Incentivi"]
["08",null,"23",null,"04","Pagamento Incentivi",null,null,"082304 Pagamento Incentivi"]
["09","ATTIVITA' TECNICO-AMM","01","Attivita Supp. Prog.","01","Incarico",{"$f":"A169&\" \"&B169","v":"09 ATTIVITA' TECNICO-AMM"},{"$f":"A169&C169&\" \"&D169","v":"0901 Attivita Supp. Prog."},"090101 Incarico"]
["09",null,"01",null,"02","Fatture",null,null,"090102 Fatture"]
["09",null,"01",null,"03","Determine di Liquidazione",null,null,"090103 Determine di Liquidazione"]
["09",null,"01",null,"04","Mandati Quietanziati",null,null,"090104 Mandati Quietanziati"]
["09",null,"04","Attivita Verifica Prog.","01","Incarico",null,{"$f":"A173&C173&\" \"&D173","v":"0904 Attivita Verifica Prog."},"090401 Incarico"]
["09",null,"04",null,"02","Fatture",null,null,"090402 Fatture"]
["09",null,"04",null,"03","Determine di Liquidazione",null,null,"090403 Determine di Liquidazione"]
["09",null,"04",null,"04","Mandati Quietanziati",null,null,"090404 Mandati Quietanziati"]
["09",null,"07","Supporto al RUP","01","Incarico",null,{"$f":"A177&C177&\" \"&D177","v":"0907 Supporto al RUP"},"090701 Incarico"]
["09",null,"07",null,"02","Fatture",null,null,"090702 Fatture"]
["09",null,"07",null,"03","Determine di Liquidazione",null,null,"090703 Determine di Liquidazione"]
["09",null,"07",null,"04","Mandati Quietanziati",null,null,"090704 Mandati Quietanziati"]
["09",null,10,"Polizze Assicurative","01","Polizza Quietanza",null,{"$f":"A181&C181&\" \"&D181","v":"0910 Polizze Assicurative"},"091001 Polizza Quietanza"]
["09",null,10,null,"02","Liquidazione Premio",null,null,"091002 Liquidazione Premio"]
["09",null,10,null,"03","Mandato Quietanziato",null,null,"091003 Mandato Quietanziato"]
["10","INCENTIVI QUOTA 20%",null,null,null,null,{"$f":"A184&\" \"&B184","v":"10 INCENTIVI QUOTA 20%"}]
["11","COMMISSIONI GIUDICATRICI","01","Compensi per commissione","01","Incarico",{"$f":"A185&\" \"&B185","v":"11 COMMISSIONI GIUDICATRICI"},{"$f":"A185&C185&\" \"&D185","v":"1101 Compensi per commissione"},"110101 Incarico"]
["11",null,"01",null,"02","Fatture",null,null,"110102 Fatture"]
["11",null,"01",null,"03","Determine di Liquidazione",null,null,"110103 Determine di Liquidazione"]
["11",null,"01",null,"04","Mandati Quietanziati",null,null,"110104 Mandati Quietanziati"]
["11",null,"02","Altre Spese","01","Determine di Liquidazione",null,{"$f":"A189&C189&\" \"&D189","v":"1102 Altre Spese"},"110201 Determine di Liquidazione"]
["11",null,"02",null,"02","Fatture",null,null,"110202 Fatture"]
["11",null,"02",null,"03","Mandati Quietanziati",null,null,"110203 Mandati Quietanziati"]
["12","SPESE PUBBL. E COMUNICAZIONE","01","Spese Pubbl. E Com.","01","Incarico",{"$f":"A192&\" \"&B192","v":"12 SPESE PUBBL. E COMUNICAZIONE"},{"$f":"A192&C192&\" \"&D192","v":"1201 Spese Pubbl. E Com."},"120101 Incarico"]
["12",null,"01",null,"02","Fatture",null,null,"120102 Fatture"]
["12",null,"01",null,"03","Determine di Liquidazione",null,null,"120103 Determine di Liquidazione"]
["12",null,"01",null,"04","Mandati Quietanziati",null,null,"120104 Mandati Quietanziati"]
["12",null,"03","Contributi ANAC","01","Determine di Liquidazione",null,{"$f":"A196&C196&\" \"&D196","v":"1203 Contributi ANAC"},"120301 Determine di Liquidazione"]
["12",null,"03",null,"02","Mandati Quietanziati",null,null,"120302 Mandati Quietanziati"]
["13","ANALISI E PROVE LAB","01","Analisi Laboratorio","01","Incarico",{"$f":"A198&\" \"&B198","v":"13 ANALISI E PROVE LAB"},{"$f":"A198&C198&\" \"&D198","v":"1301 Analisi Laboratorio"},"130101 Incarico"]
["13",null,"01",null,"02","Fatture",null,null,"130102 Fatture"]
["13",null,"01",null,"03","Determine di Liquidazione",null,null,"130103 Determine di Liquidazione"]
["13",null,"01",null,"04","Mandati Quietanziati",null,null,"130104 Mandati Quietanziati"]
["13",null,"01",null,"05","Elaborati Progettuali",null,null,"130105 Elaborati Progettuali"]
["13",null,"04","Verifichee Accert. Obbl.","01","Incarico",null,{"$f":"A203&C203&\" \"&D203","v":"1304 Verifichee Accert. Obbl."},"130401 Incarico"]
["13",null,"04",null,"02","Fatture",null,null,"130402 Fatture"]
["13",null,"04",null,"03","Determine di Liquidazione",null,null,"130403 Determine di Liquidazione"]
["13",null,"04",null,"04","Mandati Quietanziati",null,null,"130404 Mandati Quietanziati"]
["13",null,"04",null,"05","Elaborati",null,null,"130405 Elaborati"]
["13",null,"06","Monitoraggio Successivo","01","Incarico",null,{"$f":"A208&C208&\" \"&D208","v":"1306 Monitoraggio Successivo"},"130601 Incarico"]
["13",null,"06",null,"02","Fatture",null,null,"130602 Fatture"]
["13",null,"06",null,"03","Determine di Liquidazione",null,null,"130603 Determine di Liquidazione"]
["13",null,"06",null,"04","Mandati Quietanziati",null,null,"130604 Mandati Quietanziati"]
["13",null,"06",null,"05","Elaborati",null,null,"130605 Elaborati"]
["14","COLLAUDO","01","Collaudo Statico","01","Incarico",{"$f":"A213&\" \"&B213","v":"14 COLLAUDO"},{"$f":"A213&C213&\" \"&D213","v":"1401 Collaudo Statico"},"140101 Incarico"]
["14",null,"01",null,"02","Fatture",null,null,"140102 Fatture"]
["14",null,"01",null,"03","Determine di Liquidazione",null,null,"140103 Determine di Liquidazione"]
["14",null,"01",null,"04","Mandati Quietanziati",null,null,"140104 Mandati Quietanziati"]
["14",null,"01",null,"05","Elaborati",null,null,"140105 Elaborati"]
["14",null,"04","Collaudo Tecnico  Amm.","01","Incarico",null,{"$f":"A218&C218&\" \"&D218","v":"1404 Collaudo Tecnico  Amm."},"140401 Incarico"]
["14",null,"04",null,"02","Fatture",null,null,{"$f":"A219&C219&E219&\" \"&F219","v":"140402 Fatture"}]
["14",null,"04",null,"03","Determine di Liquidazione",null,null,"140403 Determine di Liquidazione"]
["14",null,"04",null,"04","Mandati Quietanziati",null,null,"140404 Mandati Quietanziati"]
["14",null,"04",null,"05","Elaborati",null,null,"140405 Elaborati"]
["14",null,"07","Altri Collaudi Specialistici","01","Incarico",null,{"$f":"A223&C223&\" \"&D223","v":"1407 Altri Collaudi Specialistici"},"140701 Incarico"]
["14",null,"07",null,"02","Fatture",null,null,"140702 Fatture"]
["14",null,"07",null,"03","Determine di Liquidazione",null,null,"140703 Determine di Liquidazione"]
["14",null,"07",null,"04","Mandati Quietanziati",null,null,"140704 Mandati Quietanziati"]
["14",null,"07",null,"05","Elaborati",null,null,"140705 Elaborati"]
["15","VERIFICA PREV. INT. ARCHEOLOGICO","01","Incarico",null,null,{"$f":"A228&\" \"&B228","v":"15 VERIFICA PREV. INT. ARCHEOLOGICO"},{"$f":"A228&C228&\" \"&D228","v":"1501 Incarico"}]
["15",null,"02","Fatture",null,null,null,"1502 Fatture"]
["15",null,"03","Determine di Liquidazione",null,null,null,"1503 Determine di Liquidazione"]
["15",null,"04","Mandati Quietanziati",null,null,null,"1504 Mandati Quietanziati"]
["15",null,"05","Elaborati",null,null,null,"1505 Elaborati"]
["16","RIMEDI ALT. TUTELA GIURISD","01","SpeseRimedi Alt. Tutela Giur.","01","Incarico",{"$f":"A233&\" \"&B233","v":"16 RIMEDI ALT. TUTELA GIURISD"},"1601 SpeseRimedi Alt. Tutela Giur.","160101 Incarico"]
["16",null,"01",null,"02","Fatture",null,null,"160102 Fatture"]
["16",null,"01",null,"03","Determine di Liquidazione",null,null,"160103 Determine di Liquidazione"]
["16",null,"01",null,"04","Mandati Quietanziati",null,null,"160104 Mandati Quietanziati"]
["16",null,"01",null,"05","Documentazione",null,null,"160105 Documentazione"]
["16",null,"02","Spese Legali","01","Incarico",null,{"$f":"A238&C238&\" \"&D238","v":"1602 Spese Legali"},"160201 Incarico"]
["16",null,"02",null,"02","Fatture",null,null,"160202 Fatture"]
["16",null,"02",null,"03","Determine di Liquidazione",null,null,"160203 Determine di Liquidazione"]
["16",null,"02",null,"04","Mandati Quietanziati",null,null,"160204 Mandati Quietanziati"]
["16",null,"02",null,"05","Documentazione",null,null,"160205 Documentazione"]
["17","SPESE PER OPERE ARTISTICHE","01","Determine di Liquidazione",null,null,{"$f":"A243&\" \"&B243","v":"17 SPESE PER OPERE ARTISTICHE"},{"$f":"A243&C243&\" \"&D243","v":"1701 Determine di Liquidazione"}]
["17",null,"02","Mandati Quietanziati",null,null,null,{"$f":"A244&C244&\" \"&D244","v":"1702 Mandati Quietanziati"}]
["17",null,"03","Documentazione",null,null,null,{"$f":"A245&C245&\" \"&D245","v":"1703 Documentazione"}]
["18","DOCUMENTAZIONE A CARATTERE GENERALE","01","Delibera Approvazione Contributo",null,null,{"$f":"A246&\" \"&B246","v":"18 DOCUMENTAZIONE A CARATTERE GENERALE"},{"$f":"A246&C246&\" \"&D246","v":"1801 Delibera Approvazione Contributo"}]
["18",null,"02","Determina di Impegno",null,null,null,{"$f":"A247&C247&\" \"&D247","v":"1802 Determina di Impegno"}]
["18",null,"03","Cronoprogramma",null,null,null,"1803 Cronoprogramma"]
["18",null,"04","Nomina RUP e gruppo Lavoro",null,null,null,"1804 Nomina RUP e gruppo Lavoro"]
["18",null,"05","Rendiconto",null,null,null,"1805 Rendiconto"]
["18",null,"06","Corrispondenza Soggetto Finanziato",null,null,null,"1806 Corrispondenza Soggetto Finanziato"]
["18",null,"07","Corrispondenza Generale",null,null,null,"1807 Corrispondenza Generale"]
["19","DOCUMENTAZIONE PERSONALE DEL RUP",null,null,null,null,{"$f":"A253&\" \"&B253","v":"19 DOCUMENTAZIONE PERSONALE DEL RUP"}]

{"sheet":"APPO","index":7,"n_rows":4,"n_cols":4,"rows_kept":4,"cut":false,"hidden":true,"merged":[]}
[]
[]
[]
["Codice Attività","Raggruppa Per","Descrizione attività","Piano\nEconomico\nSelezionato"]